﻿Body Name,Body,Service Area Catergorisation,Service Division Catergorisation,Responsible Unit,Expenses Type,Detailed Expenses Type,Expenses Code,Date,Transaction Number,Amount,Capital / Revenue,Supplier Name,Supplier ID
North East Lincolnshire Council,http://statistics.data.gov.uk/id/local-authority/00FC),Resources And Governance,Resources,Backlog Maintenance,Cap Land/Build-Build Enh Wrk,Cap Land/Build-Build Enh Wrk,YA102,06/01/2021,652939,2347.74,CAPITAL,ENGIE SERVICES LTD,133267
North East Lincolnshire Council,http://statistics.data.gov.uk/id/local-authority/00FC),Resources And Governance,Resources,Backlog Maintenance,Cap Land/Build-Build Enh Wrk,Cap Land/Build-Build Enh Wrk,YA102,04/01/2021,652435,3345,CAPITAL,ENGIE SERVICES LTD,133267
North East Lincolnshire Council,http://statistics.data.gov.uk/id/local-authority/00FC),Resources And Governance,Resources,Backlog Maintenance,Cap Land/Build-Build Enh Wrk,Cap Land/Build-Build Enh Wrk,YA102,04/01/2021,652402,835,CAPITAL,ENGIE SERVICES LTD,133267
North East Lincolnshire Council,http://statistics.data.gov.uk/id/local-authority/00FC),Resources And Governance,Resources,Backlog Maintenance,Cap Land/Build-Build Enh Wrk,Cap Land/Build-Build Enh Wrk,YA102,15/01/2021,653100,1680,CAPITAL,ENGIE SERVICES LTD,133267
North East Lincolnshire Council,http://statistics.data.gov.uk/id/local-authority/00FC),Resources And Governance,Resources,Backlog Maintenance,Cap Land/Build-Build Enh Wrk,Cap Land/Build-Build Enh Wrk,YA102,15/01/2021,653863,846.08,CAPITAL,MOBILE MINI UK LTD,105081
North East Lincolnshire Council,http://statistics.data.gov.uk/id/local-authority/00FC),Resources And Governance,Resources,Backlog Maintenance,Cap Land/Build-Prof Fees,Cap Land/Build-Prof Fees,YA103,13/01/2021,653877,500,CAPITAL,ENGIE SERVICES LTD,133267
North East Lincolnshire Council,http://statistics.data.gov.uk/id/local-authority/00FC),Resources And Governance,Resources,Backlog Maintenance,Cap Land/Build-Build Enh Wrk,Cap Land/Build-Build Enh Wrk,YA102,04/01/2021,652437,645,CAPITAL,ENGIE SERVICES LTD,133267
North East Lincolnshire Council,http://statistics.data.gov.uk/id/local-authority/00FC),Resources And Governance,Resources,Backlog Maintenance,Cap Land/Build-Build Enh Wrk,Cap Land/Build-Build Enh Wrk,YA102,04/01/2021,652430,2196,CAPITAL,ENGIE SERVICES LTD,133267
North East Lincolnshire Council,http://statistics.data.gov.uk/id/local-authority/00FC),Resources And Governance,Resources,Backlog Maintenance,Cap Land/Build-Build Enh Wrk,Cap Land/Build-Build Enh Wrk,YA102,22/01/2021,651238,900,CAPITAL,OLD CLEE PRIMARY ACADEMY,119822
North East Lincolnshire Council,http://statistics.data.gov.uk/id/local-authority/00FC),Resources And Governance,Resources,Backlog Maintenance,Cap Land/Build-Build Enh Wrk,Cap Land/Build-Build Enh Wrk,YA102,04/01/2021,652432,802,CAPITAL,ENGIE SERVICES LTD,133267
North East Lincolnshire Council,http://statistics.data.gov.uk/id/local-authority/00FC),Resources And Governance,Resources,Backlog Maintenance,Cap Land/Build-Build Enh Wrk,Cap Land/Build-Build Enh Wrk,YA102,04/01/2021,652433,6549,CAPITAL,ENGIE SERVICES LTD,133267
North East Lincolnshire Council,http://statistics.data.gov.uk/id/local-authority/00FC),Resources And Governance,Resources,Backlog Maintenance,Cap Land/Build-Prof Fees,Cap Land/Build-Prof Fees,YA103,22/01/2021,655459,11205.18,CAPITAL,ENGIE SERVICES LTD,133267
North East Lincolnshire Council,http://statistics.data.gov.uk/id/local-authority/00FC),Resources And Governance,Resources,Backlog Maintenance,Cap Land/Build-Prof Fees,Cap Land/Build-Prof Fees,YA103,22/01/2021,655454,3576.01,CAPITAL,ENGIE SERVICES LTD,133267
North East Lincolnshire Council,http://statistics.data.gov.uk/id/local-authority/00FC),Resources And Governance,Resources,Backlog Maintenance,Cap Land/Build-Prof Fees,Cap Land/Build-Prof Fees,YA103,22/01/2021,655455,1043.2,CAPITAL,ENGIE SERVICES LTD,133267
North East Lincolnshire Council,http://statistics.data.gov.uk/id/local-authority/00FC),Resources And Governance,Resources,Backlog Maintenance,Cap Land/Build-Prof Fees,Cap Land/Build-Prof Fees,YA103,22/01/2021,655456,1848,CAPITAL,ENGIE SERVICES LTD,133267
North East Lincolnshire Council,http://statistics.data.gov.uk/id/local-authority/00FC),Resources And Governance,Resources,Backlog Maintenance,Cap Land/Build-Build Enh Wrk,Cap Land/Build-Build Enh Wrk,YA102,04/01/2021,652436,283.8,CAPITAL,ENGIE SERVICES LTD,133267
North East Lincolnshire Council,http://statistics.data.gov.uk/id/local-authority/00FC),Resources And Governance,Resources,Backlog Maintenance,Cap Land/Build-Build Enh Wrk,Cap Land/Build-Build Enh Wrk,YA102,29/01/2021,656201,7435,CAPITAL,RESTOREAFLOOR,139355
North East Lincolnshire Council,http://statistics.data.gov.uk/id/local-authority/00FC),Resources And Governance,Resources,Backlog Maintenance,Cap Land/Build-Prof Fees,Cap Land/Build-Prof Fees,YA103,04/01/2021,652429,250,CAPITAL,ENGIE SERVICES LTD,133267
North East Lincolnshire Council,http://statistics.data.gov.uk/id/local-authority/00FC),Resources And Governance,Resources,Property Rationalisation Prog,Cap Land/Build-Build Enh Wrk,Cap Land/Build-Build Enh Wrk,YA102,13/01/2021,653880,337.5,CAPITAL,ENGIE SERVICES LTD,133267
North East Lincolnshire Council,http://statistics.data.gov.uk/id/local-authority/00FC),Resources And Governance,Shared Services,Ict Refresh,Cap Land/Build-Build Enh Wrk,Cap Land/Build-Build Enh Wrk,YA102,29/01/2021,655080,270,CAPITAL,TOTAL COMPUTER NETWORKS LTD,141310
North East Lincolnshire Council,http://statistics.data.gov.uk/id/local-authority/00FC),Resources And Governance,Shared Services,Ict Refresh,Cap Land/Build-Build Enh Wrk,Cap Land/Build-Build Enh Wrk,YA102,29/01/2021,655080,680,CAPITAL,TOTAL COMPUTER NETWORKS LTD,141310
North East Lincolnshire Council,http://statistics.data.gov.uk/id/local-authority/00FC),Resources And Governance,Shared Services,Ict Refresh,Cap Land/Build-Build Enh Wrk,Cap Land/Build-Build Enh Wrk,YA102,04/01/2021,652442,1100,CAPITAL,TOTAL COMPUTER NETWORKS LTD,141310
North East Lincolnshire Council,http://statistics.data.gov.uk/id/local-authority/00FC),Resources And Governance,Shared Services,System Investment,Cap Veh Plt Eqp-Purchase,Cap Veh Plt Eqp-Purchase,YB101,13/01/2021,653974,13399.71,CAPITAL,MIDLAND SOFTWARE LTD,102633
North East Lincolnshire Council,http://statistics.data.gov.uk/id/local-authority/00FC),Resources And Governance,Shared Services,System Investment,Cap Veh Plt Eqp-Purchase,Cap Veh Plt Eqp-Purchase,YB101,13/01/2021,653974,30431.31,CAPITAL,MIDLAND SOFTWARE LTD,102633
North East Lincolnshire Council,http://statistics.data.gov.uk/id/local-authority/00FC),Resources And Governance,Shared Services,System Investment,Cap Veh Plt Eqp-Purchase,Cap Veh Plt Eqp-Purchase,YB101,13/01/2021,653973,3178.18,CAPITAL,MIDLAND SOFTWARE LTD,102633
North East Lincolnshire Council,http://statistics.data.gov.uk/id/local-authority/00FC),Resources And Governance,Shared Services,System Investment,Cap Veh Plt Eqp-Purchase,Cap Veh Plt Eqp-Purchase,YB101,13/01/2021,653973,1780.23,CAPITAL,MIDLAND SOFTWARE LTD,102633
North East Lincolnshire Council,http://statistics.data.gov.uk/id/local-authority/00FC),Environment Economy And Growth,Environment,Fleet Replacement Programme,Cap Veh Plt Eqp-Purchase,Cap Veh Plt Eqp-Purchase,YB101,15/01/2021,654406,11970,CAPITAL,MGB,101544
North East Lincolnshire Council,http://statistics.data.gov.uk/id/local-authority/00FC),Environment Economy And Growth,Environment,Fleet Replacement Programme,Cap Veh Plt Eqp-Purchase,Cap Veh Plt Eqp-Purchase,YB101,15/01/2021,653967,11970,CAPITAL,MGB,101544
North East Lincolnshire Council,http://statistics.data.gov.uk/id/local-authority/00FC),Environment Economy And Growth,Environment,Fleet Replacement Programme,Cap Veh Plt Eqp-Purchase,Cap Veh Plt Eqp-Purchase,YB101,15/01/2021,653921,11970,CAPITAL,MGB,101544
North East Lincolnshire Council,http://statistics.data.gov.uk/id/local-authority/00FC),Environment Economy And Growth,Environment,Fleet Replacement Programme,Cap Veh Plt Eqp-Purchase,Cap Veh Plt Eqp-Purchase,YB101,15/01/2021,653922,11970,CAPITAL,MGB,101544
North East Lincolnshire Council,http://statistics.data.gov.uk/id/local-authority/00FC),Environment Economy And Growth,Environment,Fleet Replacement Programme,Cap Veh Plt Eqp-Purchase,Cap Veh Plt Eqp-Purchase,YB101,15/01/2021,653923,11970,CAPITAL,MGB,101544
North East Lincolnshire Council,http://statistics.data.gov.uk/id/local-authority/00FC),Environment Economy And Growth,Environment,Fleet Replacement Programme,Cap Veh Plt Eqp-Purchase,Cap Veh Plt Eqp-Purchase,YB101,26/01/2021,654553,11970,CAPITAL,MGB,101544
North East Lincolnshire Council,http://statistics.data.gov.uk/id/local-authority/00FC),Environment Economy And Growth,Environment,Fleet Replacement Programme,Cap Veh Plt Eqp-Purchase,Cap Veh Plt Eqp-Purchase,YB101,08/01/2021,653335,680,CAPITAL,M6 GROUP OF COMPANIES LIMITED,144463
North East Lincolnshire Council,http://statistics.data.gov.uk/id/local-authority/00FC),Environment Economy And Growth,Environment,Fleet Replacement Programme,Cap Veh Plt Eqp-Purchase,Cap Veh Plt Eqp-Purchase,YB101,08/01/2021,653338,660,CAPITAL,M6 GROUP OF COMPANIES LIMITED,144463
North East Lincolnshire Council,http://statistics.data.gov.uk/id/local-authority/00FC),Environment Economy And Growth,Environment,Fleet Replacement Programme,Cap Veh Plt Eqp-Purchase,Cap Veh Plt Eqp-Purchase,YB101,08/01/2021,653333,680,CAPITAL,M6 GROUP OF COMPANIES LIMITED,144463
North East Lincolnshire Council,http://statistics.data.gov.uk/id/local-authority/00FC),Environment Economy And Growth,Environment,Fleet Replacement Programme,Cap Veh Plt Eqp-Purchase,Cap Veh Plt Eqp-Purchase,YB101,08/01/2021,653334,680,CAPITAL,M6 GROUP OF COMPANIES LIMITED,144463
North East Lincolnshire Council,http://statistics.data.gov.uk/id/local-authority/00FC),Environment Economy And Growth,Environment,Fleet Replacement Programme,Cap Veh Plt Eqp-Purchase,Cap Veh Plt Eqp-Purchase,YB101,08/01/2021,653336,660,CAPITAL,M6 GROUP OF COMPANIES LIMITED,144463
North East Lincolnshire Council,http://statistics.data.gov.uk/id/local-authority/00FC),Environment Economy And Growth,Environment,Fleet Replacement Programme,Cap Veh Plt Eqp-Purchase,Cap Veh Plt Eqp-Purchase,YB101,08/01/2021,653337,660,CAPITAL,M6 GROUP OF COMPANIES LIMITED,144463
North East Lincolnshire Council,http://statistics.data.gov.uk/id/local-authority/00FC),Environment Economy And Growth,Environment,Fleet Replacement Programme,Cap Veh Plt Eqp-Purchase,Cap Veh Plt Eqp-Purchase,YB101,13/01/2021,653821,495,CAPITAL,M6 GROUP OF COMPANIES LIMITED,144463
North East Lincolnshire Council,http://statistics.data.gov.uk/id/local-authority/00FC),Environment Economy And Growth,Environment,Fleet Replacement Programme,Cap Veh Plt Eqp-Purchase,Cap Veh Plt Eqp-Purchase,YB101,13/01/2021,653792,495,CAPITAL,M6 GROUP OF COMPANIES LIMITED,144463
North East Lincolnshire Council,http://statistics.data.gov.uk/id/local-authority/00FC),Environment Economy And Growth,Environment,Fleet Replacement Programme,Cap Veh Plt Eqp-Purchase,Cap Veh Plt Eqp-Purchase,YB101,13/01/2021,653793,510,CAPITAL,M6 GROUP OF COMPANIES LIMITED,144463
North East Lincolnshire Council,http://statistics.data.gov.uk/id/local-authority/00FC),Environment Economy And Growth,Environment,Fleet Replacement Programme,Cap Veh Plt Eqp-Purchase,Cap Veh Plt Eqp-Purchase,YB101,13/01/2021,653794,510,CAPITAL,M6 GROUP OF COMPANIES LIMITED,144463
North East Lincolnshire Council,http://statistics.data.gov.uk/id/local-authority/00FC),Environment Economy And Growth,Environment,Fleet Replacement Programme,Cap Veh Plt Eqp-Purchase,Cap Veh Plt Eqp-Purchase,YB101,13/01/2021,653795,990,CAPITAL,M6 GROUP OF COMPANIES LIMITED,144463
North East Lincolnshire Council,http://statistics.data.gov.uk/id/local-authority/00FC),Environment Economy And Growth,Environment,Fleet Replacement Programme,Cap Veh Plt Eqp-Purchase,Cap Veh Plt Eqp-Purchase,YB101,13/01/2021,653796,990,CAPITAL,M6 GROUP OF COMPANIES LIMITED,144463
North East Lincolnshire Council,http://statistics.data.gov.uk/id/local-authority/00FC),Environment Economy And Growth,Environment,Fleet Replacement Programme,Cap Veh Plt Eqp-Purchase,Cap Veh Plt Eqp-Purchase,YB101,13/01/2021,653797,990,CAPITAL,M6 GROUP OF COMPANIES LIMITED,144463
North East Lincolnshire Council,http://statistics.data.gov.uk/id/local-authority/00FC),Environment Economy And Growth,Environment,Fleet Replacement Programme,Cap Veh Plt Eqp-Purchase,Cap Veh Plt Eqp-Purchase,YB101,13/01/2021,653798,1020,CAPITAL,M6 GROUP OF COMPANIES LIMITED,144463
North East Lincolnshire Council,http://statistics.data.gov.uk/id/local-authority/00FC),Environment Economy And Growth,Environment,Fleet Replacement Programme,Cap Veh Plt Eqp-Purchase,Cap Veh Plt Eqp-Purchase,YB101,13/01/2021,653799,1020,CAPITAL,M6 GROUP OF COMPANIES LIMITED,144463
North East Lincolnshire Council,http://statistics.data.gov.uk/id/local-authority/00FC),Environment Economy And Growth,Environment,Fleet Replacement Programme,Cap Veh Plt Eqp-Purchase,Cap Veh Plt Eqp-Purchase,YB101,13/01/2021,653800,1020,CAPITAL,M6 GROUP OF COMPANIES LIMITED,144463
North East Lincolnshire Council,http://statistics.data.gov.uk/id/local-authority/00FC),Environment Economy And Growth,Environment,Fleet Replacement Programme,Cap Veh Plt Eqp-Purchase,Cap Veh Plt Eqp-Purchase,YB101,13/01/2021,653820,495,CAPITAL,M6 GROUP OF COMPANIES LIMITED,144463
North East Lincolnshire Council,http://statistics.data.gov.uk/id/local-authority/00FC),Environment Economy And Growth,Environment,Fleet Replacement Programme,Cap Veh Plt Eqp-Purchase,Cap Veh Plt Eqp-Purchase,YB101,13/01/2021,653822,510,CAPITAL,M6 GROUP OF COMPANIES LIMITED,144463
North East Lincolnshire Council,http://statistics.data.gov.uk/id/local-authority/00FC),Environment Economy And Growth,Environment,Fleet Replacement Programme,Cap Veh Plt Eqp-Purchase,Cap Veh Plt Eqp-Purchase,YB101,29/01/2021,656236,850,CAPITAL,M6 GROUP OF COMPANIES LIMITED,144463
North East Lincolnshire Council,http://statistics.data.gov.uk/id/local-authority/00FC),Environment Economy And Growth,Environment,Fleet Replacement Programme,Cap Veh Plt Eqp-Purchase,Cap Veh Plt Eqp-Purchase,YB101,29/01/2021,656229,850,CAPITAL,M6 GROUP OF COMPANIES LIMITED,144463
North East Lincolnshire Council,http://statistics.data.gov.uk/id/local-authority/00FC),Environment Economy And Growth,Environment,Fleet Replacement Programme,Cap Veh Plt Eqp-Purchase,Cap Veh Plt Eqp-Purchase,YB101,29/01/2021,656231,825,CAPITAL,M6 GROUP OF COMPANIES LIMITED,144463
North East Lincolnshire Council,http://statistics.data.gov.uk/id/local-authority/00FC),Environment Economy And Growth,Environment,Fleet Replacement Programme,Cap Veh Plt Eqp-Purchase,Cap Veh Plt Eqp-Purchase,YB101,29/01/2021,656232,850,CAPITAL,M6 GROUP OF COMPANIES LIMITED,144463
North East Lincolnshire Council,http://statistics.data.gov.uk/id/local-authority/00FC),Environment Economy And Growth,Environment,Fleet Replacement Programme,Cap Veh Plt Eqp-Purchase,Cap Veh Plt Eqp-Purchase,YB101,29/01/2021,656233,330,CAPITAL,M6 GROUP OF COMPANIES LIMITED,144463
North East Lincolnshire Council,http://statistics.data.gov.uk/id/local-authority/00FC),Environment Economy And Growth,Environment,Fleet Replacement Programme,Cap Veh Plt Eqp-Purchase,Cap Veh Plt Eqp-Purchase,YB101,29/01/2021,656234,850,CAPITAL,M6 GROUP OF COMPANIES LIMITED,144463
North East Lincolnshire Council,http://statistics.data.gov.uk/id/local-authority/00FC),Environment Economy And Growth,Environment,Fleet Replacement Programme,Cap Veh Plt Eqp-Purchase,Cap Veh Plt Eqp-Purchase,YB101,29/01/2021,656235,330,CAPITAL,M6 GROUP OF COMPANIES LIMITED,144463
North East Lincolnshire Council,http://statistics.data.gov.uk/id/local-authority/00FC),Environment Economy And Growth,Environment,Fleet Replacement Programme,Cap Veh Plt Eqp-Purchase,Cap Veh Plt Eqp-Purchase,YB101,29/01/2021,656237,510,CAPITAL,M6 GROUP OF COMPANIES LIMITED,144463
North East Lincolnshire Council,http://statistics.data.gov.uk/id/local-authority/00FC),Environment Economy And Growth,Environment,Fleet Replacement Programme,Cap Veh Plt Eqp-Purchase,Cap Veh Plt Eqp-Purchase,YB101,29/01/2021,656238,825,CAPITAL,M6 GROUP OF COMPANIES LIMITED,144463
North East Lincolnshire Council,http://statistics.data.gov.uk/id/local-authority/00FC),Environment Economy And Growth,Environment,Fleet Replacement Programme,Cap Veh Plt Eqp-Purchase,Cap Veh Plt Eqp-Purchase,YB101,29/01/2021,656239,825,CAPITAL,M6 GROUP OF COMPANIES LIMITED,144463
North East Lincolnshire Council,http://statistics.data.gov.uk/id/local-authority/00FC),Environment Economy And Growth,Environment,Fleet Replacement Programme,Cap Veh Plt Eqp-Purchase,Cap Veh Plt Eqp-Purchase,YB101,29/01/2021,656240,825,CAPITAL,M6 GROUP OF COMPANIES LIMITED,144463
North East Lincolnshire Council,http://statistics.data.gov.uk/id/local-authority/00FC),Environment Economy And Growth,Environment,Enhancement Bereavement Serv,Cap Land/Build-Build Enh Wrk,Cap Land/Build-Build Enh Wrk,YA102,11/01/2021,653225,36256.73,CAPITAL,TOPCON BUILDING LTD,144162
North East Lincolnshire Council,http://statistics.data.gov.uk/id/local-authority/00FC),Environment Economy And Growth,Environment,Enhancement Bereavement Serv,Cap Land/Build-Build Enh Wrk,Cap Land/Build-Build Enh Wrk,YA102,21/01/2021,655240,50065.55,CAPITAL,TOPCON BUILDING LTD,144162
North East Lincolnshire Council,http://statistics.data.gov.uk/id/local-authority/00FC),Environment Economy And Growth,Environment,Enhancement Bereavement Serv,Cap Land/Build-Build Enh Wrk,Cap Land/Build-Build Enh Wrk,YA102,13/01/2021,653801,1500,CAPITAL,ENGIE SERVICES LTD,133267
North East Lincolnshire Council,http://statistics.data.gov.uk/id/local-authority/00FC),Environment Economy And Growth,Environment,Enhancement Bereavement Serv,Cap Land/Build-Build Enh Wrk,Cap Land/Build-Build Enh Wrk,YA102,13/01/2021,653802,2000,CAPITAL,ENGIE SERVICES LTD,133267
North East Lincolnshire Council,http://statistics.data.gov.uk/id/local-authority/00FC),Environment Economy And Growth,Environment,Enhancement Bereavement Serv,Cap Land/Build-Build Enh Wrk,Cap Land/Build-Build Enh Wrk,YA102,13/01/2021,653803,2000,CAPITAL,ENGIE SERVICES LTD,133267
North East Lincolnshire Council,http://statistics.data.gov.uk/id/local-authority/00FC),Environment Economy And Growth,Environment,Enhancement Bereavement Serv,Cap Land/Build-Build Enh Wrk,Cap Land/Build-Build Enh Wrk,YA102,13/01/2021,653804,2000,CAPITAL,ENGIE SERVICES LTD,133267
North East Lincolnshire Council,http://statistics.data.gov.uk/id/local-authority/00FC),Environment Economy And Growth,Environment,Enhancement Bereavement Serv,Cap Land/Build-Build Enh Wrk,Cap Land/Build-Build Enh Wrk,YA102,28/01/2021,656121,2446.8,CAPITAL,ROSEHILL FURNITURE LTD,125501
North East Lincolnshire Council,http://statistics.data.gov.uk/id/local-authority/00FC),Environment Economy And Growth,Environment,Enhancement Bereavement Serv,Cap Land/Build-Build Enh Wrk,Cap Land/Build-Build Enh Wrk,YA102,28/01/2021,656121,585.95,CAPITAL,ROSEHILL FURNITURE LTD,125501
North East Lincolnshire Council,http://statistics.data.gov.uk/id/local-authority/00FC),Environment Economy And Growth,Environment,Enhancement Bereavement Serv,Cap Land/Build-Build Enh Wrk,Cap Land/Build-Build Enh Wrk,YA102,14/01/2021,653913,2325,CAPITAL,ALAN WOOD PARTNERSHIP LTD,101760
North East Lincolnshire Council,http://statistics.data.gov.uk/id/local-authority/00FC),Environment Economy And Growth,Environment,Enhancement Bereavement Serv,Cap Infrastr-Build Enh Wrk,Cap Infrastr-Build Enh Wrk,YC102,04/01/2021,646952,1487.4,CAPITAL,COLE EASDON CONSULTANTS,146319
North East Lincolnshire Council,http://statistics.data.gov.uk/id/local-authority/00FC),Environment Economy And Growth,Environment,Enhancement Bereavement Serv,Cap Infrastr-Build Enh Wrk,Cap Infrastr-Build Enh Wrk,YC102,08/01/2021,651857,1950,CAPITAL,DELTA-SIMONS ENVIRONMENTAL CONSULTANTS LTD,122455
North East Lincolnshire Council,http://statistics.data.gov.uk/id/local-authority/00FC),Environment Economy And Growth,Environment,Enhancement Bereavement Serv,Cap Land/Build-Prof Fees,Cap Land/Build-Prof Fees,YA103,14/01/2021,653844,1500,CAPITAL,ENGIE SERVICES LTD,133267
North East Lincolnshire Council,http://statistics.data.gov.uk/id/local-authority/00FC),Environment Economy And Growth,Environment,Depot Rationalisation,Cap Land/Build-Purchase,Cap Land/Build-Purchase,YA101,25/01/2021,655471,3120,CAPITAL,LANES GROUP PLC,140143
North East Lincolnshire Council,http://statistics.data.gov.uk/id/local-authority/00FC),Environment Economy And Growth,Environment,Depot Rationalisation,Cap Land/Build-Purchase,Cap Land/Build-Purchase,YA101,25/01/2021,655471,600,CAPITAL,LANES GROUP PLC,140143
North East Lincolnshire Council,http://statistics.data.gov.uk/id/local-authority/00FC),Environment Economy And Growth,Environment,Depot Rationalisation,Cap Land/Build-Purchase,Cap Land/Build-Purchase,YA101,29/01/2021,655629,450,CAPITAL,PREMIER SURVEYS LIMITED,146256
North East Lincolnshire Council,http://statistics.data.gov.uk/id/local-authority/00FC),Environment Economy And Growth,Environment,Depot Rationalisation,Cap Land/Build-Purchase,Cap Land/Build-Purchase,YA101,29/01/2021,655629,3770,CAPITAL,PREMIER SURVEYS LIMITED,146256
North East Lincolnshire Council,http://statistics.data.gov.uk/id/local-authority/00FC),Environment Economy And Growth,Economy & Growth,Local Transport Plan Schemes,Cap Infrastr-Build Enh Wrk,Cap Infrastr-Build Enh Wrk,YC102,08/01/2021,651604,495,CAPITAL,CLS CIVIL ENGINEERING LTD,146425
North East Lincolnshire Council,http://statistics.data.gov.uk/id/local-authority/00FC),Environment Economy And Growth,Economy & Growth,Local Transport Plan Schemes,Cap Infrastr-Build Enh Wrk,Cap Infrastr-Build Enh Wrk,YC102,18/01/2021,654697,30357,CAPITAL,ENGIE SERVICES LTD,133267
North East Lincolnshire Council,http://statistics.data.gov.uk/id/local-authority/00FC),Environment Economy And Growth,Economy & Growth,Local Transport Plan Schemes,Cap Infrastr-Build Enh Wrk,Cap Infrastr-Build Enh Wrk,YC102,18/01/2021,654702,30357,CAPITAL,ENGIE SERVICES LTD,133267
North East Lincolnshire Council,http://statistics.data.gov.uk/id/local-authority/00FC),Environment Economy And Growth,Economy & Growth,Local Transport Plan Schemes,Cap Infrastr-Build Enh Wrk,Cap Infrastr-Build Enh Wrk,YC102,07/01/2021,653049,1280,CAPITAL,ONEWAY TM LIMITED,128602
North East Lincolnshire Council,http://statistics.data.gov.uk/id/local-authority/00FC),Environment Economy And Growth,Economy & Growth,Local Transport Plan Schemes,Cap Infrastr-Build Enh Wrk,Cap Infrastr-Build Enh Wrk,YC102,14/01/2021,654352,1835.27,CAPITAL,SPECIALIST SURFACING LIMITED,100579
North East Lincolnshire Council,http://statistics.data.gov.uk/id/local-authority/00FC),Environment Economy And Growth,Economy & Growth,Local Transport Plan Schemes,Cap Infrastr-Build Enh Wrk,Cap Infrastr-Build Enh Wrk,YC102,25/01/2021,655373,22863,CAPITAL,SOUTHAM SERVICES (LINCS) LTD,140951
North East Lincolnshire Council,http://statistics.data.gov.uk/id/local-authority/00FC),Environment Economy And Growth,Economy & Growth,Local Transport Plan Schemes,Cap Infrastr-Build Enh Wrk,Cap Infrastr-Build Enh Wrk,YC102,08/01/2021,651632,7680,CAPITAL,SOUTHAM SERVICES (LINCS) LTD,140951
North East Lincolnshire Council,http://statistics.data.gov.uk/id/local-authority/00FC),Environment Economy And Growth,Economy & Growth,Local Transport Plan Schemes,Cap Infrastr-Prof Fees,Cap Infrastr-Prof Fees,YC103,08/01/2021,653284,3995,CAPITAL,CITI LOGIK LTD,148048
North East Lincolnshire Council,http://statistics.data.gov.uk/id/local-authority/00FC),Environment Economy And Growth,Economy & Growth,Local Transport Plan Schemes,Cap Infrastr-Purchase,Cap Infrastr-Purchase,YC101,04/01/2021,652331,4201,CAPITAL,BUCKINGHAMSHIRE COUNCIL,147079
North East Lincolnshire Council,http://statistics.data.gov.uk/id/local-authority/00FC),Environment Economy And Growth,Economy & Growth,Local Transport Plan Schemes,Cap Infrastr-Build Enh Wrk,Cap Infrastr-Build Enh Wrk,YC102,08/01/2021,653288,550,CAPITAL,SEVENAIRS CONSULTING LTD,141944
North East Lincolnshire Council,http://statistics.data.gov.uk/id/local-authority/00FC),Environment Economy And Growth,Economy & Growth,Local Transport Plan Schemes,Cap Infrastr-Build Enh Wrk,Cap Infrastr-Build Enh Wrk,YC102,26/01/2021,655613,581.12,CAPITAL,HUMBERSIDE MATERIALS LABORATORY LTD,122103
North East Lincolnshire Council,http://statistics.data.gov.uk/id/local-authority/00FC),Environment Economy And Growth,Economy & Growth,Local Transport Plan Schemes,Cap Infrastr-Build Enh Wrk,Cap Infrastr-Build Enh Wrk,YC102,26/01/2021,655614,506.12,CAPITAL,HUMBERSIDE MATERIALS LABORATORY LTD,122103
North East Lincolnshire Council,http://statistics.data.gov.uk/id/local-authority/00FC),Environment Economy And Growth,Economy & Growth,Local Transport Plan Schemes,Cap Infrastr-Build Enh Wrk,Cap Infrastr-Build Enh Wrk,YC102,26/01/2021,655615,506.12,CAPITAL,HUMBERSIDE MATERIALS LABORATORY LTD,122103
North East Lincolnshire Council,http://statistics.data.gov.uk/id/local-authority/00FC),Environment Economy And Growth,Economy & Growth,Local Transport Plan Schemes,Cap Infrastr-Build Enh Wrk,Cap Infrastr-Build Enh Wrk,YC102,26/01/2021,655617,506.12,CAPITAL,HUMBERSIDE MATERIALS LABORATORY LTD,122103
North East Lincolnshire Council,http://statistics.data.gov.uk/id/local-authority/00FC),Environment Economy And Growth,Economy & Growth,Local Transport Plan Schemes,Cap Infrastr-Build Enh Wrk,Cap Infrastr-Build Enh Wrk,YC102,26/01/2021,655618,581.12,CAPITAL,HUMBERSIDE MATERIALS LABORATORY LTD,122103
North East Lincolnshire Council,http://statistics.data.gov.uk/id/local-authority/00FC),Environment Economy And Growth,Economy & Growth,Local Transport Plan Schemes,Cap Infrastr-Build Enh Wrk,Cap Infrastr-Build Enh Wrk,YC102,26/01/2021,655619,583.88,CAPITAL,HUMBERSIDE MATERIALS LABORATORY LTD,122103
North East Lincolnshire Council,http://statistics.data.gov.uk/id/local-authority/00FC),Environment Economy And Growth,Economy & Growth,Local Transport Plan Schemes,Cap Infrastr-Build Enh Wrk,Cap Infrastr-Build Enh Wrk,YC102,26/01/2021,655620,581.12,CAPITAL,HUMBERSIDE MATERIALS LABORATORY LTD,122103
North East Lincolnshire Council,http://statistics.data.gov.uk/id/local-authority/00FC),Environment Economy And Growth,Economy & Growth,Local Transport Plan Schemes,Cap Infrastr-Build Enh Wrk,Cap Infrastr-Build Enh Wrk,YC102,26/01/2021,655621,506.12,CAPITAL,HUMBERSIDE MATERIALS LABORATORY LTD,122103
North East Lincolnshire Council,http://statistics.data.gov.uk/id/local-authority/00FC),Environment Economy And Growth,Economy & Growth,Local Transport Plan Schemes,Cap Infrastr-Build Enh Wrk,Cap Infrastr-Build Enh Wrk,YC102,26/01/2021,655616,583.88,CAPITAL,HUMBERSIDE MATERIALS LABORATORY LTD,122103
North East Lincolnshire Council,http://statistics.data.gov.uk/id/local-authority/00FC),Environment Economy And Growth,Economy & Growth,Local Transport Plan Schemes,Cap Infrastr-Build Enh Wrk,Cap Infrastr-Build Enh Wrk,YC102,04/01/2021,652468,504,CAPITAL,SEVENAIRS CONSULTING LTD,141944
North East Lincolnshire Council,http://statistics.data.gov.uk/id/local-authority/00FC),Environment Economy And Growth,Economy & Growth,Local Transport Plan Schemes,Cap Infrastr-Build Enh Wrk,Cap Infrastr-Build Enh Wrk,YC102,28/01/2021,656035,1548,CAPITAL,SEVENAIRS CONSULTING LTD,141944
North East Lincolnshire Council,http://statistics.data.gov.uk/id/local-authority/00FC),Environment Economy And Growth,Economy & Growth,Clee Hlf Townscape Heritage,Cap Land/Build-Prof Fees,Cap Land/Build-Prof Fees,YA103,19/01/2021,654503,3971,CAPITAL,ROYAL AIR FORCES ASSOCIATION,110620
North East Lincolnshire Council,http://statistics.data.gov.uk/id/local-authority/00FC),Environment Economy And Growth,Economy & Growth,Gllep Junction Improvement,Cap Infrastr-Build Enh Wrk,Cap Infrastr-Build Enh Wrk,YC102,21/01/2021,654789,44000,CAPITAL,ENGIE SERVICES LTD,133267
North East Lincolnshire Council,http://statistics.data.gov.uk/id/local-authority/00FC),Environment Economy And Growth,Economy & Growth,Gllep Junction Improvement,Cap Infrastr-Build Enh Wrk,Cap Infrastr-Build Enh Wrk,YC102,21/01/2021,654791,44000,CAPITAL,ENGIE SERVICES LTD,133267
North East Lincolnshire Council,http://statistics.data.gov.uk/id/local-authority/00FC),Environment Economy And Growth,Economy & Growth,Gllep Junction Improvement,Cap Infrastr-Build Enh Wrk,Cap Infrastr-Build Enh Wrk,YC102,18/01/2021,654691,6000,CAPITAL,ENGIE SERVICES LTD,133267
North East Lincolnshire Council,http://statistics.data.gov.uk/id/local-authority/00FC),Environment Economy And Growth,Economy & Growth,Gllep Junction Improvement,Cap Infrastr-Build Enh Wrk,Cap Infrastr-Build Enh Wrk,YC102,04/01/2021,652488,3054.03,CAPITAL,BT PAYMENT SERVICES LTD,103932
North East Lincolnshire Council,http://statistics.data.gov.uk/id/local-authority/00FC),Environment Economy And Growth,Economy & Growth,Gllep Junction Improvement,Cap Infrastr-Build Enh Wrk,Cap Infrastr-Build Enh Wrk,YC102,26/01/2021,655636,559.63,CAPITAL,CADENT GAS LIMITED,138392
North East Lincolnshire Council,http://statistics.data.gov.uk/id/local-authority/00FC),Environment Economy And Growth,Economy & Growth,Gllep Junction Improvement,Cap Infrastr-Build Enh Wrk,Cap Infrastr-Build Enh Wrk,YC102,14/01/2021,654367,1647.7,CAPITAL,GAP GROUP LTD,103371
North East Lincolnshire Council,http://statistics.data.gov.uk/id/local-authority/00FC),Environment Economy And Growth,Economy & Growth,Gllep Junction Improvement,Cap Infrastr-Build Enh Wrk,Cap Infrastr-Build Enh Wrk,YC102,14/01/2021,654368,1960.2,CAPITAL,GAP GROUP LTD,103371
North East Lincolnshire Council,http://statistics.data.gov.uk/id/local-authority/00FC),Environment Economy And Growth,Economy & Growth,Gllep Junction Improvement,Cap Infrastr-Build Enh Wrk,Cap Infrastr-Build Enh Wrk,YC102,14/01/2021,654370,1871.1,CAPITAL,GAP GROUP LTD,103371
North East Lincolnshire Council,http://statistics.data.gov.uk/id/local-authority/00FC),Environment Economy And Growth,Economy & Growth,Gllep Junction Improvement,Cap Infrastr-Build Enh Wrk,Cap Infrastr-Build Enh Wrk,YC102,18/01/2021,654372,2049.3,CAPITAL,GAP GROUP LTD,103371
North East Lincolnshire Council,http://statistics.data.gov.uk/id/local-authority/00FC),Environment Economy And Growth,Economy & Growth,Shiip Scheme,Cap Infrastr-Build Enh Wrk,Cap Infrastr-Build Enh Wrk,YC102,14/01/2021,654131,270008.18,CAPITAL,INTEGRATED UTILITY SERVICES,104162
North East Lincolnshire Council,http://statistics.data.gov.uk/id/local-authority/00FC),Environment Economy And Growth,Economy & Growth,Shiip Scheme,Cap Infrastr-Build Enh Wrk,Cap Infrastr-Build Enh Wrk,YC102,14/01/2021,653924,1485,CAPITAL,CIVIL ENGINEERING SPECIALIST,104444
North East Lincolnshire Council,http://statistics.data.gov.uk/id/local-authority/00FC),Environment Economy And Growth,Economy & Growth,Shiip Scheme,Cap Infrastr-Build Enh Wrk,Cap Infrastr-Build Enh Wrk,YC102,29/01/2021,654128,146931.33,CAPITAL,COLAS SIAC  LTD,100605
North East Lincolnshire Council,http://statistics.data.gov.uk/id/local-authority/00FC),Environment Economy And Growth,Economy & Growth,Unlocking The Potential,Cap Infrastr-Build Enh Wrk,Cap Infrastr-Build Enh Wrk,YC102,29/01/2021,656196,466611.31,CAPITAL,C R REYNOLDS (CONSTRUCTION) LTD,103021
North East Lincolnshire Council,http://statistics.data.gov.uk/id/local-authority/00FC),Environment Economy And Growth,Economy & Growth,Unlocking The Potential,Cap Infrastr-Build Enh Wrk,Cap Infrastr-Build Enh Wrk,YC102,21/01/2021,655185,6775,CAPITAL,ROUTE ONE INFRASTRUCTURE LTD,144617
North East Lincolnshire Council,http://statistics.data.gov.uk/id/local-authority/00FC),Environment Economy And Growth,Economy & Growth,Unlocking The Potential,Cap Infrastr-Build Enh Wrk,Cap Infrastr-Build Enh Wrk,YC102,29/01/2021,656242,17842,CAPITAL,ONEWAY TM LIMITED,128602
North East Lincolnshire Council,http://statistics.data.gov.uk/id/local-authority/00FC),Environment Economy And Growth,Economy & Growth,Unlocking The Potential,Cap Infrastr-Build Enh Wrk,Cap Infrastr-Build Enh Wrk,YC102,05/01/2021,652260,1700,CAPITAL,TREVOR HARRIES,147114
North East Lincolnshire Council,http://statistics.data.gov.uk/id/local-authority/00FC),Environment Economy And Growth,Economy & Growth,Unlocking The Potential,Cap Infrastr-Prof Fees,Cap Infrastr-Prof Fees,YC103,13/01/2021,653814,3000,CAPITAL,OUR BIG PICTURE LTD,134087
North East Lincolnshire Council,http://statistics.data.gov.uk/id/local-authority/00FC),Environment Economy And Growth,Economy & Growth,Cleethorpes Public Art,Cap Infrastr-Build Enh Wrk,Cap Infrastr-Build Enh Wrk,YC102,14/01/2021,654132,375,CAPITAL,DRYDEN LINE MARKINGS LIMITED,145799
North East Lincolnshire Council,http://statistics.data.gov.uk/id/local-authority/00FC),Environment Economy And Growth,Economy & Growth,A18 Laceby To Ludborough,Cap Infrastr-Build Enh Wrk,Cap Infrastr-Build Enh Wrk,YC102,19/01/2021,654703,6500,CAPITAL,ENGIE SERVICES LTD,133267
North East Lincolnshire Council,http://statistics.data.gov.uk/id/local-authority/00FC),Environment Economy And Growth,Economy & Growth,A18 Laceby To Ludborough,Cap Infrastr-Build Enh Wrk,Cap Infrastr-Build Enh Wrk,YC102,19/01/2021,654732,6500,CAPITAL,ENGIE SERVICES LTD,133267
North East Lincolnshire Council,http://statistics.data.gov.uk/id/local-authority/00FC),Environment Economy And Growth,Economy & Growth,A18 Laceby To Ludborough,Cap Infrastr-Build Enh Wrk,Cap Infrastr-Build Enh Wrk,YC102,19/01/2021,652895,382,CAPITAL,LINCOLNSHIRE COUNTY COUNCIL,100389
North East Lincolnshire Council,http://statistics.data.gov.uk/id/local-authority/00FC),Environment Economy And Growth,Economy & Growth,A18 Laceby To Ludborough,Cap Infrastr-Build Enh Wrk,Cap Infrastr-Build Enh Wrk,YC102,22/01/2021,646348,335,CAPITAL,LINCOLNSHIRE COUNTY COUNCIL,100389
North East Lincolnshire Council,http://statistics.data.gov.uk/id/local-authority/00FC),Environment Economy And Growth,Economy & Growth,Smart Energy For Business,Cap Land/Build-Build Enh Wrk,Cap Land/Build-Build Enh Wrk,YA102,26/01/2021,655641,18000,CAPITAL,WRENDALE DESIGNS,146769
North East Lincolnshire Council,http://statistics.data.gov.uk/id/local-authority/00FC),Environment Economy And Growth,Economy & Growth,Smart Energy For Business,Cap Land/Build-Build Enh Wrk,Cap Land/Build-Build Enh Wrk,YA102,26/01/2021,655642,7545,CAPITAL,MISTRAL RENEWABLE ENERGY LTD,146040
North East Lincolnshire Council,http://statistics.data.gov.uk/id/local-authority/00FC),Environment Economy And Growth,Economy & Growth,Smart Energy For Business,Cap Land/Build-Build Enh Wrk,Cap Land/Build-Build Enh Wrk,YA102,28/01/2021,655760,500,CAPITAL,TANNING CLUB LIMITED,148087
North East Lincolnshire Council,http://statistics.data.gov.uk/id/local-authority/00FC),Environment Economy And Growth,Economy & Growth,A180 Sth Humb Bank Major Maint,Cap Infrastr-Build Enh Wrk,Cap Infrastr-Build Enh Wrk,YC102,19/01/2021,654738,1041.19,CAPITAL,ENGIE SERVICES LTD,133267
North East Lincolnshire Council,http://statistics.data.gov.uk/id/local-authority/00FC),Environment Economy And Growth,Economy & Growth,Town Deal Investment,Cap Land/Build-Build Enh Wrk,Cap Land/Build-Build Enh Wrk,YA102,14/01/2021,654130,86469.36,CAPITAL,TOPCON CONSTRUCTION LTD,108462
North East Lincolnshire Council,http://statistics.data.gov.uk/id/local-authority/00FC),Environment Economy And Growth,Economy & Growth,Town Deal Investment,Cap Land/Build-Prof Fees,Cap Land/Build-Prof Fees,YA103,07/01/2021,653210,3572.5,CAPITAL,MASON CLARK ASSOCIATES,100793
North East Lincolnshire Council,http://statistics.data.gov.uk/id/local-authority/00FC),Environment Economy And Growth,Economy & Growth,Town Deal Investment,Cap Land/Build-Prof Fees,Cap Land/Build-Prof Fees,YA103,07/01/2021,653211,5048.75,CAPITAL,MASON CLARK ASSOCIATES,100793
North East Lincolnshire Council,http://statistics.data.gov.uk/id/local-authority/00FC),Environment Economy And Growth,Economy & Growth,Town Deal Investment,Cap Land/Build-Prof Fees,Cap Land/Build-Prof Fees,YA103,07/01/2021,653212,2778.75,CAPITAL,MASON CLARK ASSOCIATES,100793
North East Lincolnshire Council,http://statistics.data.gov.uk/id/local-authority/00FC),Environment Economy And Growth,Economy & Growth,Central Clee Regeneration,Cap Infrastr-Prof Fees,Cap Infrastr-Prof Fees,YC103,06/01/2021,652996,12793,CAPITAL,ENGIE SERVICES LTD,133267
North East Lincolnshire Council,http://statistics.data.gov.uk/id/local-authority/00FC),Environment Economy And Growth,Economy & Growth,Central Clee Regeneration,Cap Infrastr-Prof Fees,Cap Infrastr-Prof Fees,YC103,26/01/2021,654735,5000,CAPITAL,ENGIE SERVICES LTD,133267
North East Lincolnshire Council,http://statistics.data.gov.uk/id/local-authority/00FC),Environment Economy And Growth,Economy & Growth,Stallingborough Aemu,Cap Land/Build-Build Enh Wrk,Cap Land/Build-Build Enh Wrk,YA102,21/01/2021,655239,255478.77,CAPITAL,GEO HOULTON & SONS LTD,102697
North East Lincolnshire Council,http://statistics.data.gov.uk/id/local-authority/00FC),Environment Economy And Growth,Economy & Growth,Stallingborough Aemu,Cap Land/Build-Prof Fees,Cap Land/Build-Prof Fees,YA103,06/01/2021,653012,5000,CAPITAL,ENGIE SERVICES LTD,133267
North East Lincolnshire Council,http://statistics.data.gov.uk/id/local-authority/00FC),Environment Economy And Growth,Economy & Growth,Stallingborough Aemu,Cap Land/Build-Prof Fees,Cap Land/Build-Prof Fees,YA103,06/01/2021,652995,5000,CAPITAL,ENGIE SERVICES LTD,133267
North East Lincolnshire Council,http://statistics.data.gov.uk/id/local-authority/00FC),Environment Economy And Growth,Economy & Growth,Stallingborough Aemu,Cap Infrastr-Build Enh Wrk,Cap Infrastr-Build Enh Wrk,YC102,18/01/2021,654634,21547.03,CAPITAL,GEO HOULTON & SONS LTD,102697
North East Lincolnshire Council,http://statistics.data.gov.uk/id/local-authority/00FC),Environment Economy And Growth,Economy & Growth,Stallingborough Aemu,Cap Infrastr-Prof Fees,Cap Infrastr-Prof Fees,YC103,11/01/2021,648154,2250,CAPITAL,SEVENAIRS CONSULTING LTD,141944
North East Lincolnshire Council,http://statistics.data.gov.uk/id/local-authority/00FC),Environment Economy And Growth,Economy & Growth,Cdf - Open For Culture,Cap Land/Build-Prof Fees,Cap Land/Build-Prof Fees,YA103,04/01/2021,652363,18478.8,CAPITAL,DONALD INSALL ASSOCIATES LTD,146092
North East Lincolnshire Council,http://statistics.data.gov.uk/id/local-authority/00FC),Environment Economy And Growth,Economy & Growth,Rechargeable Works,Cap Land/Build-Build Enh Wrk,Cap Land/Build-Build Enh Wrk,YA102,04/01/2021,651831,820,CAPITAL,STONE TECHNICAL SERVICES LTD,119179
North East Lincolnshire Council,http://statistics.data.gov.uk/id/local-authority/00FC),Environment Economy And Growth,Economy & Growth,Estate Road No. 2,Cap Infrastr-Build Enh Wrk,Cap Infrastr-Build Enh Wrk,YC102,21/01/2021,654775,25300,CAPITAL,ENGIE SERVICES LTD,133267
North East Lincolnshire Council,http://statistics.data.gov.uk/id/local-authority/00FC),Environment Economy And Growth,Economy & Growth,Estate Road No. 2,Cap Infrastr-Build Enh Wrk,Cap Infrastr-Build Enh Wrk,YC102,21/01/2021,654778,25300,CAPITAL,ENGIE SERVICES LTD,133267
North East Lincolnshire Council,http://statistics.data.gov.uk/id/local-authority/00FC),Environment Economy And Growth,Economy & Growth,Estate Road No. 2,Cap Infrastr-Build Enh Wrk,Cap Infrastr-Build Enh Wrk,YC102,21/01/2021,654790,25300,CAPITAL,ENGIE SERVICES LTD,133267
North East Lincolnshire Council,http://statistics.data.gov.uk/id/local-authority/00FC),Environment Economy And Growth,Economy & Growth,Estate Road No. 2,Cap Infrastr-Build Enh Wrk,Cap Infrastr-Build Enh Wrk,YC102,21/01/2021,655075,13959.6,CAPITAL,ONEWAY TM LIMITED,128602
North East Lincolnshire Council,http://statistics.data.gov.uk/id/local-authority/00FC),Environment Economy And Growth,Economy & Growth,Estate Road No. 2,Cap Infrastr-Build Enh Wrk,Cap Infrastr-Build Enh Wrk,YC102,07/01/2021,653099,1250,CAPITAL,ONEWAY TM LIMITED,128602
North East Lincolnshire Council,http://statistics.data.gov.uk/id/local-authority/00FC),Environment Economy And Growth,Economy & Growth,Corporation Rd Bridge Refurb,Cap Land/Build-Build Enh Wrk,Cap Land/Build-Build Enh Wrk,YA102,05/01/2021,652470,1970,CAPITAL,ONEWAY TM LIMITED,128602
North East Lincolnshire Council,http://statistics.data.gov.uk/id/local-authority/00FC),Environment Economy And Growth,Economy & Growth,Corporation Rd Bridge Refurb,Cap Land/Build-Build Enh Wrk,Cap Land/Build-Build Enh Wrk,YA102,15/01/2021,654127,1921.34,CAPITAL,FAIRFIELD CONTROL SYSTEMS LTD,133883
North East Lincolnshire Council,http://statistics.data.gov.uk/id/local-authority/00FC),Environment Economy And Growth,Economy & Growth,Corporation Rd Bridge Refurb,Cap Infrastr-Build Enh Wrk,Cap Infrastr-Build Enh Wrk,YC102,21/01/2021,654776,25300,CAPITAL,ENGIE SERVICES LTD,133267
North East Lincolnshire Council,http://statistics.data.gov.uk/id/local-authority/00FC),Environment Economy And Growth,Economy & Growth,Corporation Rd Bridge Refurb,Cap Infrastr-Build Enh Wrk,Cap Infrastr-Build Enh Wrk,YC102,21/01/2021,654779,50600,CAPITAL,ENGIE SERVICES LTD,133267
North East Lincolnshire Council,http://statistics.data.gov.uk/id/local-authority/00FC),Environment Economy And Growth,Housing,Conv Rd Apartment Block,Cap Land/Build-Build Enh Wrk,Cap Land/Build-Build Enh Wrk,YA102,26/01/2021,655639,41735.12,CAPITAL,JC POMFRET CONSTRUCTION LTD,136453
North East Lincolnshire Council,http://statistics.data.gov.uk/id/local-authority/00FC),Environment Economy And Growth,Housing,Accelerated Cons Funding,Cap Infrastr-Build Enh Wrk,Cap Infrastr-Build Enh Wrk,YC102,08/01/2021,651256,855,CAPITAL,COLE EASDON CONSULTANTS,146319
North East Lincolnshire Council,http://statistics.data.gov.uk/id/local-authority/00FC),Environment Economy And Growth,Housing,Accelerated Cons Funding,Cap Infrastr-Prof Fees,Cap Infrastr-Prof Fees,YC103,18/01/2021,654687,10700,CAPITAL,ENGIE SERVICES LTD,133267
North East Lincolnshire Council,http://statistics.data.gov.uk/id/local-authority/00FC),Environment Economy And Growth,Housing,Accelerated Cons Funding,Cap Infrastr-Prof Fees,Cap Infrastr-Prof Fees,YC103,19/01/2021,654729,10700,CAPITAL,ENGIE SERVICES LTD,133267
North East Lincolnshire Council,http://statistics.data.gov.uk/id/local-authority/00FC),Public Health And Leisure,Leisure,Playing Pitch Reprovision,Cap Land/Build-Build Enh Wrk,Cap Land/Build-Build Enh Wrk,YA102,11/01/2021,653227,27525.12,CAPITAL,ETON-LINCS LIMITED,101510
North East Lincolnshire Council,http://statistics.data.gov.uk/id/local-authority/00FC),Adult Services,Adult Services,Hps-Disabled Fac. Grants,Cap Grants To O/Side Sources,Cap Grants To O/Side Sources,YJ101,08/01/2021,653295,2109.23,CAPITAL,ENGIE SERVICES LTD,133267
North East Lincolnshire Council,http://statistics.data.gov.uk/id/local-authority/00FC),Adult Services,Adult Services,Hps-Disabled Fac. Grants,Cap Grants To O/Side Sources,Cap Grants To O/Side Sources,YJ101,18/01/2021,654645,7404.54,CAPITAL,HOBSON & PORTER,101010
North East Lincolnshire Council,http://statistics.data.gov.uk/id/local-authority/00FC),Adult Services,Adult Services,Hps-Disabled Fac. Grants,Cap Grants To O/Side Sources,Cap Grants To O/Side Sources,YJ101,11/01/2021,653312,2885.33,CAPITAL,OBAM LIFT SERVICES LTD,112666
North East Lincolnshire Council,http://statistics.data.gov.uk/id/local-authority/00FC),Adult Services,Adult Services,Hps-Disabled Fac. Grants,Cap Grants To O/Side Sources,Cap Grants To O/Side Sources,YJ101,06/01/2021,653013,16505.37,CAPITAL,TSPRO LTD,146603
North East Lincolnshire Council,http://statistics.data.gov.uk/id/local-authority/00FC),Adult Services,Adult Services,Hps-Disabled Fac. Grants,Cap Grants To O/Side Sources,Cap Grants To O/Side Sources,YJ101,08/01/2021,653348,7178.78,CAPITAL,JC POMFRET CONSTRUCTION LTD,136453
North East Lincolnshire Council,http://statistics.data.gov.uk/id/local-authority/00FC),Adult Services,Adult Services,Hps-Disabled Fac. Grants,Cap Grants To O/Side Sources,Cap Grants To O/Side Sources,YJ101,18/01/2021,654129,8935.22,CAPITAL,JC POMFRET CONSTRUCTION LTD,136453
North East Lincolnshire Council,http://statistics.data.gov.uk/id/local-authority/00FC),Adult Services,Adult Services,Hps-Disabled Fac. Grants,Cap Grants To O/Side Sources,Cap Grants To O/Side Sources,YJ101,18/01/2021,654644,939.25,CAPITAL,TSPRO LTD,146603
North East Lincolnshire Council,http://statistics.data.gov.uk/id/local-authority/00FC),Adult Services,Adult Services,Hps-Disabled Fac. Grants,Cap Grants To O/Side Sources,Cap Grants To O/Side Sources,YJ101,11/01/2021,653257,8208.74,CAPITAL,TSPRO LTD,146603
North East Lincolnshire Council,http://statistics.data.gov.uk/id/local-authority/00FC),Adult Services,Adult Services,Hps-Disabled Fac. Grants,Cap Grants To O/Side Sources,Cap Grants To O/Side Sources,YJ101,11/01/2021,653260,11488.46,CAPITAL,TSPRO LTD,146603
North East Lincolnshire Council,http://statistics.data.gov.uk/id/local-authority/00FC),Adult Services,Adult Services,Hps-Disabled Fac. Grants,Cap Grants To O/Side Sources,Cap Grants To O/Side Sources,YJ101,29/01/2021,655998,10705.25,CAPITAL,ASKERTON HOMES LTD,145694
North East Lincolnshire Council,http://statistics.data.gov.uk/id/local-authority/00FC),Adult Services,Adult Services,Hps-Disabled Fac. Grants,Cap Grants To O/Side Sources,Cap Grants To O/Side Sources,YJ101,05/01/2021,652562,405,CAPITAL,STEPHEN HEYWOOD DESIGN LTD,132818
North East Lincolnshire Council,http://statistics.data.gov.uk/id/local-authority/00FC),Adult Services,Adult Services,Hps-Disabled Fac. Grants,Cap Grants To O/Side Sources,Cap Grants To O/Side Sources,YJ101,08/01/2021,653293,7803.31,CAPITAL,TOPCON BUILDING LTD,144162
North East Lincolnshire Council,http://statistics.data.gov.uk/id/local-authority/00FC),Adult Services,Adult Services,Hps-Disabled Fac. Grants,Cap Grants To O/Side Sources,Cap Grants To O/Side Sources,YJ101,08/01/2021,653388,1095,CAPITAL,DH2 SOLUTIONS LTD,131392
North East Lincolnshire Council,http://statistics.data.gov.uk/id/local-authority/00FC),Adult Services,Adult Services,Hps-Disabled Fac. Grants,Cap Grants To O/Side Sources,Cap Grants To O/Side Sources,YJ101,08/01/2021,653346,736.72,CAPITAL,F R TOWNSEND & CO LTD,104217
North East Lincolnshire Council,http://statistics.data.gov.uk/id/local-authority/00FC),Adult Services,Adult Services,Hps-Disabled Fac. Grants,Cap Grants To O/Side Sources,Cap Grants To O/Side Sources,YJ101,21/01/2021,654706,3805,CAPITAL,OBAM LIFT SERVICES LTD,112666
North East Lincolnshire Council,http://statistics.data.gov.uk/id/local-authority/00FC),Adult Services,Adult Services,Hps-Disabled Fac. Grants,Cap Grants To O/Side Sources,Cap Grants To O/Side Sources,YJ101,14/01/2021,653927,4344,CAPITAL,N LINCS & GOOLE HOSPITALS NHS FOUNDATION TRUS,111074
North East Lincolnshire Council,http://statistics.data.gov.uk/id/local-authority/00FC),Adult Services,Adult Services,Hps-Disabled Fac. Grants,Cap Grants To O/Side Sources,Cap Grants To O/Side Sources,YJ101,08/01/2021,653296,3475.9,CAPITAL,ENGIE SERVICES LTD,133267
North East Lincolnshire Council,http://statistics.data.gov.uk/id/local-authority/00FC),Adult Services,Adult Services,Hps-Disabled Fac. Grants,Cap Grants To O/Side Sources,Cap Grants To O/Side Sources,YJ101,18/01/2021,654651,5400,CAPITAL,OBAM LIFT SERVICES LTD,112666
North East Lincolnshire Council,http://statistics.data.gov.uk/id/local-authority/00FC),Children & Family Services,Ass Dir - Education,Access And Education Services,Contract Hire-Operating Leases,Vehicles - Contract Hire,JC101,13/01/2021,653875,654.6,REVENUE,REDACTED PERSONAL INFORMATION,REDACTED PERSONAL INFORMATION
North East Lincolnshire Council,http://statistics.data.gov.uk/id/local-authority/00FC),Children & Family Services,Ass Dir - Education,Access And Education Services,Contract Hire-Operating Leases,Vehicles - Contract Hire,JC101,19/01/2021,654728,250,REVENUE,LINKS TAXIS,100546
North East Lincolnshire Council,http://statistics.data.gov.uk/id/local-authority/00FC),Children & Family Services,Ass Dir - Education,Access And Education Services,Contract Hire-Operating Leases,Vehicles - Contract Hire,JC101,06/01/2021,652921,827,REVENUE,LINKS TAXIS,100546
North East Lincolnshire Council,http://statistics.data.gov.uk/id/local-authority/00FC),Children & Family Services,Ass Dir - Education,Access And Education Services,Contract Hire-Operating Leases,Vehicles - Contract Hire,JC101,06/01/2021,652928,662,REVENUE,LINKS TAXIS,100546
North East Lincolnshire Council,http://statistics.data.gov.uk/id/local-authority/00FC),Children & Family Services,Ass Dir - Education,Access And Education Services,Contract Hire-Operating Leases,Vehicles - Contract Hire,JC101,06/01/2021,652962,516,REVENUE,LINKS TAXIS,100546
North East Lincolnshire Council,http://statistics.data.gov.uk/id/local-authority/00FC),Children & Family Services,Ass Dir - Education,Access And Education Services,Contract Hire-Operating Leases,Vehicles - Contract Hire,JC101,05/01/2021,652613,260,REVENUE,GRIMSBY MINIBUSES LTD,121524
North East Lincolnshire Council,http://statistics.data.gov.uk/id/local-authority/00FC),Children & Family Services,Ass Dir - Education,Access And Education Services,Contract Hire-Operating Leases,Vehicles - Contract Hire,JC101,05/01/2021,652614,546,REVENUE,GRIMSBY MINIBUSES LTD,121524
North East Lincolnshire Council,http://statistics.data.gov.uk/id/local-authority/00FC),Children & Family Services,Ass Dir - Education,Access And Education Services,Contract Hire-Operating Leases,Vehicles - Contract Hire,JC101,28/01/2021,655920,894.2,REVENUE,GRIMSBY MINIBUSES LTD,121524
North East Lincolnshire Council,http://statistics.data.gov.uk/id/local-authority/00FC),Children & Family Services,Ass Dir - Education,Access And Education Services,Contract Hire-Operating Leases,Vehicles - Contract Hire,JC101,05/01/2021,652618,321.2,REVENUE,GRIMSBY MINIBUSES LTD,121524
North East Lincolnshire Council,http://statistics.data.gov.uk/id/local-authority/00FC),Children & Family Services,Ass Dir - Education,Access And Education Services,Contract Hire-Operating Leases,Vehicles - Contract Hire,JC101,28/01/2021,655919,846.6,REVENUE,GRIMSBY MINIBUSES LTD,121524
North East Lincolnshire Council,http://statistics.data.gov.uk/id/local-authority/00FC),Children & Family Services,Ass Dir - Education,Access And Education Services,Contract Hire-Operating Leases,Vehicles - Contract Hire,JC101,06/01/2021,652927,1150,REVENUE,LINKS TAXIS,100546
North East Lincolnshire Council,http://statistics.data.gov.uk/id/local-authority/00FC),Children & Family Services,Ass Dir - Education,Access And Education Services,Contract Hire-Operating Leases,Vehicles - Contract Hire,JC101,06/01/2021,652977,305.5,REVENUE,LINKS TAXIS,100546
North East Lincolnshire Council,http://statistics.data.gov.uk/id/local-authority/00FC),Children & Family Services,Ass Dir - Education,Access And Education Services,Contract Hire-Operating Leases,Vehicles - Contract Hire,JC101,04/01/2021,652415,277,REVENUE,WATAXIS,141297
North East Lincolnshire Council,http://statistics.data.gov.uk/id/local-authority/00FC),Children & Family Services,Ass Dir - Education,Access And Education Services,Contract Hire-Operating Leases,Vehicles - Contract Hire,JC101,06/01/2021,652948,588,REVENUE,LINKS TAXIS,100546
North East Lincolnshire Council,http://statistics.data.gov.uk/id/local-authority/00FC),Children & Family Services,Ass Dir - Education,Access And Education Services,Contract Hire-Operating Leases,Vehicles - Contract Hire,JC101,06/01/2021,652923,401,REVENUE,LINKS TAXIS,100546
North East Lincolnshire Council,http://statistics.data.gov.uk/id/local-authority/00FC),Children & Family Services,Ass Dir - Education,Access And Education Services,Contract Hire-Operating Leases,Vehicles - Contract Hire,JC101,28/01/2021,655921,1013.4,REVENUE,GRIMSBY MINIBUSES LTD,121524
North East Lincolnshire Council,http://statistics.data.gov.uk/id/local-authority/00FC),Children & Family Services,Ass Dir - Education,Access And Education Services,Private Contractors,Concessionary Fares,PH104,14/01/2021,653935,2142,REVENUE,STAGECOACH SERVICES,101404
North East Lincolnshire Council,http://statistics.data.gov.uk/id/local-authority/00FC),Children & Family Services,Ass Dir - Education,Access And Education Services,Contract Hire-Operating Leases,Vehicles - Contract Hire,JC101,19/01/2021,654766,806,REVENUE,LINKS TAXIS,100546
North East Lincolnshire Council,http://statistics.data.gov.uk/id/local-authority/00FC),Children & Family Services,Ass Dir - Education,Access And Education Services,Contract Hire-Operating Leases,Vehicles - Contract Hire,JC101,06/01/2021,652924,806,REVENUE,LINKS TAXIS,100546
North East Lincolnshire Council,http://statistics.data.gov.uk/id/local-authority/00FC),Children & Family Services,Ass Dir - Education,Access And Education Services,Contract Hire-Operating Leases,Vehicles - Contract Hire,JC101,19/01/2021,654745,754,REVENUE,LINKS TAXIS,100546
North East Lincolnshire Council,http://statistics.data.gov.uk/id/local-authority/00FC),Children & Family Services,Ass Dir - Education,Access And Education Services,Contract Hire-Operating Leases,Vehicles - Contract Hire,JC101,04/01/2021,652379,1495,REVENUE,AMVALE MEDICAL TRANSPORT LTD,130777
North East Lincolnshire Council,http://statistics.data.gov.uk/id/local-authority/00FC),Children & Family Services,Ass Dir - Education,Access And Education Services,Contract Hire-Operating Leases,Vehicles - Contract Hire,JC101,19/01/2021,654744,812,REVENUE,LINKS TAXIS,100546
North East Lincolnshire Council,http://statistics.data.gov.uk/id/local-authority/00FC),Children & Family Services,Ass Dir - Education,Access And Education Services,Contract Hire-Operating Leases,Vehicles - Contract Hire,JC101,04/01/2021,652460,392,REVENUE,COXONS CARS LIMITED,100578
North East Lincolnshire Council,http://statistics.data.gov.uk/id/local-authority/00FC),Children & Family Services,Ass Dir - Education,Access And Education Services,Private Contractors,Concessionary Fares,PH104,14/01/2021,653935,800,REVENUE,STAGECOACH SERVICES,101404
North East Lincolnshire Council,http://statistics.data.gov.uk/id/local-authority/00FC),Children & Family Services,Ass Dir - Education,Access And Education Services,Contract Hire-Operating Leases,Vehicles - Contract Hire,JC101,04/01/2021,652416,448,REVENUE,WATAXIS,141297
North East Lincolnshire Council,http://statistics.data.gov.uk/id/local-authority/00FC),Children & Family Services,Ass Dir - Education,Access And Education Services,Contract Hire-Operating Leases,Vehicles - Contract Hire,JC101,04/01/2021,652413,364,REVENUE,WATAXIS,141297
North East Lincolnshire Council,http://statistics.data.gov.uk/id/local-authority/00FC),Children & Family Services,Ass Dir - Education,Access And Education Services,Contract Hire-Operating Leases,Vehicles - Contract Hire,JC101,04/01/2021,652411,315,REVENUE,WATAXIS,141297
North East Lincolnshire Council,http://statistics.data.gov.uk/id/local-authority/00FC),Children & Family Services,Ass Dir - Education,Access And Education Services,Contract Hire-Operating Leases,Vehicles - Contract Hire,JC101,28/01/2021,655993,990,REVENUE,TAXIS 4U,144556
North East Lincolnshire Council,http://statistics.data.gov.uk/id/local-authority/00FC),Children & Family Services,Ass Dir - Education,Access And Education Services,Contract Hire-Operating Leases,Vehicles - Contract Hire,JC101,28/01/2021,655994,850,REVENUE,TAXIS 4U,144556
North East Lincolnshire Council,http://statistics.data.gov.uk/id/local-authority/00FC),Children & Family Services,Ass Dir - Education,Access And Education Services,Contract Hire-Operating Leases,Vehicles - Contract Hire,JC101,04/01/2021,652420,679,REVENUE,WATAXIS,141297
North East Lincolnshire Council,http://statistics.data.gov.uk/id/local-authority/00FC),Children & Family Services,Ass Dir - Education,Access And Education Services,Contract Hire-Operating Leases,Vehicles - Contract Hire,JC101,04/01/2021,652406,376.81,REVENUE,WATAXIS,141297
North East Lincolnshire Council,http://statistics.data.gov.uk/id/local-authority/00FC),Children & Family Services,Ass Dir - Education,Access And Education Services,Contract Hire-Operating Leases,Vehicles - Contract Hire,JC101,08/01/2021,653285,465,REVENUE,DRS TAXI SERVICE,141083
North East Lincolnshire Council,http://statistics.data.gov.uk/id/local-authority/00FC),Children & Family Services,Ass Dir - Education,Access And Education Services,Contract Hire-Operating Leases,Vehicles - Contract Hire,JC101,04/01/2021,652417,530,REVENUE,WATAXIS,141297
North East Lincolnshire Council,http://statistics.data.gov.uk/id/local-authority/00FC),Children & Family Services,Ass Dir - Education,Access And Education Services,Contract Hire-Operating Leases,Vehicles - Contract Hire,JC101,04/01/2021,652415,277,REVENUE,WATAXIS,141297
North East Lincolnshire Council,http://statistics.data.gov.uk/id/local-authority/00FC),Children & Family Services,Ass Dir - Education,Access And Education Services,Contract Hire-Operating Leases,Vehicles - Contract Hire,JC101,04/01/2021,652370,384.25,REVENUE,WATAXIS,141297
North East Lincolnshire Council,http://statistics.data.gov.uk/id/local-authority/00FC),Children & Family Services,Ass Dir - Education,Access And Education Services,Contract Hire-Operating Leases,Vehicles - Contract Hire,JC101,04/01/2021,652418,406,REVENUE,WATAXIS,141297
North East Lincolnshire Council,http://statistics.data.gov.uk/id/local-authority/00FC),Children & Family Services,Ass Dir - Education,Access And Education Services,Contract Hire-Operating Leases,Vehicles - Contract Hire,JC101,04/01/2021,652421,611.1,REVENUE,WATAXIS,141297
North East Lincolnshire Council,http://statistics.data.gov.uk/id/local-authority/00FC),Children & Family Services,Ass Dir - Education,Access And Education Services,Contract Hire-Operating Leases,Vehicles - Contract Hire,JC101,04/01/2021,652374,1666,REVENUE,AMVALE MEDICAL TRANSPORT LTD,130777
North East Lincolnshire Council,http://statistics.data.gov.uk/id/local-authority/00FC),Children & Family Services,Ass Dir - Education,Access And Education Services,Contract Hire-Operating Leases,Vehicles - Contract Hire,JC101,06/01/2021,652946,705.6,REVENUE,LINKS TAXIS,100546
North East Lincolnshire Council,http://statistics.data.gov.uk/id/local-authority/00FC),Children & Family Services,Ass Dir - Education,Access And Education Services,Contract Hire-Operating Leases,Vehicles - Contract Hire,JC101,04/01/2021,652372,2156,REVENUE,AMVALE MEDICAL TRANSPORT LTD,130777
North East Lincolnshire Council,http://statistics.data.gov.uk/id/local-authority/00FC),Children & Family Services,Ass Dir - Education,Access And Education Services,Contract Hire-Operating Leases,Vehicles - Contract Hire,JC101,04/01/2021,652373,1806,REVENUE,AMVALE MEDICAL TRANSPORT LTD,130777
North East Lincolnshire Council,http://statistics.data.gov.uk/id/local-authority/00FC),Children & Family Services,Ass Dir - Education,Access And Education Services,Contract Hire-Operating Leases,Vehicles - Contract Hire,JC101,04/01/2021,652380,4200,REVENUE,AMVALE MEDICAL TRANSPORT LTD,130777
North East Lincolnshire Council,http://statistics.data.gov.uk/id/local-authority/00FC),Children & Family Services,Ass Dir - Education,Access And Education Services,Contract Hire-Operating Leases,Vehicles - Contract Hire,JC101,04/01/2021,652375,2716,REVENUE,AMVALE MEDICAL TRANSPORT LTD,130777
North East Lincolnshire Council,http://statistics.data.gov.uk/id/local-authority/00FC),Children & Family Services,Ass Dir - Education,Access And Education Services,Contract Hire-Operating Leases,Vehicles - Contract Hire,JC101,04/01/2021,652398,3074,REVENUE,AMVALE MEDICAL TRANSPORT LTD,130777
North East Lincolnshire Council,http://statistics.data.gov.uk/id/local-authority/00FC),Children & Family Services,Ass Dir - Education,Access And Education Services,Contract Hire-Operating Leases,Vehicles - Contract Hire,JC101,04/01/2021,652377,3010,REVENUE,AMVALE MEDICAL TRANSPORT LTD,130777
North East Lincolnshire Council,http://statistics.data.gov.uk/id/local-authority/00FC),Children & Family Services,Ass Dir - Education,Access And Education Services,Contract Hire-Operating Leases,Vehicles - Contract Hire,JC101,04/01/2021,652378,1666,REVENUE,AMVALE MEDICAL TRANSPORT LTD,130777
North East Lincolnshire Council,http://statistics.data.gov.uk/id/local-authority/00FC),Children & Family Services,Ass Dir - Education,Access And Education Services,Contract Hire-Operating Leases,Vehicles - Contract Hire,JC101,04/01/2021,652376,3038,REVENUE,AMVALE MEDICAL TRANSPORT LTD,130777
North East Lincolnshire Council,http://statistics.data.gov.uk/id/local-authority/00FC),Children & Family Services,Ass Dir - Education,Access And Education Services,Contract Hire-Operating Leases,Vehicles - Contract Hire,JC101,05/01/2021,652611,1240,REVENUE,REDACTED PERSONAL INFORMATION,REDACTED PERSONAL INFORMATION
North East Lincolnshire Council,http://statistics.data.gov.uk/id/local-authority/00FC),Children & Family Services,Ass Dir - Education,Access And Education Services,Contract Hire-Operating Leases,Vehicles - Contract Hire,JC101,28/01/2021,655922,1077.12,REVENUE,GRIMSBY MINIBUSES LTD,121524
North East Lincolnshire Council,http://statistics.data.gov.uk/id/local-authority/00FC),Children & Family Services,Ass Dir - Education,Access And Education Services,Contract Hire-Operating Leases,Vehicles - Contract Hire,JC101,28/01/2021,655923,1267.2,REVENUE,GRIMSBY MINIBUSES LTD,121524
North East Lincolnshire Council,http://statistics.data.gov.uk/id/local-authority/00FC),Children & Family Services,Ass Dir - Education,Access And Education Services,Contract Hire-Operating Leases,Vehicles - Contract Hire,JC101,28/01/2021,655924,2385.1,REVENUE,GRIMSBY MINIBUSES LTD,121524
North East Lincolnshire Council,http://statistics.data.gov.uk/id/local-authority/00FC),Children & Family Services,Ass Dir - Education,Access And Education Services,Contract Hire-Operating Leases,Vehicles - Contract Hire,JC101,19/01/2021,654781,742,REVENUE,AA RADIO CARS LTD,101222
North East Lincolnshire Council,http://statistics.data.gov.uk/id/local-authority/00FC),Children & Family Services,Ass Dir - Education,Access And Education Services,Contract Hire-Operating Leases,Vehicles - Contract Hire,JC101,19/01/2021,654780,396,REVENUE,AA RADIO CARS LTD,101222
North East Lincolnshire Council,http://statistics.data.gov.uk/id/local-authority/00FC),Children & Family Services,Ass Dir - Education,Access And Education Services,Contract Hire-Operating Leases,Vehicles - Contract Hire,JC101,19/01/2021,654783,470,REVENUE,AA RADIO CARS LTD,101222
North East Lincolnshire Council,http://statistics.data.gov.uk/id/local-authority/00FC),Children & Family Services,Ass Dir - Education,Access And Education Services,Contract Hire-Operating Leases,Vehicles - Contract Hire,JC101,19/01/2021,654782,425,REVENUE,AA RADIO CARS LTD,101222
North East Lincolnshire Council,http://statistics.data.gov.uk/id/local-authority/00FC),Children & Family Services,Ass Dir - Education,Access And Education Services,Contract Hire-Operating Leases,Vehicles - Contract Hire,JC101,19/01/2021,654784,285,REVENUE,AA RADIO CARS LTD,101222
North East Lincolnshire Council,http://statistics.data.gov.uk/id/local-authority/00FC),Children & Family Services,Ass Dir - Education,Access And Education Services,Contract Hire-Operating Leases,Vehicles - Contract Hire,JC101,04/01/2021,652390,672,REVENUE,WATAXIS,141297
North East Lincolnshire Council,http://statistics.data.gov.uk/id/local-authority/00FC),Children & Family Services,Ass Dir - Education,Access And Education Services,Contract Hire-Operating Leases,Vehicles - Contract Hire,JC101,04/01/2021,652412,672,REVENUE,WATAXIS,141297
North East Lincolnshire Council,http://statistics.data.gov.uk/id/local-authority/00FC),Children & Family Services,Ass Dir - Education,Access And Education Services,Contract Hire-Operating Leases,Vehicles - Contract Hire,JC101,04/01/2021,652408,812,REVENUE,WATAXIS,141297
North East Lincolnshire Council,http://statistics.data.gov.uk/id/local-authority/00FC),Children & Family Services,Ass Dir - Education,Access And Education Services,Contract Hire-Operating Leases,Vehicles - Contract Hire,JC101,19/01/2021,654763,1365,REVENUE,LINKS TAXIS,100546
North East Lincolnshire Council,http://statistics.data.gov.uk/id/local-authority/00FC),Children & Family Services,Ass Dir - Education,Access And Education Services,Contract Hire-Operating Leases,Vehicles - Contract Hire,JC101,06/01/2021,652929,1050,REVENUE,LINKS TAXIS,100546
North East Lincolnshire Council,http://statistics.data.gov.uk/id/local-authority/00FC),Children & Family Services,Ass Dir - Education,Access And Education Services,Contract Hire-Operating Leases,Vehicles - Contract Hire,JC101,06/01/2021,652961,448,REVENUE,LINKS TAXIS,100546
North East Lincolnshire Council,http://statistics.data.gov.uk/id/local-authority/00FC),Children & Family Services,Ass Dir - Education,Access And Education Services,Contract Hire-Operating Leases,Vehicles - Contract Hire,JC101,06/01/2021,652931,560,REVENUE,LINKS TAXIS,100546
North East Lincolnshire Council,http://statistics.data.gov.uk/id/local-authority/00FC),Children & Family Services,Ass Dir - Education,Access And Education Services,Contract Hire-Operating Leases,Vehicles - Contract Hire,JC101,19/01/2021,654764,588,REVENUE,LINKS TAXIS,100546
North East Lincolnshire Council,http://statistics.data.gov.uk/id/local-authority/00FC),Children & Family Services,Ass Dir - Education,Access And Education Services,Contract Hire-Operating Leases,Vehicles - Contract Hire,JC101,19/01/2021,654765,962,REVENUE,LINKS TAXIS,100546
North East Lincolnshire Council,http://statistics.data.gov.uk/id/local-authority/00FC),Children & Family Services,Ass Dir - Education,Access And Education Services,Contract Hire-Operating Leases,Vehicles - Contract Hire,JC101,06/01/2021,652926,952,REVENUE,LINKS TAXIS,100546
North East Lincolnshire Council,http://statistics.data.gov.uk/id/local-authority/00FC),Children & Family Services,Ass Dir - Education,Access And Education Services,Contract Hire-Operating Leases,Vehicles - Contract Hire,JC101,06/01/2021,652981,448,REVENUE,LINKS TAXIS,100546
North East Lincolnshire Council,http://statistics.data.gov.uk/id/local-authority/00FC),Children & Family Services,Ass Dir - Education,Access And Education Services,Contract Hire-Operating Leases,Vehicles - Contract Hire,JC101,06/01/2021,652976,585,REVENUE,LINKS TAXIS,100546
North East Lincolnshire Council,http://statistics.data.gov.uk/id/local-authority/00FC),Children & Family Services,Ass Dir - Education,Access And Education Services,Contract Hire-Operating Leases,Vehicles - Contract Hire,JC101,06/01/2021,652982,495,REVENUE,LINKS TAXIS,100546
North East Lincolnshire Council,http://statistics.data.gov.uk/id/local-authority/00FC),Children & Family Services,Ass Dir - Education,Access And Education Services,Contract Hire-Operating Leases,Vehicles - Contract Hire,JC101,06/01/2021,652966,630,REVENUE,LINKS TAXIS,100546
North East Lincolnshire Council,http://statistics.data.gov.uk/id/local-authority/00FC),Children & Family Services,Ass Dir - Education,Access And Education Services,Contract Hire-Operating Leases,Vehicles - Contract Hire,JC101,06/01/2021,652960,588,REVENUE,LINKS TAXIS,100546
North East Lincolnshire Council,http://statistics.data.gov.uk/id/local-authority/00FC),Children & Family Services,Ass Dir - Education,Access And Education Services,Contract Hire-Operating Leases,Vehicles - Contract Hire,JC101,06/01/2021,652899,693,REVENUE,LINKS TAXIS,100546
North East Lincolnshire Council,http://statistics.data.gov.uk/id/local-authority/00FC),Children & Family Services,Ass Dir - Education,Access And Education Services,Contract Hire-Operating Leases,Vehicles - Contract Hire,JC101,06/01/2021,652978,624,REVENUE,LINKS TAXIS,100546
North East Lincolnshire Council,http://statistics.data.gov.uk/id/local-authority/00FC),Children & Family Services,Ass Dir - Education,Access And Education Services,Contract Hire-Operating Leases,Vehicles - Contract Hire,JC101,06/01/2021,652944,651,REVENUE,LINKS TAXIS,100546
North East Lincolnshire Council,http://statistics.data.gov.uk/id/local-authority/00FC),Children & Family Services,Ass Dir - Education,Access And Education Services,Contract Hire-Operating Leases,Vehicles - Contract Hire,JC101,06/01/2021,652968,806,REVENUE,LINKS TAXIS,100546
North East Lincolnshire Council,http://statistics.data.gov.uk/id/local-authority/00FC),Children & Family Services,Ass Dir - Education,Access And Education Services,Contract Hire-Operating Leases,Vehicles - Contract Hire,JC101,19/01/2021,654767,560,REVENUE,LINKS TAXIS,100546
North East Lincolnshire Council,http://statistics.data.gov.uk/id/local-authority/00FC),Children & Family Services,Ass Dir - Education,Access And Education Services,Contract Hire-Operating Leases,Vehicles - Contract Hire,JC101,06/01/2021,652977,305.5,REVENUE,LINKS TAXIS,100546
North East Lincolnshire Council,http://statistics.data.gov.uk/id/local-authority/00FC),Children & Family Services,Ass Dir - Education,Access And Education Services,Contract Hire-Operating Leases,Vehicles - Contract Hire,JC101,06/01/2021,652923,401,REVENUE,LINKS TAXIS,100546
North East Lincolnshire Council,http://statistics.data.gov.uk/id/local-authority/00FC),Children & Family Services,Ass Dir - Education,Access And Education Services,Contract Hire-Operating Leases,Vehicles - Contract Hire,JC101,06/01/2021,652965,518,REVENUE,LINKS TAXIS,100546
North East Lincolnshire Council,http://statistics.data.gov.uk/id/local-authority/00FC),Children & Family Services,Ass Dir - Education,Access And Education Services,Contract Hire-Operating Leases,Vehicles - Contract Hire,JC101,06/01/2021,652930,2578.5,REVENUE,LINKS TAXIS,100546
North East Lincolnshire Council,http://statistics.data.gov.uk/id/local-authority/00FC),Children & Family Services,Ass Dir - Education,Access And Education Services,Contract Hire-Operating Leases,Vehicles - Contract Hire,JC101,19/01/2021,654746,416,REVENUE,LINKS TAXIS,100546
North East Lincolnshire Council,http://statistics.data.gov.uk/id/local-authority/00FC),Children & Family Services,Ass Dir - Education,Access And Education Services,Contract Hire-Operating Leases,Vehicles - Contract Hire,JC101,21/01/2021,655164,1474,REVENUE,HANSONS AIRPORT EXPRESS,111879
North East Lincolnshire Council,http://statistics.data.gov.uk/id/local-authority/00FC),Children & Family Services,Ass Dir - Education,Access And Education Services,Contract Hire-Operating Leases,Vehicles - Contract Hire,JC101,21/01/2021,655163,1474,REVENUE,HANSONS AIRPORT EXPRESS,111879
North East Lincolnshire Council,http://statistics.data.gov.uk/id/local-authority/00FC),Children & Family Services,Ass Dir - Education,Access And Education Services,Contract Hire-Operating Leases,Vehicles - Contract Hire,JC101,04/01/2021,652452,1700,REVENUE,THE BUS RUN,101522
North East Lincolnshire Council,http://statistics.data.gov.uk/id/local-authority/00FC),Children & Family Services,Ass Dir - Education,Access And Education Services,Contract Hire-Operating Leases,Vehicles - Contract Hire,JC101,21/01/2021,655162,1322,REVENUE,REDACTED PERSONAL INFORMATION,REDACTED PERSONAL INFORMATION
North East Lincolnshire Council,http://statistics.data.gov.uk/id/local-authority/00FC),Children & Family Services,Ass Dir - Education,Access And Education Services,Contract Hire-Operating Leases,Vehicles - Contract Hire,JC101,04/01/2021,652407,2380,REVENUE,WATAXIS,141297
North East Lincolnshire Council,http://statistics.data.gov.uk/id/local-authority/00FC),Children & Family Services,Ass Dir - Education,Access And Education Services,Contract Hire-Operating Leases,Vehicles - Contract Hire,JC101,04/01/2021,652369,1555.5,REVENUE,WATAXIS,141297
North East Lincolnshire Council,http://statistics.data.gov.uk/id/local-authority/00FC),Children & Family Services,Ass Dir - Education,Access And Education Services,Contract Hire-Operating Leases,Vehicles - Contract Hire,JC101,04/01/2021,652419,2080,REVENUE,WATAXIS,141297
North East Lincolnshire Council,http://statistics.data.gov.uk/id/local-authority/00FC),Children & Family Services,Ass Dir - Education,Access And Education Services,Contract Hire-Operating Leases,Vehicles - Contract Hire,JC101,19/01/2021,654741,1596,REVENUE,LINKS TAXIS,100546
North East Lincolnshire Council,http://statistics.data.gov.uk/id/local-authority/00FC),Children & Family Services,Ass Dir - Education,Access And Education Services,Contract Hire-Operating Leases,Vehicles - Contract Hire,JC101,06/01/2021,652922,2173.5,REVENUE,LINKS TAXIS,100546
North East Lincolnshire Council,http://statistics.data.gov.uk/id/local-authority/00FC),Children & Family Services,Ass Dir - Education,Access And Education Services,Contract Hire-Operating Leases,Vehicles - Contract Hire,JC101,06/01/2021,652969,1597.2,REVENUE,LINKS TAXIS,100546
North East Lincolnshire Council,http://statistics.data.gov.uk/id/local-authority/00FC),Children & Family Services,Ass Dir - Education,Access And Education Services,Contract Hire-Operating Leases,Vehicles - Contract Hire,JC101,06/01/2021,652925,2015,REVENUE,LINKS TAXIS,100546
North East Lincolnshire Council,http://statistics.data.gov.uk/id/local-authority/00FC),Children & Family Services,Ass Dir - Education,Access And Education Services,Contract Hire-Operating Leases,Vehicles - Contract Hire,JC101,19/01/2021,654743,1564.34,REVENUE,LINKS TAXIS,100546
North East Lincolnshire Council,http://statistics.data.gov.uk/id/local-authority/00FC),Children & Family Services,Ass Dir - Education,Access And Education Services,Contract Hire-Operating Leases,Vehicles - Contract Hire,JC101,06/01/2021,652963,1405.6,REVENUE,LINKS TAXIS,100546
North East Lincolnshire Council,http://statistics.data.gov.uk/id/local-authority/00FC),Children & Family Services,Ass Dir - Education,Access And Education Services,Contract Hire-Operating Leases,Vehicles - Contract Hire,JC101,06/01/2021,652979,458.15,REVENUE,LINKS TAXIS,100546
North East Lincolnshire Council,http://statistics.data.gov.uk/id/local-authority/00FC),Children & Family Services,Ass Dir - Education,Access And Education Services,Contract Hire-Operating Leases,Vehicles - Contract Hire,JC101,06/01/2021,652964,1815.2,REVENUE,LINKS TAXIS,100546
North East Lincolnshire Council,http://statistics.data.gov.uk/id/local-authority/00FC),Children & Family Services,Ass Dir - Education,Access And Education Services,Contract Hire-Operating Leases,Vehicles - Contract Hire,JC101,04/01/2021,652453,560,REVENUE,COXONS CARS LIMITED,100578
North East Lincolnshire Council,http://statistics.data.gov.uk/id/local-authority/00FC),Children & Family Services,Ass Dir - Education,Access And Education Services,Contract Hire-Operating Leases,Vehicles - Contract Hire,JC101,04/01/2021,652457,452,REVENUE,COXONS CARS LIMITED,100578
North East Lincolnshire Council,http://statistics.data.gov.uk/id/local-authority/00FC),Children & Family Services,Ass Dir - Education,Access And Education Services,Contract Hire-Operating Leases,Vehicles - Contract Hire,JC101,04/01/2021,652455,532,REVENUE,COXONS CARS LIMITED,100578
North East Lincolnshire Council,http://statistics.data.gov.uk/id/local-authority/00FC),Children & Family Services,Ass Dir - Education,Access And Education Services,Contract Hire-Operating Leases,Vehicles - Contract Hire,JC101,04/01/2021,652459,700,REVENUE,COXONS CARS LIMITED,100578
North East Lincolnshire Council,http://statistics.data.gov.uk/id/local-authority/00FC),Children & Family Services,Ass Dir - Education,Access And Education Services,Contract Hire-Operating Leases,Vehicles - Contract Hire,JC101,04/01/2021,652456,312,REVENUE,COXONS CARS LIMITED,100578
North East Lincolnshire Council,http://statistics.data.gov.uk/id/local-authority/00FC),Children & Family Services,Ass Dir - Education,Access And Education Services,Contract Hire-Operating Leases,Vehicles - Contract Hire,JC101,04/01/2021,652451,262.8,REVENUE,COXONS CARS LIMITED,100578
North East Lincolnshire Council,http://statistics.data.gov.uk/id/local-authority/00FC),Children & Family Services,Ass Dir - Education,Access And Education Services,Contract Hire-Operating Leases,Vehicles - Contract Hire,JC101,28/01/2021,655917,1303.5,REVENUE,GRIMSBY MINIBUSES LTD,121524
North East Lincolnshire Council,http://statistics.data.gov.uk/id/local-authority/00FC),Children & Family Services,Ass Dir - Education,Access And Education Services,Contract Hire-Operating Leases,Vehicles - Contract Hire,JC101,28/01/2021,655953,369.3,REVENUE,GRIMSBY MINIBUSES LTD,121524
North East Lincolnshire Council,http://statistics.data.gov.uk/id/local-authority/00FC),Children & Family Services,Ass Dir - Education,Access And Education Services,Contract Hire-Operating Leases,Vehicles - Contract Hire,JC101,04/01/2021,652414,704,REVENUE,WATAXIS,141297
North East Lincolnshire Council,http://statistics.data.gov.uk/id/local-authority/00FC),Children & Family Services,Ass Dir - Education,Access And Education Services,Contract Hire-Operating Leases,Vehicles - Contract Hire,JC101,06/01/2021,652900,1372,REVENUE,LINKS TAXIS,100546
North East Lincolnshire Council,http://statistics.data.gov.uk/id/local-authority/00FC),Children & Family Services,Ass Dir - Education,Access And Education Services,Contract Hire-Operating Leases,Vehicles - Contract Hire,JC101,04/01/2021,652382,820,REVENUE,AMVALE LIMITED,101030
North East Lincolnshire Council,http://statistics.data.gov.uk/id/local-authority/00FC),Children & Family Services,Ass Dir - Education,Access And Education Services,Contract Hire-Operating Leases,Vehicles - Contract Hire,JC101,04/01/2021,652383,820,REVENUE,AMVALE LIMITED,101030
North East Lincolnshire Council,http://statistics.data.gov.uk/id/local-authority/00FC),Children & Family Services,Ass Dir - Education,Access And Education Services,Contract Hire-Operating Leases,Vehicles - Contract Hire,JC101,04/01/2021,652400,820,REVENUE,AMVALE LIMITED,101030
North East Lincolnshire Council,http://statistics.data.gov.uk/id/local-authority/00FC),Children & Family Services,Ass Dir - Education,Access And Education Services,Contract Hire-Operating Leases,Vehicles - Contract Hire,JC101,21/01/2021,655363,820,REVENUE,AMVALE LIMITED,101030
North East Lincolnshire Council,http://statistics.data.gov.uk/id/local-authority/00FC),Children & Family Services,Ass Dir - Education,Access And Education Services,Contract Hire-Operating Leases,Vehicles - Contract Hire,JC101,21/01/2021,655364,820,REVENUE,AMVALE LIMITED,101030
North East Lincolnshire Council,http://statistics.data.gov.uk/id/local-authority/00FC),Children & Family Services,Ass Dir - Education,Access And Education Services,Contract Hire-Operating Leases,Vehicles - Contract Hire,JC101,21/01/2021,655365,820,REVENUE,AMVALE LIMITED,101030
North East Lincolnshire Council,http://statistics.data.gov.uk/id/local-authority/00FC),Children & Family Services,Ass Dir - Education,Access And Education Services,Contract Hire-Operating Leases,Vehicles - Contract Hire,JC101,21/01/2021,655333,1472,REVENUE,NORTH LINCOLNSHIRE COUNCIL,143011
North East Lincolnshire Council,http://statistics.data.gov.uk/id/local-authority/00FC),Children & Family Services,Ass Dir - Education,Access And Education Services,Contract Hire-Operating Leases,Vehicles - Contract Hire,JC101,04/01/2021,652454,355,REVENUE,COXONS CARS LIMITED,100578
North East Lincolnshire Council,http://statistics.data.gov.uk/id/local-authority/00FC),Children & Family Services,Ass Dir - Education,Access And Education Services,Direct Employee Expenses,Agency Supply Teachers,EA104,12/01/2021,653573,660,REVENUE,SUE BAKER,103216
North East Lincolnshire Council,http://statistics.data.gov.uk/id/local-authority/00FC),Children & Family Services,Ass Dir - Education,Access And Education Services,Direct Employee Expenses,Agency Supply Teachers,EA104,06/01/2021,653050,1100,REVENUE,MATT GIDLOW,103864
North East Lincolnshire Council,http://statistics.data.gov.uk/id/local-authority/00FC),Children & Family Services,Ass Dir - Education,Access And Education Services,Direct Employee Expenses,Agency Supply Teachers,EA104,05/01/2021,652484,720,REVENUE,MRS RUTH HART,101928
North East Lincolnshire Council,http://statistics.data.gov.uk/id/local-authority/00FC),Children & Family Services,Ass Dir - Education,Access And Education Services,Direct Employee Expenses,Agency Supply Teachers,EA104,08/01/2021,653356,720,REVENUE,ZOE EVERATT,106842
North East Lincolnshire Council,http://statistics.data.gov.uk/id/local-authority/00FC),Children & Family Services,Ass Dir - Education,Access And Education Services,Direct Employee Expenses,Agency Supply Teachers,EA104,14/01/2021,654445,2450,REVENUE,JACQUELINE KIRWIN,107311
North East Lincolnshire Council,http://statistics.data.gov.uk/id/local-authority/00FC),Children & Family Services,Ass Dir - Education,Access And Education Services,Direct Employee Expenses,Agency Supply Teachers,EA104,28/01/2021,655798,960,REVENUE,ZOE EVERATT,106842
North East Lincolnshire Council,http://statistics.data.gov.uk/id/local-authority/00FC),Children & Family Services,Ass Dir - Education,Access And Education Services,Direct Employee Expenses,Agency Supply Teachers,EA104,21/01/2021,655121,600,REVENUE,JOANNE TOWNELL,103709
North East Lincolnshire Council,http://statistics.data.gov.uk/id/local-authority/00FC),Children & Family Services,Ass Dir - Education,Access And Education Services,Direct Employee Expenses,Agency Supply Teachers,EA104,18/01/2021,654578,300,REVENUE,OLIVIA TOWNELL,147667
North East Lincolnshire Council,http://statistics.data.gov.uk/id/local-authority/00FC),Children & Family Services,Ass Dir - Education,Access And Education Services,Direct Employee Expenses,Agency Supply Teachers,EA104,25/01/2021,655563,600,REVENUE,ADRIAN CLARKE,108479
North East Lincolnshire Council,http://statistics.data.gov.uk/id/local-authority/00FC),Children & Family Services,Ass Dir - Education,Access And Education Services,Direct Employee Expenses,Agency Supply Teachers,EA104,21/01/2021,655232,500,REVENUE,KIM GOODEY,134788
North East Lincolnshire Council,http://statistics.data.gov.uk/id/local-authority/00FC),Children & Family Services,Ass Dir - Education,Access And Education Services,Direct Employee Expenses,Agency Supply Teachers,EA104,20/01/2021,655147,4900,REVENUE,MIKE SELLARS,102161
North East Lincolnshire Council,http://statistics.data.gov.uk/id/local-authority/00FC),Children & Family Services,Ass Dir - Education,Access And Education Services,Direct Employee Expenses,Agency Supply Teachers,EA104,21/01/2021,655120,300,REVENUE,JOANNE TOWNELL,103709
North East Lincolnshire Council,http://statistics.data.gov.uk/id/local-authority/00FC),Children & Family Services,Ass Dir - Education,Access And Education Services,Direct Employee Expenses,Agency Supply Teachers,EA104,21/01/2021,655118,300,REVENUE,JOANNE TOWNELL,103709
North East Lincolnshire Council,http://statistics.data.gov.uk/id/local-authority/00FC),Children & Family Services,Ass Dir - Education,Access And Education Services,Indirect Employee Expenses,Staff Training,EB122,04/01/2021,652485,679,REVENUE,CHILD PROTECTION COMPANY,147979
North East Lincolnshire Council,http://statistics.data.gov.uk/id/local-authority/00FC),Children & Family Services,Ass Dir - Education,Access And Education Services,Print Stationery / Gen Off Exp,Publicity,LD105,18/01/2021,654576,600,REVENUE,EMMA MIDDLETON,105103
North East Lincolnshire Council,http://statistics.data.gov.uk/id/local-authority/00FC),Children & Family Services,Ass Dir - Education,Access And Education Services,Print Stationery / Gen Off Exp,Publicity,LD105,22/01/2021,655444,600,REVENUE,EMMA MIDDLETON,105103
North East Lincolnshire Council,http://statistics.data.gov.uk/id/local-authority/00FC),Children & Family Services,Ass Dir - Education,Access And Education Services,Other Agencies,Other,PJ121,11/01/2021,653409,630,REVENUE,EMMA MIDDLETON,105103
North East Lincolnshire Council,http://statistics.data.gov.uk/id/local-authority/00FC),Children & Family Services,Ass Dir - Education,Access And Education Services,Other Agencies,Other,PJ121,12/01/2021,653570,4200,REVENUE,SUE BAKER,103216
North East Lincolnshire Council,http://statistics.data.gov.uk/id/local-authority/00FC),Children & Family Services,Ass Dir - Education,Access And Education Services,Other Agencies,Other,PJ121,18/01/2021,654577,420,REVENUE,EMMA MIDDLETON,105103
North East Lincolnshire Council,http://statistics.data.gov.uk/id/local-authority/00FC),Children & Family Services,Ass Dir - Education,Access And Education Services,Other Agencies,Other,PJ121,22/01/2021,655443,420,REVENUE,EMMA MIDDLETON,105103
North East Lincolnshire Council,http://statistics.data.gov.uk/id/local-authority/00FC),Children & Family Services,Ass Dir - Education,Access And Education Services,Other Agencies,Performers,PJ101,11/01/2021,653533,1500,REVENUE,JOSIE ANNE CRESCENT MOON (JOSIE MOON),105805
North East Lincolnshire Council,http://statistics.data.gov.uk/id/local-authority/00FC),Children & Family Services,Ass Dir - Education,Access And Education Services,Other Agencies,Tuition,PJ112,12/01/2021,873449,450,REVENUE,REDACTED PERSONAL INFORMATION,REDACTED PERSONAL INFORMATION
North East Lincolnshire Council,http://statistics.data.gov.uk/id/local-authority/00FC),Children & Family Services,Ass Dir - Education,Access And Education Services,Other Agencies,Tuition,PJ112,26/01/2021,883494,250,REVENUE,REDACTED PERSONAL INFORMATION,REDACTED PERSONAL INFORMATION
North East Lincolnshire Council,http://statistics.data.gov.uk/id/local-authority/00FC),Children & Family Services,Ass Dir - Education,Access And Education Services,Other Agencies,Tuition,PJ112,29/01/2021,656243,380,REVENUE,EDUCLA,147507
North East Lincolnshire Council,http://statistics.data.gov.uk/id/local-authority/00FC),Children & Family Services,Ass Dir - Education,Access And Education Services,Other Agencies,Tuition,PJ112,08/01/2021,653300,400,REVENUE,SUE BURNHAM,145697
North East Lincolnshire Council,http://statistics.data.gov.uk/id/local-authority/00FC),Children & Family Services,Ass Dir - Education,Access And Education Services,Other Agencies,Tuition,PJ112,11/01/2021,653054,766.5,REVENUE,AA RADIO CARS LTD,101222
North East Lincolnshire Council,http://statistics.data.gov.uk/id/local-authority/00FC),Children & Family Services,Ass Dir - Education,Access And Education Services,Other Agencies,Tuition,PJ112,08/01/2021,653341,825,REVENUE,TARGETED PROVISION LTD,146662
North East Lincolnshire Council,http://statistics.data.gov.uk/id/local-authority/00FC),Children & Family Services,Ass Dir - Education,Access And Education Services,Other Agencies,Tuition,PJ112,08/01/2021,653342,825,REVENUE,TARGETED PROVISION LTD,146662
North East Lincolnshire Council,http://statistics.data.gov.uk/id/local-authority/00FC),Children & Family Services,Ass Dir - Education,Access And Education Services,Other Agencies,Tuition,PJ112,11/01/2021,653358,1218.75,REVENUE,LEARNING4LIFE-GY-CIC,144120
North East Lincolnshire Council,http://statistics.data.gov.uk/id/local-authority/00FC),Children & Family Services,Ass Dir - Education,Access And Education Services,Other Agencies,Tuition,PJ112,11/01/2021,653360,3656.25,REVENUE,LEARNING4LIFE-GY-CIC,144120
North East Lincolnshire Council,http://statistics.data.gov.uk/id/local-authority/00FC),Children & Family Services,Ass Dir - Education,Access And Education Services,Other Agencies,Tuition,PJ112,19/01/2021,654354,495,REVENUE,TARGETED PROVISION LTD,146662
North East Lincolnshire Council,http://statistics.data.gov.uk/id/local-authority/00FC),Children & Family Services,Ass Dir - Education,Access And Education Services,Other Agencies,Tuition,PJ112,28/01/2021,655960,340,REVENUE,EDUCLA,147507
North East Lincolnshire Council,http://statistics.data.gov.uk/id/local-authority/00FC),Children & Family Services,Ass Dir - Education,Access And Education Services,Other Agencies,Tuition,PJ112,19/01/2021,880433,250,REVENUE,REDACTED PERSONAL INFORMATION,REDACTED PERSONAL INFORMATION
North East Lincolnshire Council,http://statistics.data.gov.uk/id/local-authority/00FC),Children & Family Services,Ass Dir - Education,Access And Education Services,Contract Hire-Operating Leases,Vehicles - Contract Hire,JC101,13/01/2021,653968,3184,REVENUE,STAGECOACH SERVICES,101404
North East Lincolnshire Council,http://statistics.data.gov.uk/id/local-authority/00FC),Children & Family Services,Ass Dir - Education,Sen/Inclusion,Miscellaneous Expenses,Contingency Reserve,LL123,19/01/2021,654657,8550,REVENUE,THE CAMBRIDGE PARK ACADEMY,107472
North East Lincolnshire Council,http://statistics.data.gov.uk/id/local-authority/00FC),Children & Family Services,Ass Dir - Education,Sen/Inclusion,Miscellaneous Expenses,Other Expenses General,LL119,15/01/2021,654484,487.5,REVENUE,LEARNING4LIFE-GY-CIC,144120
North East Lincolnshire Council,http://statistics.data.gov.uk/id/local-authority/00FC),Children & Family Services,Ass Dir - Education,Sen/Inclusion,Miscellaneous Expenses,Other Expenses General,LL119,21/01/2021,655237,945,REVENUE,ALDI STORES LTD,147003
North East Lincolnshire Council,http://statistics.data.gov.uk/id/local-authority/00FC),Children & Family Services,Ass Dir - Education,Sen/Inclusion,Indirect Employee Expenses,Staff Training,EB122,06/01/2021,652920,400,REVENUE,VIDEO INTERACTION GUIDANCE HK (VIGhk),148076
North East Lincolnshire Council,http://statistics.data.gov.uk/id/local-authority/00FC),Children & Family Services,Ass Dir - Education,Sen/Inclusion,Equip / Furniture / Materials,Teaching Materials,LA117,25/01/2021,655506,504.49,REVENUE,PEARSON EDUCATION,101979
North East Lincolnshire Council,http://statistics.data.gov.uk/id/local-authority/00FC),Children & Family Services,Ass Dir - Education,Sen/Inclusion,Equip / Furniture / Materials,Teaching Materials,LA117,26/01/2021,655084,920,REVENUE,GL EDUCATION GROUP LTD,118819
North East Lincolnshire Council,http://statistics.data.gov.uk/id/local-authority/00FC),Children & Family Services,Ass Dir - Education,Sen/Inclusion,Rep Alterations Maint Building,Buildings - Repairs And Maint,GA102,26/01/2021,655328,396,REVENUE,GRIMSBY SUNBLINDS,100535
North East Lincolnshire Council,http://statistics.data.gov.uk/id/local-authority/00FC),Children & Family Services,Ass Dir - Education,Sen/Inclusion,Private Contractors,Third Party Prov - Private,PH101,05/01/2021,871776,620.36,REVENUE,REDACTED PERSONAL INFORMATION,REDACTED PERSONAL INFORMATION
North East Lincolnshire Council,http://statistics.data.gov.uk/id/local-authority/00FC),Children & Family Services,Ass Dir - Education,Sen/Inclusion,Private Contractors,Third Party Prov - Private,PH101,14/01/2021,879429,620.36,REVENUE,REDACTED PERSONAL INFORMATION,REDACTED PERSONAL INFORMATION
North East Lincolnshire Council,http://statistics.data.gov.uk/id/local-authority/00FC),Children & Family Services,Ass Dir - Education,Sen/Inclusion,Private Contractors,Third Party Prov - Private,PH101,15/01/2021,654464,3508.22,REVENUE,REDACTED PERSONAL INFORMATION,REDACTED PERSONAL INFORMATION
North East Lincolnshire Council,http://statistics.data.gov.uk/id/local-authority/00FC),Children & Family Services,Ass Dir - Education,Sen/Inclusion,Private Contractors,Third Party Prov - Private,PH101,28/01/2021,655949,1592.42,REVENUE,LEARNING4LIFE-GY-CIC,144120
North East Lincolnshire Council,http://statistics.data.gov.uk/id/local-authority/00FC),Children & Family Services,Ass Dir - Education,Sen/Inclusion,Private Contractors,Third Party Prov - Private,PH101,27/01/2021,655838,1249.5,REVENUE,COMMUNITY PRESS OFFICE LTD,101728
North East Lincolnshire Council,http://statistics.data.gov.uk/id/local-authority/00FC),Children & Family Services,Ass Dir - Education,Sen/Inclusion,Private Contractors,Third Party Prov - Private,PH101,27/01/2021,655844,331.67,REVENUE,LINKAGE COMMUNITY TRUST,100343
North East Lincolnshire Council,http://statistics.data.gov.uk/id/local-authority/00FC),Children & Family Services,Ass Dir - Education,Sen/Inclusion,Private Contractors,Third Party Prov - Private,PH101,27/01/2021,655862,483.33,REVENUE,LINKAGE COMMUNITY TRUST,100343
North East Lincolnshire Council,http://statistics.data.gov.uk/id/local-authority/00FC),Children & Family Services,Ass Dir - Education,Sen/Inclusion,Private Contractors,Third Party Prov - Private,PH101,27/01/2021,655853,483.33,REVENUE,LINKAGE COMMUNITY TRUST,100343
North East Lincolnshire Council,http://statistics.data.gov.uk/id/local-authority/00FC),Children & Family Services,Ass Dir - Education,Sen/Inclusion,Private Contractors,Third Party Prov - Private,PH101,27/01/2021,655846,1418.33,REVENUE,LINKAGE COMMUNITY TRUST,100343
North East Lincolnshire Council,http://statistics.data.gov.uk/id/local-authority/00FC),Children & Family Services,Ass Dir - Education,Sen/Inclusion,Private Contractors,Third Party Prov - Private,PH101,27/01/2021,655850,3020,REVENUE,LINKAGE COMMUNITY TRUST,100343
North East Lincolnshire Council,http://statistics.data.gov.uk/id/local-authority/00FC),Children & Family Services,Ass Dir - Education,Sen/Inclusion,Private Contractors,Third Party Prov - Private,PH101,27/01/2021,655841,2031.67,REVENUE,LINKAGE COMMUNITY TRUST,100343
North East Lincolnshire Council,http://statistics.data.gov.uk/id/local-authority/00FC),Children & Family Services,Ass Dir - Education,Sen/Inclusion,Private Contractors,Third Party Prov - Private,PH101,27/01/2021,655864,2020,REVENUE,LINKAGE COMMUNITY TRUST,100343
North East Lincolnshire Council,http://statistics.data.gov.uk/id/local-authority/00FC),Children & Family Services,Ass Dir - Education,Sen/Inclusion,Private Contractors,Third Party Prov - Private,PH101,27/01/2021,655854,736.67,REVENUE,LINKAGE COMMUNITY TRUST,100343
North East Lincolnshire Council,http://statistics.data.gov.uk/id/local-authority/00FC),Children & Family Services,Ass Dir - Education,Sen/Inclusion,Private Contractors,Third Party Prov - Private,PH101,27/01/2021,655857,1335,REVENUE,LINKAGE COMMUNITY TRUST,100343
North East Lincolnshire Council,http://statistics.data.gov.uk/id/local-authority/00FC),Children & Family Services,Ass Dir - Education,Sen/Inclusion,Private Contractors,Third Party Prov - Private,PH101,28/01/2021,655897,585,REVENUE,LINKAGE COMMUNITY TRUST,100343
North East Lincolnshire Council,http://statistics.data.gov.uk/id/local-authority/00FC),Children & Family Services,Ass Dir - Education,Sen/Inclusion,Private Contractors,Third Party Prov - Private,PH101,27/01/2021,655861,736.67,REVENUE,LINKAGE COMMUNITY TRUST,100343
North East Lincolnshire Council,http://statistics.data.gov.uk/id/local-authority/00FC),Children & Family Services,Ass Dir - Education,Sen/Inclusion,Private Contractors,Third Party Prov - Private,PH101,27/01/2021,655860,250,REVENUE,LINKAGE COMMUNITY TRUST,100343
North East Lincolnshire Council,http://statistics.data.gov.uk/id/local-authority/00FC),Children & Family Services,Ass Dir - Education,Sen/Inclusion,Private Contractors,Third Party Prov - Private,PH101,28/01/2021,655902,348.33,REVENUE,LINKAGE COMMUNITY TRUST,100343
North East Lincolnshire Council,http://statistics.data.gov.uk/id/local-authority/00FC),Children & Family Services,Ass Dir - Education,Sen/Inclusion,Private Contractors,Third Party Prov - Private,PH101,27/01/2021,655855,308.33,REVENUE,LINKAGE COMMUNITY TRUST,100343
North East Lincolnshire Council,http://statistics.data.gov.uk/id/local-authority/00FC),Children & Family Services,Ass Dir - Education,Sen/Inclusion,Private Contractors,Third Party Prov - Private,PH101,27/01/2021,655852,1220,REVENUE,LINKAGE COMMUNITY TRUST,100343
North East Lincolnshire Council,http://statistics.data.gov.uk/id/local-authority/00FC),Children & Family Services,Ass Dir - Education,Sen/Inclusion,Private Contractors,Third Party Prov - Private,PH101,27/01/2021,655903,1783.33,REVENUE,LINKAGE COMMUNITY TRUST,100343
North East Lincolnshire Council,http://statistics.data.gov.uk/id/local-authority/00FC),Children & Family Services,Ass Dir - Education,Sen/Inclusion,Private Contractors,Third Party Prov - Private,PH101,27/01/2021,655849,829.17,REVENUE,LINKAGE COMMUNITY TRUST,100343
North East Lincolnshire Council,http://statistics.data.gov.uk/id/local-authority/00FC),Children & Family Services,Ass Dir - Education,Sen/Inclusion,Private Contractors,Third Party Prov - Private,PH101,27/01/2021,655901,4349,REVENUE,LINKAGE COMMUNITY TRUST,100343
North East Lincolnshire Council,http://statistics.data.gov.uk/id/local-authority/00FC),Children & Family Services,Ass Dir - Education,Sen/Inclusion,Private Contractors,Third Party Prov - Private,PH101,28/01/2021,655900,811.67,REVENUE,LINKAGE COMMUNITY TRUST,100343
North East Lincolnshire Council,http://statistics.data.gov.uk/id/local-authority/00FC),Children & Family Services,Ass Dir - Education,Sen/Inclusion,Private Contractors,Third Party Prov - Private,PH101,27/01/2021,655848,2480,REVENUE,LINKAGE COMMUNITY TRUST,100343
North East Lincolnshire Council,http://statistics.data.gov.uk/id/local-authority/00FC),Children & Family Services,Ass Dir - Education,Sen/Inclusion,Private Contractors,Third Party Prov - Private,PH101,27/01/2021,655842,308.33,REVENUE,LINKAGE COMMUNITY TRUST,100343
North East Lincolnshire Council,http://statistics.data.gov.uk/id/local-authority/00FC),Children & Family Services,Ass Dir - Education,Sen/Inclusion,Private Contractors,Third Party Prov - Private,PH101,27/01/2021,655843,831.67,REVENUE,LINKAGE COMMUNITY TRUST,100343
North East Lincolnshire Council,http://statistics.data.gov.uk/id/local-authority/00FC),Children & Family Services,Ass Dir - Education,Sen/Inclusion,Private Contractors,Third Party Prov - Private,PH101,27/01/2021,655847,892,REVENUE,LINKAGE COMMUNITY TRUST,100343
North East Lincolnshire Council,http://statistics.data.gov.uk/id/local-authority/00FC),Children & Family Services,Ass Dir - Education,Sen/Inclusion,Private Contractors,Third Party Prov - Private,PH101,27/01/2021,655863,1066.67,REVENUE,LINKAGE COMMUNITY TRUST,100343
North East Lincolnshire Council,http://statistics.data.gov.uk/id/local-authority/00FC),Children & Family Services,Ass Dir - Education,Sen/Inclusion,Private Contractors,Third Party Prov - Private,PH101,28/01/2021,656009,5418,REVENUE,FRANKLIN COLLEGE,101073
North East Lincolnshire Council,http://statistics.data.gov.uk/id/local-authority/00FC),Children & Family Services,Ass Dir - Education,Sen/Inclusion,Private Contractors,Third Party Prov - Private,PH101,28/01/2021,656010,5418,REVENUE,FRANKLIN COLLEGE,101073
North East Lincolnshire Council,http://statistics.data.gov.uk/id/local-authority/00FC),Children & Family Services,Ass Dir - Education,Sen/Inclusion,Private Contractors,Third Party Prov - Private,PH101,27/01/2021,655835,8369.66,REVENUE,REDACTED PERSONAL INFORMATION,REDACTED PERSONAL INFORMATION
North East Lincolnshire Council,http://statistics.data.gov.uk/id/local-authority/00FC),Children & Family Services,Ass Dir - Education,Sen/Inclusion,Private Contractors,Third Party Prov - Private,PH101,27/01/2021,655834,5065.66,REVENUE,REDACTED PERSONAL INFORMATION,REDACTED PERSONAL INFORMATION
North East Lincolnshire Council,http://statistics.data.gov.uk/id/local-authority/00FC),Children & Family Services,Ass Dir - Education,Sen/Inclusion,Private Contractors,Third Party Prov - Private,PH101,27/01/2021,655833,5788.33,REVENUE,REDACTED PERSONAL INFORMATION,REDACTED PERSONAL INFORMATION
North East Lincolnshire Council,http://statistics.data.gov.uk/id/local-authority/00FC),Children & Family Services,Ass Dir - Education,Sen/Inclusion,Miscellaneous Expenses,Contingency Reserve,LL123,19/01/2021,654665,1392,REVENUE,PHOENIX PARK ACADEMY,126685
North East Lincolnshire Council,http://statistics.data.gov.uk/id/local-authority/00FC),Children & Family Services,Ass Dir - Education,Sen/Inclusion,Miscellaneous Expenses,Contingency Reserve,LL123,19/01/2021,654667,16700,REVENUE,PHOENIX PARK ACADEMY,126685
North East Lincolnshire Council,http://statistics.data.gov.uk/id/local-authority/00FC),Children & Family Services,Ass Dir - Education,Sen/Inclusion,Miscellaneous Expenses,Contingency Reserve,LL123,19/01/2021,654666,47317,REVENUE,PHOENIX PARK ACADEMY,126685
North East Lincolnshire Council,http://statistics.data.gov.uk/id/local-authority/00FC),Children & Family Services,Ass Dir - Education,Sen/Inclusion,Miscellaneous Expenses,Contingency Reserve,LL123,19/01/2021,654668,27833,REVENUE,SEVENHILLS ACADEMY,128660
North East Lincolnshire Council,http://statistics.data.gov.uk/id/local-authority/00FC),Children & Family Services,Ass Dir - Education,Sen/Inclusion,Miscellaneous Expenses,Contingency Reserve,LL123,19/01/2021,654669,27833,REVENUE,SEVENHILLS ACADEMY,128660
North East Lincolnshire Council,http://statistics.data.gov.uk/id/local-authority/00FC),Children & Family Services,Ass Dir - Education,Sen/Inclusion,Contributions To Provisions,Contributions - Other,LK103,19/01/2021,654658,1700,REVENUE,THE CAMBRIDGE PARK ACADEMY,107472
North East Lincolnshire Council,http://statistics.data.gov.uk/id/local-authority/00FC),Children & Family Services,Ass Dir - Education,Sen/Inclusion,Contributions To Provisions,Contributions - Other,LK103,21/01/2021,655218,2269,REVENUE,BEACON ACADEMY,138130
North East Lincolnshire Council,http://statistics.data.gov.uk/id/local-authority/00FC),Children & Family Services,Ass Dir - Education,Sen/Inclusion,Contributions To Provisions,Contributions - Other,LK103,21/01/2021,655207,3379,REVENUE,BURSAR PRIMARY ACADEMY,114977
North East Lincolnshire Council,http://statistics.data.gov.uk/id/local-authority/00FC),Children & Family Services,Ass Dir - Education,Sen/Inclusion,Contributions To Provisions,Contributions - Other,LK103,21/01/2021,655213,2252,REVENUE,CANON PETER HALL CE PRIMARY ACADEMY,126646
North East Lincolnshire Council,http://statistics.data.gov.uk/id/local-authority/00FC),Children & Family Services,Ass Dir - Education,Sen/Inclusion,Contributions To Provisions,Contributions - Other,LK103,21/01/2021,655202,1463,REVENUE,EDWARD HENEAGE PRIMARY (ACADEMY),111742
North East Lincolnshire Council,http://statistics.data.gov.uk/id/local-authority/00FC),Children & Family Services,Ass Dir - Education,Sen/Inclusion,Contributions To Provisions,Contributions - Other,LK103,21/01/2021,655214,5455,REVENUE,FAIRFIELD PRIMARY ACADEMY,129030
North East Lincolnshire Council,http://statistics.data.gov.uk/id/local-authority/00FC),Children & Family Services,Ass Dir - Education,Sen/Inclusion,Contributions To Provisions,Contributions - Other,LK103,21/01/2021,655216,10988,REVENUE,GREAT COATES PRIMARY ACADEMY,134467
North East Lincolnshire Council,http://statistics.data.gov.uk/id/local-authority/00FC),Children & Family Services,Ass Dir - Education,Sen/Inclusion,Contributions To Provisions,Contributions - Other,LK103,21/01/2021,655195,10286,REVENUE,HAVELOCK ACADEMY,101968
North East Lincolnshire Council,http://statistics.data.gov.uk/id/local-authority/00FC),Children & Family Services,Ass Dir - Education,Sen/Inclusion,Contributions To Provisions,Contributions - Other,LK103,21/01/2021,655196,16152,REVENUE,HEALING SCIENCE ACADEMY LTD,102702
North East Lincolnshire Council,http://statistics.data.gov.uk/id/local-authority/00FC),Children & Family Services,Ass Dir - Education,Sen/Inclusion,Contributions To Provisions,Contributions - Other,LK103,21/01/2021,655198,7445,REVENUE,HUMBERSTON ACADEMY,106067
North East Lincolnshire Council,http://statistics.data.gov.uk/id/local-authority/00FC),Children & Family Services,Ass Dir - Education,Sen/Inclusion,Contributions To Provisions,Contributions - Other,LK103,21/01/2021,655199,7499,REVENUE,JOHN WHITGIFT ACADEMY,106898
North East Lincolnshire Council,http://statistics.data.gov.uk/id/local-authority/00FC),Children & Family Services,Ass Dir - Education,Sen/Inclusion,Contributions To Provisions,Contributions - Other,LK103,21/01/2021,655204,2302,REVENUE,MACAULAY PRIMARY ACADEMY,112680
North East Lincolnshire Council,http://statistics.data.gov.uk/id/local-authority/00FC),Children & Family Services,Ass Dir - Education,Sen/Inclusion,Contributions To Provisions,Contributions - Other,LK103,21/01/2021,655206,3122,REVENUE,MIDDLETHORPE PRIMARY ACADEMY,114833
North East Lincolnshire Council,http://statistics.data.gov.uk/id/local-authority/00FC),Children & Family Services,Ass Dir - Education,Sen/Inclusion,Contributions To Provisions,Contributions - Other,LK103,21/01/2021,655194,2368,REVENUE,OASIS ACADEMY IMMINGHAM,101947
North East Lincolnshire Council,http://statistics.data.gov.uk/id/local-authority/00FC),Children & Family Services,Ass Dir - Education,Sen/Inclusion,Contributions To Provisions,Contributions - Other,LK103,21/01/2021,655212,3511,REVENUE,REYNOLDS PRIMARY ACADEMY,122175
North East Lincolnshire Council,http://statistics.data.gov.uk/id/local-authority/00FC),Children & Family Services,Ass Dir - Education,Sen/Inclusion,Contributions To Provisions,Contributions - Other,LK103,21/01/2021,655200,1944,REVENUE,SCARTHO JUNIOR ACADEMY,108738
North East Lincolnshire Council,http://statistics.data.gov.uk/id/local-authority/00FC),Children & Family Services,Ass Dir - Education,Sen/Inclusion,Contributions To Provisions,Contributions - Other,LK103,21/01/2021,655201,3511,REVENUE,SIGNHILLS INFANTS ACADEMY,110645
North East Lincolnshire Council,http://statistics.data.gov.uk/id/local-authority/00FC),Children & Family Services,Ass Dir - Education,Sen/Inclusion,Contributions To Provisions,Contributions - Other,LK103,21/01/2021,655197,3511,REVENUE,SIGNHILLS ACADEMY LTD,106065
North East Lincolnshire Council,http://statistics.data.gov.uk/id/local-authority/00FC),Children & Family Services,Ass Dir - Education,Sen/Inclusion,Contributions To Provisions,Contributions - Other,LK103,21/01/2021,655209,7270,REVENUE,ST MARYS CATHOLIC PRIMARY VOLUNTARY ACADEMY,115108
North East Lincolnshire Council,http://statistics.data.gov.uk/id/local-authority/00FC),Children & Family Services,Ass Dir - Education,Sen/Inclusion,Contributions To Provisions,Contributions - Other,LK103,21/01/2021,655203,1555,REVENUE,STRAND PRIMARY ACADEMY,111862
North East Lincolnshire Council,http://statistics.data.gov.uk/id/local-authority/00FC),Children & Family Services,Ass Dir - Education,Sen/Inclusion,Contributions To Provisions,Contributions - Other,LK103,21/01/2021,655210,10473,REVENUE,THRUNSCOE PRIMARY AND NURSERY ACADEMY,118749
North East Lincolnshire Council,http://statistics.data.gov.uk/id/local-authority/00FC),Children & Family Services,Ass Dir - Education,Sen/Inclusion,Contributions To Provisions,Contributions - Other,LK103,21/01/2021,655217,3163,REVENUE,WILLIAM BARCROFT JUNIOR ACADEMY,136302
North East Lincolnshire Council,http://statistics.data.gov.uk/id/local-authority/00FC),Children & Family Services,Ass Dir - Education,Sen/Inclusion,Contributions To Provisions,Contributions - Other,LK103,21/01/2021,655211,4494,REVENUE,WILLOWS PRIMARY ACADEMY,120478
North East Lincolnshire Council,http://statistics.data.gov.uk/id/local-authority/00FC),Children & Family Services,Ass Dir - Education,Sen/Inclusion,Contributions To Provisions,Contributions - Other,LK103,21/01/2021,655215,5141,REVENUE,WOODLANDS ACADEMY,132649
North East Lincolnshire Council,http://statistics.data.gov.uk/id/local-authority/00FC),Children & Family Services,Ass Dir - Education,Sen/Inclusion,Contributions To Provisions,Contributions - Other,LK103,21/01/2021,655208,2086,REVENUE,WYBERS WOOD PRIMARY ACADEMY,115078
North East Lincolnshire Council,http://statistics.data.gov.uk/id/local-authority/00FC),Children & Family Services,Ass Dir - Education,Sen/Inclusion,Contributions To Provisions,Contributions - Other,LK103,21/01/2021,655205,3741,REVENUE,MISFITS COMMUNITY CIRCUS,112862
North East Lincolnshire Council,http://statistics.data.gov.uk/id/local-authority/00FC),Children & Family Services,Ass Dir - Education,Sen/Inclusion,Contributions To Provisions,Contributions - Third Sector,LK102,26/01/2021,883752,1689,REVENUE,REDACTED PERSONAL INFORMATION,REDACTED PERSONAL INFORMATION
North East Lincolnshire Council,http://statistics.data.gov.uk/id/local-authority/00FC),Children & Family Services,Ass Dir - Education,Sen/Inclusion,Contributions To Provisions,Contributions - Third Sector,LK102,07/01/2021,653060,2010.75,REVENUE,TEACHING PERSONNEL LTD,101305
North East Lincolnshire Council,http://statistics.data.gov.uk/id/local-authority/00FC),Children & Family Services,Ass Dir - Education,Sen/Inclusion,Contributions To Provisions,Contributions - Third Sector,LK102,07/01/2021,653069,383,REVENUE,CENTRE4 LIMITED,126893
North East Lincolnshire Council,http://statistics.data.gov.uk/id/local-authority/00FC),Children & Family Services,Ass Dir - Education,Sen/Inclusion,Contributions To Provisions,Contributions - Third Sector,LK102,07/01/2021,653061,1559.75,REVENUE,TEACHING PERSONNEL LTD,101305
North East Lincolnshire Council,http://statistics.data.gov.uk/id/local-authority/00FC),Children & Family Services,Ass Dir - Education,Sen/Inclusion,Contributions To Provisions,Contributions - Third Sector,LK102,07/01/2021,653240,1815.3,REVENUE,CONNECT SPECIALIST THERAPY SERVICES,147692
North East Lincolnshire Council,http://statistics.data.gov.uk/id/local-authority/00FC),Children & Family Services,Ass Dir - Education,Sen/Inclusion,Contributions To Provisions,Contributions - Third Sector,LK102,15/01/2021,654465,732.42,REVENUE,CENTRE4 LIMITED,126893
North East Lincolnshire Council,http://statistics.data.gov.uk/id/local-authority/00FC),Children & Family Services,Ass Dir - Education,Sen/Inclusion,Contributions To Provisions,Contributions - Third Sector,LK102,27/01/2021,655824,1559.75,REVENUE,TEACHING PERSONNEL LTD,101305
North East Lincolnshire Council,http://statistics.data.gov.uk/id/local-authority/00FC),Children & Family Services,Ass Dir - Education,Sen/Inclusion,Contributions To Provisions,Contributions - Third Sector,LK102,21/01/2021,655238,1644.54,REVENUE,AK PAYROLL SERIVCES LTD,145107
North East Lincolnshire Council,http://statistics.data.gov.uk/id/local-authority/00FC),Children & Family Services,Ass Dir - Education,Sen/Inclusion,Contributions To Provisions,Contributions - Third Sector,LK102,28/01/2021,655950,675,REVENUE,R Y FIDLER,142906
North East Lincolnshire Council,http://statistics.data.gov.uk/id/local-authority/00FC),Children & Family Services,Ass Dir - Education,Sen/Inclusion,Contributions To Provisions,Contributions - Third Sector,LK102,28/01/2021,656013,1644.54,REVENUE,AK PAYROLL SERIVCES LTD,145107
North East Lincolnshire Council,http://statistics.data.gov.uk/id/local-authority/00FC),Children & Family Services,Ass Dir - Education,Sen/Inclusion,Contributions To Provisions,Contributions - Third Sector,LK102,28/01/2021,656012,1644.54,REVENUE,AK PAYROLL SERIVCES LTD,145107
North East Lincolnshire Council,http://statistics.data.gov.uk/id/local-authority/00FC),Children & Family Services,Ass Dir - Education,Sen/Inclusion,Contributions To Provisions,Contributions - Third Sector,LK102,28/01/2021,656011,1644.54,REVENUE,AK PAYROLL SERIVCES LTD,145107
North East Lincolnshire Council,http://statistics.data.gov.uk/id/local-authority/00FC),Children & Family Services,Ass Dir - Education,Sen/Inclusion,Contributions To Provisions,Contributions - Third Sector,LK102,28/01/2021,656005,1709.62,REVENUE,AK PAYROLL SERIVCES LTD,145644
North East Lincolnshire Council,http://statistics.data.gov.uk/id/local-authority/00FC),Children & Family Services,Ass Dir - Education,Sen/Inclusion,Contributions To Provisions,Contributions - Third Sector,LK102,28/01/2021,656007,1714.22,REVENUE,AK PAYROLL SERIVCES LTD,145644
North East Lincolnshire Council,http://statistics.data.gov.uk/id/local-authority/00FC),Children & Family Services,Ass Dir - Education,Sen/Inclusion,Contributions To Provisions,Contributions - Third Sector,LK102,29/01/2021,656230,1559.75,REVENUE,TEACHING PERSONNEL LTD,101305
North East Lincolnshire Council,http://statistics.data.gov.uk/id/local-authority/00FC),Children & Family Services,Ass Dir - Education,Sen/Inclusion,Contributions To Provisions,Contributions - Third Sector,LK102,29/01/2021,656228,2010.75,REVENUE,TEACHING PERSONNEL LTD,101305
North East Lincolnshire Council,http://statistics.data.gov.uk/id/local-authority/00FC),Children & Family Services,Ass Dir - Education,Sen/Inclusion,Contributions To Provisions,Contributions - Third Sector,LK102,29/01/2021,656226,357.5,REVENUE,TARGETED PROVISION LTD,146662
North East Lincolnshire Council,http://statistics.data.gov.uk/id/local-authority/00FC),Children & Family Services,Ass Dir - Education,Sen/Inclusion,Miscellaneous Expenses,Contingency Reserve,LL123,19/01/2021,654659,152934,REVENUE,THE CAMBRIDGE PARK ACADEMY,107472
North East Lincolnshire Council,http://statistics.data.gov.uk/id/local-authority/00FC),Children & Family Services,Ass Dir - Education,Sen/Inclusion,Miscellaneous Expenses,Contingency Reserve,LL123,19/01/2021,654656,9533,REVENUE,THE CAMBRIDGE PARK ACADEMY,107472
North East Lincolnshire Council,http://statistics.data.gov.uk/id/local-authority/00FC),Children & Family Services,Ass Dir - Education,Sen/Inclusion,Miscellaneous Expenses,Contingency Reserve,LL123,19/01/2021,654660,9533,REVENUE,HUMBERSTON PARK SPECIAL SCHOOL,107911
North East Lincolnshire Council,http://statistics.data.gov.uk/id/local-authority/00FC),Children & Family Services,Ass Dir - Education,Sen/Inclusion,Miscellaneous Expenses,Contingency Reserve,LL123,19/01/2021,654661,120667,REVENUE,HUMBERSTON PARK SPECIAL SCHOOL,107911
North East Lincolnshire Council,http://statistics.data.gov.uk/id/local-authority/00FC),Children & Family Services,Ass Dir - Education,Sen/Inclusion,Miscellaneous Expenses,Other Expenses General,LL119,19/01/2021,654663,5933,REVENUE,EASTFIELD PRIMARY ACADEMY,121907
North East Lincolnshire Council,http://statistics.data.gov.uk/id/local-authority/00FC),Children & Family Services,Ass Dir - Education,Sen/Inclusion,Miscellaneous Expenses,Other Expenses General,LL119,19/01/2021,654664,1944.92,REVENUE,EASTFIELD PRIMARY ACADEMY,121907
North East Lincolnshire Council,http://statistics.data.gov.uk/id/local-authority/00FC),Children & Family Services,Ass Dir - Education,Sen/Inclusion,Miscellaneous Expenses,Other Expenses General,LL119,19/01/2021,654662,8900,REVENUE,EASTFIELD PRIMARY ACADEMY,121907
North East Lincolnshire Council,http://statistics.data.gov.uk/id/local-authority/00FC),Children & Family Services,Ass Dir - Education,Sen/Inclusion,Other Local Authorities,Third Pp - Other Local Auth,PC101,08/01/2021,653391,14327.14,REVENUE,REDACTED PERSONAL INFORMATION,REDACTED PERSONAL INFORMATION
North East Lincolnshire Council,http://statistics.data.gov.uk/id/local-authority/00FC),Children & Family Services,Ass Dir - Education,Sen/Inclusion,Other Local Authorities,Third Pp - Other Local Auth,PC101,04/01/2021,652403,3110.8,REVENUE,REDACTED PERSONAL INFORMATION,REDACTED PERSONAL INFORMATION
North East Lincolnshire Council,http://statistics.data.gov.uk/id/local-authority/00FC),Children & Family Services,Ass Dir - Education,Sen/Inclusion,Other Local Authorities,Third Pp - Other Local Auth,PC101,07/01/2021,653057,3333.4,REVENUE,REDACTED PERSONAL INFORMATION,REDACTED PERSONAL INFORMATION
North East Lincolnshire Council,http://statistics.data.gov.uk/id/local-authority/00FC),Children & Family Services,Ass Dir - Education,Sen/Inclusion,Other Local Authorities,Third Pp - Other Local Auth,PC101,07/01/2021,653058,2500.05,REVENUE,REDACTED PERSONAL INFORMATION,REDACTED PERSONAL INFORMATION
North East Lincolnshire Council,http://statistics.data.gov.uk/id/local-authority/00FC),Children & Family Services,Ass Dir - Education,Sen/Inclusion,Other Local Authorities,Third Pp - Other Local Auth,PC101,08/01/2021,653298,3333.4,REVENUE,REDACTED PERSONAL INFORMATION,REDACTED PERSONAL INFORMATION
North East Lincolnshire Council,http://statistics.data.gov.uk/id/local-authority/00FC),Children & Family Services,Ass Dir - Education,Sen/Inclusion,Other Local Authorities,Third Pp - Other Local Auth,PC101,08/01/2021,653297,2500.05,REVENUE,REDACTED PERSONAL INFORMATION,REDACTED PERSONAL INFORMATION
North East Lincolnshire Council,http://statistics.data.gov.uk/id/local-authority/00FC),Children & Family Services,Ass Dir - Education,Sen/Inclusion,Other Local Authorities,Third Pp - Other Local Auth,PC101,28/01/2021,655410,2333.38,REVENUE,REDACTED PERSONAL INFORMATION,REDACTED PERSONAL INFORMATION
North East Lincolnshire Council,http://statistics.data.gov.uk/id/local-authority/00FC),Children & Family Services,Ass Dir - Education,Sen/Inclusion,Other Local Authorities,Third Pp - Other Local Auth,PC101,28/01/2021,655412,3015.6,REVENUE,REDACTED PERSONAL INFORMATION,REDACTED PERSONAL INFORMATION
North East Lincolnshire Council,http://statistics.data.gov.uk/id/local-authority/00FC),Children & Family Services,Ass Dir - Education,Sen/Inclusion,Other Local Authorities,Third Pp - Other Local Auth,PC101,28/01/2021,655408,2333.38,REVENUE,REDACTED PERSONAL INFORMATION,REDACTED PERSONAL INFORMATION
North East Lincolnshire Council,http://statistics.data.gov.uk/id/local-authority/00FC),Children & Family Services,Ass Dir - Education,Sen/Inclusion,Other Local Authorities,Third Pp - Other Local Auth,PC101,28/01/2021,655929,3330,REVENUE,REDACTED PERSONAL INFORMATION,REDACTED PERSONAL INFORMATION
North East Lincolnshire Council,http://statistics.data.gov.uk/id/local-authority/00FC),Children & Family Services,Ass Dir - Education,Sen/Inclusion,Other Local Authorities,Third Pp - Other Local Auth,PC101,28/01/2021,655931,3330,REVENUE,REDACTED PERSONAL INFORMATION,REDACTED PERSONAL INFORMATION
North East Lincolnshire Council,http://statistics.data.gov.uk/id/local-authority/00FC),Children & Family Services,Ass Dir - Education,Sen/Inclusion,Other Local Authorities,Third Pp - Other Local Auth,PC101,28/01/2021,655930,3330,REVENUE,REDACTED PERSONAL INFORMATION,REDACTED PERSONAL INFORMATION
North East Lincolnshire Council,http://statistics.data.gov.uk/id/local-authority/00FC),Children & Family Services,Ass Dir - Education,Sen/Inclusion,Other Local Authorities,Third Pp - Other Local Auth,PC101,27/01/2021,655887,3330,REVENUE,REDACTED PERSONAL INFORMATION,REDACTED PERSONAL INFORMATION
North East Lincolnshire Council,http://statistics.data.gov.uk/id/local-authority/00FC),Children & Family Services,Ass Dir - Education,Sen/Inclusion,Other Local Authorities,Third Pp - Other Local Auth,PC101,28/01/2021,655932,3330,REVENUE,REDACTED PERSONAL INFORMATION,REDACTED PERSONAL INFORMATION
North East Lincolnshire Council,http://statistics.data.gov.uk/id/local-authority/00FC),Children & Family Services,Ass Dir - Education,Sen/Inclusion,Other Local Authorities,Third Pp - Other Local Auth,PC101,28/01/2021,655940,3330,REVENUE,REDACTED PERSONAL INFORMATION,REDACTED PERSONAL INFORMATION
North East Lincolnshire Council,http://statistics.data.gov.uk/id/local-authority/00FC),Children & Family Services,Ass Dir - Education,Sen/Inclusion,Other Local Authorities,Third Pp - Other Local Auth,PC101,27/01/2021,655821,5729,REVENUE,REDACTED PERSONAL INFORMATION,REDACTED PERSONAL INFORMATION
North East Lincolnshire Council,http://statistics.data.gov.uk/id/local-authority/00FC),Children & Family Services,Ass Dir - Education,Sen/Inclusion,Other Local Authorities,Third Pp - Other Local Auth,PC101,27/01/2021,655836,11954.01,REVENUE,REDACTED PERSONAL INFORMATION,REDACTED PERSONAL INFORMATION
North East Lincolnshire Council,http://statistics.data.gov.uk/id/local-authority/00FC),Children & Family Services,Ass Dir - Education,Sen/Inclusion,Other Local Authorities,Third Pp - Other Local Auth,PC101,27/01/2021,655837,1755.56,REVENUE,REDACTED PERSONAL INFORMATION,REDACTED PERSONAL INFORMATION
North East Lincolnshire Council,http://statistics.data.gov.uk/id/local-authority/00FC),Children & Family Services,Ass Dir - Education,Sen/Inclusion,Other Local Authorities,Third Pp - Other Local Auth,PC101,28/01/2021,655927,4455,REVENUE,REDACTED PERSONAL INFORMATION,REDACTED PERSONAL INFORMATION
North East Lincolnshire Council,http://statistics.data.gov.uk/id/local-authority/00FC),Children & Family Services,Ass Dir - Education,Sen/Inclusion,Other Local Authorities,Third Pp - Other Local Auth,PC101,28/01/2021,655935,4455,REVENUE,REDACTED PERSONAL INFORMATION,REDACTED PERSONAL INFORMATION
North East Lincolnshire Council,http://statistics.data.gov.uk/id/local-authority/00FC),Children & Family Services,Ass Dir - Education,Sen/Inclusion,Other Local Authorities,Third Pp - Other Local Auth,PC101,28/01/2021,655933,4455,REVENUE,REDACTED PERSONAL INFORMATION,REDACTED PERSONAL INFORMATION
North East Lincolnshire Council,http://statistics.data.gov.uk/id/local-authority/00FC),Children & Family Services,Ass Dir - Education,Sen/Inclusion,Other Local Authorities,Third Pp - Other Local Auth,PC101,28/01/2021,655934,4455,REVENUE,REDACTED PERSONAL INFORMATION,REDACTED PERSONAL INFORMATION
North East Lincolnshire Council,http://statistics.data.gov.uk/id/local-authority/00FC),Children & Family Services,Ass Dir - Education,Sen/Inclusion,Other Local Authorities,Third Pp - Other Local Auth,PC101,28/01/2021,655936,4455,REVENUE,REDACTED PERSONAL INFORMATION,REDACTED PERSONAL INFORMATION
North East Lincolnshire Council,http://statistics.data.gov.uk/id/local-authority/00FC),Children & Family Services,Ass Dir - Education,Sen/Inclusion,Other Local Authorities,Third Pp - Other Local Auth,PC101,28/01/2021,655941,4455,REVENUE,REDACTED PERSONAL INFORMATION,REDACTED PERSONAL INFORMATION
North East Lincolnshire Council,http://statistics.data.gov.uk/id/local-authority/00FC),Children & Family Services,Ass Dir - Education,Sen/Inclusion,Other Local Authorities,Third Pp - Other Local Auth,PC101,28/01/2021,655937,4455,REVENUE,REDACTED PERSONAL INFORMATION,REDACTED PERSONAL INFORMATION
North East Lincolnshire Council,http://statistics.data.gov.uk/id/local-authority/00FC),Children & Family Services,Ass Dir - Education,Sen/Inclusion,Other Local Authorities,Third Pp - Other Local Auth,PC101,28/01/2021,655942,5366.25,REVENUE,REDACTED PERSONAL INFORMATION,REDACTED PERSONAL INFORMATION
North East Lincolnshire Council,http://statistics.data.gov.uk/id/local-authority/00FC),Children & Family Services,Ass Dir - Education,Sen/Inclusion,Other Local Authorities,Third Pp - Other Local Auth,PC101,28/01/2021,655944,26452,REVENUE,REDACTED PERSONAL INFORMATION,REDACTED PERSONAL INFORMATION
North East Lincolnshire Council,http://statistics.data.gov.uk/id/local-authority/00FC),Children & Family Services,Ass Dir - Education,Sen/Inclusion,Other Local Authorities,Third Pp - Other Local Auth,PC101,28/01/2021,655973,60470,REVENUE,REDACTED PERSONAL INFORMATION,REDACTED PERSONAL INFORMATION
North East Lincolnshire Council,http://statistics.data.gov.uk/id/local-authority/00FC),Children & Family Services,Ass Dir - Education,Sen/Inclusion,Other Local Authorities,Third Pp - Other Local Auth,PC101,15/01/2021,647839,22281.66,REVENUE,REDACTED PERSONAL INFORMATION,REDACTED PERSONAL INFORMATION
North East Lincolnshire Council,http://statistics.data.gov.uk/id/local-authority/00FC),Children & Family Services,Ass Dir - Education,Sen/Inclusion,Other Local Authorities,Third Pp - Other Local Auth,PC101,15/01/2021,647838,8333.32,REVENUE,REDACTED PERSONAL INFORMATION,REDACTED PERSONAL INFORMATION
North East Lincolnshire Council,http://statistics.data.gov.uk/id/local-authority/00FC),Children & Family Services,Ass Dir - Education,Sen/Inclusion,Other Local Authorities,Third Pp - Other Local Auth,PC101,07/01/2021,653070,720,REVENUE,REDACTED PERSONAL INFORMATION,REDACTED PERSONAL INFORMATION
North East Lincolnshire Council,http://statistics.data.gov.uk/id/local-authority/00FC),Children & Family Services,Ass Dir - Education,Sen/Inclusion,Other Local Authorities,Third Pp - Other Local Auth,PC101,28/01/2021,656014,5747.08,REVENUE,REDACTED PERSONAL INFORMATION,REDACTED PERSONAL INFORMATION
North East Lincolnshire Council,http://statistics.data.gov.uk/id/local-authority/00FC),Children & Family Services,Ass Dir - Education,Sen/Inclusion,Other Local Authorities,Third Pp - Other Local Auth,PC101,29/01/2021,656198,6829.12,REVENUE,REDACTED PERSONAL INFORMATION,REDACTED PERSONAL INFORMATION
North East Lincolnshire Council,http://statistics.data.gov.uk/id/local-authority/00FC),Children & Family Services,Ass Dir - Education,Sen/Inclusion,Other Local Authorities,Third Pp - Other Local Auth,PC101,29/01/2021,656199,4907.34,REVENUE,REDACTED PERSONAL INFORMATION,REDACTED PERSONAL INFORMATION
North East Lincolnshire Council,http://statistics.data.gov.uk/id/local-authority/00FC),Children & Family Services,Ass Dir - Education,Sen/Inclusion,Other Local Authorities,Third Pp - Other Local Auth,PC101,29/01/2021,656224,1260,REVENUE,REDACTED PERSONAL INFORMATION,REDACTED PERSONAL INFORMATION
North East Lincolnshire Council,http://statistics.data.gov.uk/id/local-authority/00FC),Children & Family Services,Ass Dir - Education,School Improvement,Private Contractors,Contract Payments,PH105,27/01/2021,655898,1700,REVENUE,HEALING SCIENCE ACADEMY LTD,102702
North East Lincolnshire Council,http://statistics.data.gov.uk/id/local-authority/00FC),Children & Family Services,Ass Dir - Education,School Improvement,Private Contractors,Third Party Prov - Private,PH101,27/01/2021,655761,1020,REVENUE,ELLISTON PRIMARY ACADEMY,129629
North East Lincolnshire Council,http://statistics.data.gov.uk/id/local-authority/00FC),Children & Family Services,Ass Dir - Education,School Improvement,Contributions To Provisions,Contributions - Other,LK103,07/01/2021,653025,3838.34,REVENUE,ELLISTON PRIMARY ACADEMY,129629
North East Lincolnshire Council,http://statistics.data.gov.uk/id/local-authority/00FC),Children & Family Services,Ass Dir - Education,School Improvement,Contributions To Provisions,Contributions - Other,LK103,07/01/2021,653026,2349.46,REVENUE,ST JOSEPH'S RC PRIMARY ACADEMY,110066
North East Lincolnshire Council,http://statistics.data.gov.uk/id/local-authority/00FC),Children & Family Services,Ass Dir - Education,School Improvement,Contributions To Provisions,Contributions - Other,LK103,07/01/2021,653028,2092.8,REVENUE,CLEETHORPES CHILDCARE,101591
North East Lincolnshire Council,http://statistics.data.gov.uk/id/local-authority/00FC),Children & Family Services,Ass Dir - Education,School Improvement,Contributions To Provisions,Contributions - Other,LK103,07/01/2021,653027,1569.6,REVENUE,TEC PARTNERSHIP - LITTLE STARS DAY NURSERY,114230
North East Lincolnshire Council,http://statistics.data.gov.uk/id/local-authority/00FC),Children & Family Services,Ass Dir - Education,School Improvement,Contributions To Provisions,Contributions - Other,LK103,07/01/2021,653029,2511.36,REVENUE,LISLE MARSDEN CHILDCARE LIMITED,110493
North East Lincolnshire Council,http://statistics.data.gov.uk/id/local-authority/00FC),Children & Family Services,Ass Dir - Education,School Improvement,Contributions To Provisions,Contributions - Other,LK103,14/01/2021,653981,976.64,REVENUE,CAMPDEN KIDS LTD,132975
North East Lincolnshire Council,http://statistics.data.gov.uk/id/local-authority/00FC),Children & Family Services,Ass Dir - Education,School Improvement,Contributions To Provisions,Contributions - Other,LK103,07/01/2021,653030,941.76,REVENUE,WIZ KIDZ,102424
North East Lincolnshire Council,http://statistics.data.gov.uk/id/local-authority/00FC),Children & Family Services,Ass Dir - Education,School Improvement,Contributions To Provisions,Contributions - Other,LK103,07/01/2021,653031,784.8,REVENUE,PRECIOUS TIMES CHILDCARE SERVICES,101420
North East Lincolnshire Council,http://statistics.data.gov.uk/id/local-authority/00FC),Children & Family Services,Ass Dir - Education,School Improvement,Contributions To Provisions,Contributions - Other,LK103,07/01/2021,653037,1569.6,REVENUE,EXPLOROSITY EDUCATION LTD,145026
North East Lincolnshire Council,http://statistics.data.gov.uk/id/local-authority/00FC),Children & Family Services,Ass Dir - Education,School Improvement,Contributions To Provisions,Contributions - Other,LK103,07/01/2021,653034,1255.68,REVENUE,WENDOVER PRE-SCHOOL,101350
North East Lincolnshire Council,http://statistics.data.gov.uk/id/local-authority/00FC),Children & Family Services,Ass Dir - Education,School Improvement,Contributions To Provisions,Contributions - Other,LK103,07/01/2021,653038,2092.8,REVENUE,ORMISTON SOUTH PARADE ACADEMY,111750
North East Lincolnshire Council,http://statistics.data.gov.uk/id/local-authority/00FC),Children & Family Services,Ass Dir - Education,School Improvement,Contributions To Provisions,Contributions - Other,LK103,07/01/2021,653032,1046.4,REVENUE,EDWARD HENEAGE PRIMARY (ACADEMY),111742
North East Lincolnshire Council,http://statistics.data.gov.uk/id/local-authority/00FC),Children & Family Services,Ass Dir - Education,School Improvement,Contributions To Provisions,Contributions - Other,LK103,07/01/2021,653030,1255.68,REVENUE,WIZ KIDZ,102424
North East Lincolnshire Council,http://statistics.data.gov.uk/id/local-authority/00FC),Children & Family Services,Ass Dir - Education,School Improvement,Contributions To Provisions,Contributions - Other,LK103,07/01/2021,653031,1569.6,REVENUE,PRECIOUS TIMES CHILDCARE SERVICES,101420
North East Lincolnshire Council,http://statistics.data.gov.uk/id/local-authority/00FC),Children & Family Services,Ass Dir - Education,School Improvement,Contributions To Provisions,Contributions - Other,LK103,07/01/2021,653029,1046.4,REVENUE,LISLE MARSDEN CHILDCARE LIMITED,110493
North East Lincolnshire Council,http://statistics.data.gov.uk/id/local-authority/00FC),Children & Family Services,Ass Dir - Education,School Improvement,Contributions To Provisions,Contributions - Other,LK103,07/01/2021,653038,1569.6,REVENUE,ORMISTON SOUTH PARADE ACADEMY,111750
North East Lincolnshire Council,http://statistics.data.gov.uk/id/local-authority/00FC),Children & Family Services,Ass Dir - Education,School Improvement,Contributions To Provisions,Contributions - Other,LK103,07/01/2021,653031,941.76,REVENUE,PRECIOUS TIMES CHILDCARE SERVICES,101420
North East Lincolnshire Council,http://statistics.data.gov.uk/id/local-authority/00FC),Children & Family Services,Ass Dir - Education,School Improvement,Contributions To Provisions,Contributions - Other,LK103,07/01/2021,653038,2092.8,REVENUE,ORMISTON SOUTH PARADE ACADEMY,111750
North East Lincolnshire Council,http://statistics.data.gov.uk/id/local-authority/00FC),Children & Family Services,Ass Dir - Education,School Improvement,Contributions To Provisions,Contributions - Other,LK103,07/01/2021,653027,1046.4,REVENUE,TEC PARTNERSHIP - LITTLE STARS DAY NURSERY,114230
North East Lincolnshire Council,http://statistics.data.gov.uk/id/local-authority/00FC),Children & Family Services,Ass Dir - Education,School Improvement,Contributions To Provisions,Contributions - Other,LK103,07/01/2021,653036,1255.68,REVENUE,HEALING VILLAGE NURSERY,101096
North East Lincolnshire Council,http://statistics.data.gov.uk/id/local-authority/00FC),Children & Family Services,Ass Dir - Education,School Improvement,Contributions To Provisions,Contributions - Other,LK103,07/01/2021,653033,750,REVENUE,REYNOLDS PRIMARY ACADEMY,122175
North East Lincolnshire Council,http://statistics.data.gov.uk/id/local-authority/00FC),Children & Family Services,Ass Dir - Education,School Improvement,Contributions To Provisions,Contributions - Other,LK103,07/01/2021,653020,1231.5,REVENUE,R82 UK LTD,101710
North East Lincolnshire Council,http://statistics.data.gov.uk/id/local-authority/00FC),Children & Family Services,Ass Dir - Safer Nel,Young And Safe,Miscellaneous Expenses,Other Supplies & Services,LL110,19/01/2021,654343,4000,REVENUE,PEAK INDICATORS LIMITED,147433
North East Lincolnshire Council,http://statistics.data.gov.uk/id/local-authority/00FC),Children & Family Services,Ass Dir - Safer Nel,Young And Safe,Equip / Furniture / Materials,Equipment - Purchase,LA101,28/01/2021,655868,1457.75,REVENUE,DSG RETAIL LTD,101791
North East Lincolnshire Council,http://statistics.data.gov.uk/id/local-authority/00FC),Children & Family Services,Ass Dir - Safer Nel,Young And Safe,Catering,Provisions,LB101,21/01/2021,655068,1000,REVENUE,TESCO STORES LIMITED,102576
North East Lincolnshire Council,http://statistics.data.gov.uk/id/local-authority/00FC),Children & Family Services,Ass Dir - Safer Nel,Young And Safe,Communications And Computing,Computer H/Ware - Purchases,LF105,13/01/2021,653907,689.66,REVENUE,XMA LIMITED,100699
North East Lincolnshire Council,http://statistics.data.gov.uk/id/local-authority/00FC),Children & Family Services,Ass Dir - Safer Nel,Troubled Families,Indirect Employee Expenses,Staff Training,EB122,26/01/2021,655611,2000,REVENUE,ROCHDALE BOROUGH COUNCIL,148032
North East Lincolnshire Council,http://statistics.data.gov.uk/id/local-authority/00FC),Children & Family Services,Ass Dir - Safer Nel,Troubled Families,Other Agencies,Grants Pd Over To Third Party,PJ138,06/01/2021,652918,20000,REVENUE,COMMUNITY PRESS OFFICE LTD,101728
North East Lincolnshire Council,http://statistics.data.gov.uk/id/local-authority/00FC),Children & Family Services,Ass Dir - Safer Nel,Troubled Families,Catering,Provisions,LB101,21/01/2021,655377,850,REVENUE,BIDVEST NOONAN (UK) LTD,146901
North East Lincolnshire Council,http://statistics.data.gov.uk/id/local-authority/00FC),Children & Family Services,Ass Dir - Safer Nel,Troubled Families,Other Agencies,Contact,PJ126,12/01/2021,652993,355.1,REVENUE,B & M RETAIL LIMITED,116266
North East Lincolnshire Council,http://statistics.data.gov.uk/id/local-authority/00FC),Children & Family Services,Ass Dir - Safer Nel,Troubled Families,Indirect Employee Expenses,Staff Training,EB122,12/01/2021,653764,2750,REVENUE,NATIONAL FAMILY MEDIATION,147867
North East Lincolnshire Council,http://statistics.data.gov.uk/id/local-authority/00FC),Children & Family Services,Ass Dir - Women & Children,Palliative / Complex Care,Private Contractors,Third Party Prov - Private,PH101,06/01/2021,651713,308.02,REVENUE,AK PAYROLL SERIVCES LTD,145109
North East Lincolnshire Council,http://statistics.data.gov.uk/id/local-authority/00FC),Children & Family Services,Ass Dir - Women & Children,Palliative / Complex Care,Private Contractors,Third Party Prov - Private,PH101,25/01/2021,655539,2971.06,REVENUE,AK PAYROLL SERIVCES LTD,145106
North East Lincolnshire Council,http://statistics.data.gov.uk/id/local-authority/00FC),Children & Family Services,Ass Dir - Women & Children,Palliative / Complex Care,Private Contractors,Third Party Prov - Private,PH101,25/01/2021,655578,892.02,REVENUE,AK PAYROLL SERIVCES LTD,145107
North East Lincolnshire Council,http://statistics.data.gov.uk/id/local-authority/00FC),Children & Family Services,Ass Dir - Women & Children,Palliative / Complex Care,Private Contractors,Third Party Prov - Private,PH101,25/01/2021,655537,3298.1,REVENUE,AK PAYROLL SERIVCES LTD,145114
North East Lincolnshire Council,http://statistics.data.gov.uk/id/local-authority/00FC),Children & Family Services,Ass Dir - Women & Children,Palliative / Complex Care,Private Contractors,Third Party Prov - Private,PH101,27/01/2021,655538,962.1,REVENUE,AK PAYROLL SERIVCES LTD,145113
North East Lincolnshire Council,http://statistics.data.gov.uk/id/local-authority/00FC),Children & Family Services,Ass Dir - Women & Children,Palliative / Complex Care,Private Contractors,Third Party Prov - Private,PH101,27/01/2021,655536,1896.5,REVENUE,AK PAYROLL SERIVCES LTD,145112
North East Lincolnshire Council,http://statistics.data.gov.uk/id/local-authority/00FC),Children & Family Services,Ass Dir - Women & Children,Palliative / Complex Care,Private Contractors,Third Party Prov - Private,PH101,25/01/2021,655535,588.34,REVENUE,AK PAYROLL SERIVCES LTD,145108
North East Lincolnshire Council,http://statistics.data.gov.uk/id/local-authority/00FC),Children & Family Services,Ass Dir - Women & Children,Palliative / Complex Care,Private Contractors,Third Party Prov - Private,PH101,27/01/2021,655534,985.46,REVENUE,AK PAYROLL SERIVCES LTD,145109
North East Lincolnshire Council,http://statistics.data.gov.uk/id/local-authority/00FC),Children & Family Services,Ass Dir - Women & Children,Palliative / Complex Care,Private Contractors,Third Party Prov - Private,PH101,25/01/2021,655529,2975.66,REVENUE,AK PAYROLL SERIVCES LTD,145106
North East Lincolnshire Council,http://statistics.data.gov.uk/id/local-authority/00FC),Children & Family Services,Ass Dir - Women & Children,Palliative / Complex Care,Private Contractors,Third Party Prov - Private,PH101,25/01/2021,655532,896.62,REVENUE,AK PAYROLL SERIVCES LTD,145107
North East Lincolnshire Council,http://statistics.data.gov.uk/id/local-authority/00FC),Children & Family Services,Ass Dir - Women & Children,Palliative / Complex Care,Private Contractors,Third Party Prov - Private,PH101,27/01/2021,655533,3302.7,REVENUE,AK PAYROLL SERIVCES LTD,145114
North East Lincolnshire Council,http://statistics.data.gov.uk/id/local-authority/00FC),Children & Family Services,Ass Dir - Women & Children,Palliative / Complex Care,Private Contractors,Third Party Prov - Private,PH101,25/01/2021,655531,1901.1,REVENUE,AK PAYROLL SERIVCES LTD,145112
North East Lincolnshire Council,http://statistics.data.gov.uk/id/local-authority/00FC),Children & Family Services,Ass Dir - Women & Children,Palliative / Complex Care,Private Contractors,Third Party Prov - Private,PH101,25/01/2021,655528,592.94,REVENUE,AK PAYROLL SERIVCES LTD,145108
North East Lincolnshire Council,http://statistics.data.gov.uk/id/local-authority/00FC),Children & Family Services,Ass Dir - Women & Children,Palliative / Complex Care,Private Contractors,Third Party Prov - Private,PH101,25/01/2021,655527,990.96,REVENUE,AK PAYROLL SERIVCES LTD,145109
North East Lincolnshire Council,http://statistics.data.gov.uk/id/local-authority/00FC),Children & Family Services,Ass Dir - Women & Children,Palliative / Complex Care,Private Contractors,Third Party Prov - Private,PH101,25/01/2021,655543,966.7,REVENUE,AK PAYROLL SERIVCES LTD,145113
North East Lincolnshire Council,http://statistics.data.gov.uk/id/local-authority/00FC),Children & Family Services,Ass Dir - Women & Children,Childrens Mental & Emot Health,Indirect Employee Expenses,Staff Training,EB122,13/01/2021,653815,8275,REVENUE,COMPASS SERVICES TO TACKLE PROBLEM DRUG USE,145810
North East Lincolnshire Council,http://statistics.data.gov.uk/id/local-authority/00FC),Children & Family Services,Ass Dir - Women & Children,Childrens Mental & Emot Health,Private Contractors,Contract Payments,PH105,08/01/2021,653366,226557.67,REVENUE,LINCOLNSHIRE PARTNERSHIP NHS FOUNDATION TRUST,105021
North East Lincolnshire Council,http://statistics.data.gov.uk/id/local-authority/00FC),Children & Family Services,Ass Dir - Women & Children,Childrens Mental & Emot Health,Private Contractors,Third Party Prov - Private,PH101,12/01/2021,653416,24998.84,REVENUE,KOOTH DIGITAL HEALTH LIMITED,135941
North East Lincolnshire Council,http://statistics.data.gov.uk/id/local-authority/00FC),Children & Family Services,Ass Dir - Women & Children,Childrens Mental & Emot Health,Private Contractors,Third Party Prov - Private,PH101,13/01/2021,653836,1858.66,REVENUE,KOOTH DIGITAL HEALTH LIMITED,135941
North East Lincolnshire Council,http://statistics.data.gov.uk/id/local-authority/00FC),Children & Family Services,Ass Dir - Women & Children,Childrens Mental & Emot Health,Private Contractors,Third Party Prov - Private,PH101,15/01/2021,623447,5558.33,REVENUE,KOOTH DIGITAL HEALTH LIMITED,135941
North East Lincolnshire Council,http://statistics.data.gov.uk/id/local-authority/00FC),Children & Family Services,Ass Dir - Women & Children,Childrens Mental & Emot Health,Communications And Computing,Computer H/Ware - Purchases,LF105,13/01/2021,653910,689.66,REVENUE,XMA LIMITED,100699
North East Lincolnshire Council,http://statistics.data.gov.uk/id/local-authority/00FC),Children & Family Services,Director - Children / Fam Serv,Director Children & Fam Serv,Direct Employee Expenses,Agency Staff,EA105,07/01/2021,653073,3360,REVENUE,ATTENTI CONSULTING,146503
North East Lincolnshire Council,http://statistics.data.gov.uk/id/local-authority/00FC),Children & Family Services,Director - Children / Fam Serv,Director Children & Fam Serv,Direct Employee Expenses,Agency Staff,EA105,08/01/2021,652384,4200,REVENUE,ATTENTI CONSULTING,146503
North East Lincolnshire Council,http://statistics.data.gov.uk/id/local-authority/00FC),Children & Family Services,Director - Children / Fam Serv,Director Children & Fam Serv,Direct Employee Expenses,Agency Staff,EA105,08/01/2021,652558,4200,REVENUE,ATTENTI CONSULTING,146503
North East Lincolnshire Council,http://statistics.data.gov.uk/id/local-authority/00FC),Children & Family Services,Director - Children / Fam Serv,Director Children & Fam Serv,Direct Employee Expenses,Agency Staff,EA105,14/01/2021,653942,4200,REVENUE,ATTENTI CONSULTING,146503
North East Lincolnshire Council,http://statistics.data.gov.uk/id/local-authority/00FC),Children & Family Services,Director - Children / Fam Serv,Director Children & Fam Serv,Direct Employee Expenses,Agency Staff,EA105,29/01/2021,655134,4200,REVENUE,ATTENTI CONSULTING,146503
North East Lincolnshire Council,http://statistics.data.gov.uk/id/local-authority/00FC),Children & Family Services,Director - Children / Fam Serv,Director Children & Fam Serv,Direct Employee Expenses,Agency Staff,EA105,29/01/2021,656214,4200,REVENUE,ATTENTI CONSULTING,146503
North East Lincolnshire Council,http://statistics.data.gov.uk/id/local-authority/00FC),Children & Family Services,Director - Children / Fam Serv,Director Children & Fam Serv,Private Contractors,Contract Payments,PH105,13/01/2021,653864,2291.66,REVENUE,SIGNIS LTD,145139
North East Lincolnshire Council,http://statistics.data.gov.uk/id/local-authority/00FC),Children & Family Services,Director - Children / Fam Serv,Director Children & Fam Serv,Consultancy,Consultancy,PL101,04/01/2021,652493,500,REVENUE,GRAVITAS RECRUITMENT GROUP LTD,143484
North East Lincolnshire Council,http://statistics.data.gov.uk/id/local-authority/00FC),Children & Family Services,Director - Children / Fam Serv,Director Children & Fam Serv,Consultancy,Consultancy,PL101,05/01/2021,652607,1500,REVENUE,GRAVITAS RECRUITMENT GROUP LTD,143484
North East Lincolnshire Council,http://statistics.data.gov.uk/id/local-authority/00FC),Children & Family Services,Director - Children / Fam Serv,Director Children & Fam Serv,Consultancy,Consultancy,PL101,13/01/2021,653790,2500,REVENUE,GRAVITAS RECRUITMENT GROUP LTD,143484
North East Lincolnshire Council,http://statistics.data.gov.uk/id/local-authority/00FC),Children & Family Services,Director - Children / Fam Serv,Director Children & Fam Serv,Consultancy,Consultancy,PL101,20/01/2021,655045,2500,REVENUE,GRAVITAS RECRUITMENT GROUP LTD,143484
North East Lincolnshire Council,http://statistics.data.gov.uk/id/local-authority/00FC),Children & Family Services,Director - Children / Fam Serv,Director Children & Fam Serv,Consultancy,Consultancy,PL101,28/01/2021,655625,2500,REVENUE,GRAVITAS RECRUITMENT GROUP LTD,143484
North East Lincolnshire Council,http://statistics.data.gov.uk/id/local-authority/00FC),Children & Family Services,Ass Dir-Safeguard & Early Help,Childrens Health,Private Contractors,Contract Payments,PH105,15/01/2021,654463,1110,REVENUE,N LINCS & GOOLE HOSPITALS NHS FOUNDATION TRUS,111074
North East Lincolnshire Council,http://statistics.data.gov.uk/id/local-authority/00FC),Children & Family Services,Ass Dir-Safeguard & Early Help,Childrens Health,Other Agencies,Grants Pd Over To Third Party,PJ138,14/01/2021,651221,9117.17,REVENUE,N LINCS & GOOLE HOSPITALS NHS FOUNDATION TRUS,111074
North East Lincolnshire Council,http://statistics.data.gov.uk/id/local-authority/00FC),Children & Family Services,Ass Dir-Safeguard & Early Help,Childrens Health,Indirect Employee Expenses,Staff Training,EB122,22/01/2021,655448,1920,REVENUE,INSTITUTE OF HEALTH VISITING,135605
North East Lincolnshire Council,http://statistics.data.gov.uk/id/local-authority/00FC),Children & Family Services,Ass Dir-Safeguard & Early Help,Childrens Health,Rents,Room Hire,GC103,21/01/2021,655085,300,REVENUE,CLEETHORPES COMMUNITY SPORTS & EDUCATION,140111
North East Lincolnshire Council,http://statistics.data.gov.uk/id/local-authority/00FC),Children & Family Services,Ass Dir-Safeguard & Early Help,Childrens Health,Equip / Furniture / Materials,Equipment - Maintenance,LA104,19/01/2021,654649,2286.5,REVENUE,P&A MEDICAL LIMITED,148126
North East Lincolnshire Council,http://statistics.data.gov.uk/id/local-authority/00FC),Children & Family Services,Ass Dir-Safeguard & Early Help,Childrens Health,Equip / Furniture / Materials,Equipment - Purchase,LA101,06/01/2021,652461,419.4,REVENUE,FINDEL EDUCATION LTD,101237
North East Lincolnshire Council,http://statistics.data.gov.uk/id/local-authority/00FC),Children & Family Services,Ass Dir-Safeguard & Early Help,Childrens Health,Miscellaneous Expenses,Medical Supplies And Services,LL109,04/01/2021,652506,259,REVENUE,MEDISAVE UK LTD,101716
North East Lincolnshire Council,http://statistics.data.gov.uk/id/local-authority/00FC),Children & Family Services,Ass Dir-Safeguard & Early Help,Childrens Health,Miscellaneous Expenses,Medical Supplies And Services,LL109,05/01/2021,652509,399,REVENUE,MEDISAVE UK LTD,101716
North East Lincolnshire Council,http://statistics.data.gov.uk/id/local-authority/00FC),Children & Family Services,Ass Dir-Safeguard & Early Help,Childrens Health,Equip / Furniture / Materials,Equipment - Maintenance,LA104,25/01/2021,655487,1241.61,REVENUE,TWOFOLD MAILING LTD,105163
North East Lincolnshire Council,http://statistics.data.gov.uk/id/local-authority/00FC),Children & Family Services,Ass Dir-Safeguard & Early Help,Family Hubs,Catering,Provisions,LB101,14/01/2021,653876,1000,REVENUE,TESCO STORES LIMITED,102576
North East Lincolnshire Council,http://statistics.data.gov.uk/id/local-authority/00FC),Children & Family Services,Ass Dir-Safeguard & Early Help,Family Hubs,Communications And Computing,Telephones,LF112,25/01/2021,655580,2837.48,REVENUE,VIRGIN MEDIA,107612
North East Lincolnshire Council,http://statistics.data.gov.uk/id/local-authority/00FC),Children & Family Services,Ass Dir-Safeguard & Early Help,Family Hubs,Communications And Computing,Computer H/Ware - Purchases,LF105,29/01/2021,655403,689.66,REVENUE,XMA LIMITED,100699
North East Lincolnshire Council,http://statistics.data.gov.uk/id/local-authority/00FC),Children & Family Services,Ass Dir-Safeguard & Early Help,Family Hubs,Communications And Computing,Computer H/Ware - Purchases,LF105,18/01/2021,654604,689.66,REVENUE,XMA LIMITED,100699
North East Lincolnshire Council,http://statistics.data.gov.uk/id/local-authority/00FC),Children & Family Services,Ass Dir-Safeguard & Early Help,Head Of Child Resource & Reg,Private Contractors,Third Party Prov - Private,PH101,19/01/2021,654777,1926,REVENUE,SSCL,134915
North East Lincolnshire Council,http://statistics.data.gov.uk/id/local-authority/00FC),Children & Family Services,Ass Dir-Safeguard & Early Help,Head Of Child Resource & Reg,Private Contractors,Third Party Prov - Private,PH101,28/01/2021,655958,4815,REVENUE,SSCL,134915
North East Lincolnshire Council,http://statistics.data.gov.uk/id/local-authority/00FC),Children & Family Services,Ass Dir-Safeguard & Early Help,Head Of Child Resource & Reg,Private Contractors,Third Party Prov - Private,PH101,28/01/2021,655957,4815,REVENUE,SSCL,134915
North East Lincolnshire Council,http://statistics.data.gov.uk/id/local-authority/00FC),Children & Family Services,Ass Dir-Safeguard & Early Help,Head Of Child Resource & Reg,Private Contractors,Third Party Prov - Private,PH101,28/01/2021,655955,2247,REVENUE,SSCL,134915
North East Lincolnshire Council,http://statistics.data.gov.uk/id/local-authority/00FC),Children & Family Services,Ass Dir-Safeguard & Early Help,Head Of Child Resource & Reg,Private Contractors,Third Party Prov - Private,PH101,28/01/2021,655956,4494,REVENUE,SSCL,134915
North East Lincolnshire Council,http://statistics.data.gov.uk/id/local-authority/00FC),Children & Family Services,Ass Dir-Safeguard & Early Help,Head Of Child Resource & Reg,Equip / Furniture / Materials,Equipment - Purchase,LA101,14/01/2021,653937,483.53,REVENUE,VULNERABLE YOUNG PEOPLE PROJECT HENEAGE,110637
North East Lincolnshire Council,http://statistics.data.gov.uk/id/local-authority/00FC),Children & Family Services,Ass Dir-Safeguard & Early Help,Head Of Child Resource & Reg,Catering,Provisions,LB101,14/01/2021,653937,545.43,REVENUE,VULNERABLE YOUNG PEOPLE PROJECT HENEAGE,110637
North East Lincolnshire Council,http://statistics.data.gov.uk/id/local-authority/00FC),Children & Family Services,Ass Dir-Safeguard & Early Help,Head Of Child Resource & Reg,Miscellaneous Expenses,Activities - Service Users,LL114,14/01/2021,653937,393.12,REVENUE,VULNERABLE YOUNG PEOPLE PROJECT HENEAGE,110637
North East Lincolnshire Council,http://statistics.data.gov.uk/id/local-authority/00FC),Children & Family Services,Ass Dir-Safeguard & Early Help,Head Of Child Resource & Reg,Other Agencies,Additional Cost,PJ114,12/01/2021,873187,7901.2,REVENUE,REDACTED PERSONAL INFORMATION,REDACTED PERSONAL INFORMATION
North East Lincolnshire Council,http://statistics.data.gov.uk/id/local-authority/00FC),Children & Family Services,Ass Dir-Safeguard & Early Help,Head Of Child Resource & Reg,Other Agencies,Additional Cost,PJ114,19/01/2021,880195,350,REVENUE,REDACTED PERSONAL INFORMATION,REDACTED PERSONAL INFORMATION
North East Lincolnshire Council,http://statistics.data.gov.uk/id/local-authority/00FC),Children & Family Services,Ass Dir-Safeguard & Early Help,Head Of Child Resource & Reg,Other Agencies,Birthday,PJ110,12/01/2021,872888,340,REVENUE,REDACTED PERSONAL INFORMATION,REDACTED PERSONAL INFORMATION
North East Lincolnshire Council,http://statistics.data.gov.uk/id/local-authority/00FC),Children & Family Services,Ass Dir-Safeguard & Early Help,Head Of Child Resource & Reg,Other Agencies,Birthday,PJ110,12/01/2021,872860,284,REVENUE,REDACTED PERSONAL INFORMATION,REDACTED PERSONAL INFORMATION
North East Lincolnshire Council,http://statistics.data.gov.uk/id/local-authority/00FC),Children & Family Services,Ass Dir-Safeguard & Early Help,Head Of Child Resource & Reg,Other Agencies,Child Care Payments,PJ104,12/01/2021,872888,364,REVENUE,REDACTED PERSONAL INFORMATION,REDACTED PERSONAL INFORMATION
North East Lincolnshire Council,http://statistics.data.gov.uk/id/local-authority/00FC),Children & Family Services,Ass Dir-Safeguard & Early Help,Head Of Child Resource & Reg,Other Agencies,Child Care Payments,PJ104,12/01/2021,872860,364,REVENUE,REDACTED PERSONAL INFORMATION,REDACTED PERSONAL INFORMATION
North East Lincolnshire Council,http://statistics.data.gov.uk/id/local-authority/00FC),Children & Family Services,Ass Dir-Safeguard & Early Help,Head Of Child Resource & Reg,Other Agencies,Child Care Payments,PJ104,12/01/2021,873007,364,REVENUE,REDACTED PERSONAL INFORMATION,REDACTED PERSONAL INFORMATION
North East Lincolnshire Council,http://statistics.data.gov.uk/id/local-authority/00FC),Children & Family Services,Ass Dir-Safeguard & Early Help,Head Of Child Resource & Reg,Other Agencies,Child Care Payments,PJ104,12/01/2021,873066,364,REVENUE,REDACTED PERSONAL INFORMATION,REDACTED PERSONAL INFORMATION
North East Lincolnshire Council,http://statistics.data.gov.uk/id/local-authority/00FC),Children & Family Services,Ass Dir-Safeguard & Early Help,Head Of Child Resource & Reg,Other Agencies,Child Care Payments,PJ104,12/01/2021,873080,364,REVENUE,REDACTED PERSONAL INFORMATION,REDACTED PERSONAL INFORMATION
North East Lincolnshire Council,http://statistics.data.gov.uk/id/local-authority/00FC),Children & Family Services,Ass Dir-Safeguard & Early Help,Head Of Child Resource & Reg,Other Agencies,Child Care Payments,PJ104,19/01/2021,880070,364,REVENUE,REDACTED PERSONAL INFORMATION,REDACTED PERSONAL INFORMATION
North East Lincolnshire Council,http://statistics.data.gov.uk/id/local-authority/00FC),Children & Family Services,Ass Dir-Safeguard & Early Help,Head Of Child Resource & Reg,Other Agencies,Child Care Payments,PJ104,19/01/2021,879855,364,REVENUE,REDACTED PERSONAL INFORMATION,REDACTED PERSONAL INFORMATION
North East Lincolnshire Council,http://statistics.data.gov.uk/id/local-authority/00FC),Children & Family Services,Ass Dir-Safeguard & Early Help,Head Of Child Resource & Reg,Other Agencies,Child Care Payments,PJ104,19/01/2021,879883,364,REVENUE,REDACTED PERSONAL INFORMATION,REDACTED PERSONAL INFORMATION
North East Lincolnshire Council,http://statistics.data.gov.uk/id/local-authority/00FC),Children & Family Services,Ass Dir-Safeguard & Early Help,Head Of Child Resource & Reg,Other Agencies,Child Care Payments,PJ104,19/01/2021,879998,364,REVENUE,REDACTED PERSONAL INFORMATION,REDACTED PERSONAL INFORMATION
North East Lincolnshire Council,http://statistics.data.gov.uk/id/local-authority/00FC),Children & Family Services,Ass Dir-Safeguard & Early Help,Head Of Child Resource & Reg,Other Agencies,Child Care Payments,PJ104,19/01/2021,880057,364,REVENUE,REDACTED PERSONAL INFORMATION,REDACTED PERSONAL INFORMATION
North East Lincolnshire Council,http://statistics.data.gov.uk/id/local-authority/00FC),Children & Family Services,Ass Dir-Safeguard & Early Help,Head Of Child Resource & Reg,Other Agencies,Child Care Payments,PJ104,26/01/2021,883455,364,REVENUE,REDACTED PERSONAL INFORMATION,REDACTED PERSONAL INFORMATION
North East Lincolnshire Council,http://statistics.data.gov.uk/id/local-authority/00FC),Children & Family Services,Ass Dir-Safeguard & Early Help,Head Of Child Resource & Reg,Other Agencies,Child Care Payments,PJ104,26/01/2021,883310,364,REVENUE,REDACTED PERSONAL INFORMATION,REDACTED PERSONAL INFORMATION
North East Lincolnshire Council,http://statistics.data.gov.uk/id/local-authority/00FC),Children & Family Services,Ass Dir-Safeguard & Early Help,Head Of Child Resource & Reg,Other Agencies,Child Care Payments,PJ104,26/01/2021,883516,364,REVENUE,REDACTED PERSONAL INFORMATION,REDACTED PERSONAL INFORMATION
North East Lincolnshire Council,http://statistics.data.gov.uk/id/local-authority/00FC),Children & Family Services,Ass Dir-Safeguard & Early Help,Head Of Child Resource & Reg,Other Agencies,Child Care Payments,PJ104,26/01/2021,883339,364,REVENUE,REDACTED PERSONAL INFORMATION,REDACTED PERSONAL INFORMATION
North East Lincolnshire Council,http://statistics.data.gov.uk/id/local-authority/00FC),Children & Family Services,Ass Dir-Safeguard & Early Help,Head Of Child Resource & Reg,Other Agencies,Child Care Payments,PJ104,26/01/2021,883531,364,REVENUE,REDACTED PERSONAL INFORMATION,REDACTED PERSONAL INFORMATION
North East Lincolnshire Council,http://statistics.data.gov.uk/id/local-authority/00FC),Children & Family Services,Ass Dir-Safeguard & Early Help,Head Of Child Resource & Reg,Other Agencies,Child Care Payments,PJ104,12/01/2021,873201,284,REVENUE,REDACTED PERSONAL INFORMATION,REDACTED PERSONAL INFORMATION
North East Lincolnshire Council,http://statistics.data.gov.uk/id/local-authority/00FC),Children & Family Services,Ass Dir-Safeguard & Early Help,Head Of Child Resource & Reg,Other Agencies,Child Care Payments,PJ104,12/01/2021,873206,468,REVENUE,REDACTED PERSONAL INFORMATION,REDACTED PERSONAL INFORMATION
North East Lincolnshire Council,http://statistics.data.gov.uk/id/local-authority/00FC),Children & Family Services,Ass Dir-Safeguard & Early Help,Head Of Child Resource & Reg,Other Agencies,Child Care Payments,PJ104,12/01/2021,873337,298,REVENUE,REDACTED PERSONAL INFORMATION,REDACTED PERSONAL INFORMATION
North East Lincolnshire Council,http://statistics.data.gov.uk/id/local-authority/00FC),Children & Family Services,Ass Dir-Safeguard & Early Help,Head Of Child Resource & Reg,Other Agencies,Child Care Payments,PJ104,19/01/2021,880190,284,REVENUE,REDACTED PERSONAL INFORMATION,REDACTED PERSONAL INFORMATION
North East Lincolnshire Council,http://statistics.data.gov.uk/id/local-authority/00FC),Children & Family Services,Ass Dir-Safeguard & Early Help,Head Of Child Resource & Reg,Other Agencies,Child Care Payments,PJ104,19/01/2021,880195,468,REVENUE,REDACTED PERSONAL INFORMATION,REDACTED PERSONAL INFORMATION
North East Lincolnshire Council,http://statistics.data.gov.uk/id/local-authority/00FC),Children & Family Services,Ass Dir-Safeguard & Early Help,Head Of Child Resource & Reg,Other Agencies,Child Care Payments,PJ104,19/01/2021,880318,298,REVENUE,REDACTED PERSONAL INFORMATION,REDACTED PERSONAL INFORMATION
North East Lincolnshire Council,http://statistics.data.gov.uk/id/local-authority/00FC),Children & Family Services,Ass Dir-Safeguard & Early Help,Head Of Child Resource & Reg,Other Agencies,Child Care Payments,PJ104,26/01/2021,883871,298,REVENUE,REDACTED PERSONAL INFORMATION,REDACTED PERSONAL INFORMATION
North East Lincolnshire Council,http://statistics.data.gov.uk/id/local-authority/00FC),Children & Family Services,Ass Dir-Safeguard & Early Help,Head Of Child Resource & Reg,Other Agencies,Child Care Payments,PJ104,26/01/2021,883682,284,REVENUE,REDACTED PERSONAL INFORMATION,REDACTED PERSONAL INFORMATION
North East Lincolnshire Council,http://statistics.data.gov.uk/id/local-authority/00FC),Children & Family Services,Ass Dir-Safeguard & Early Help,Head Of Child Resource & Reg,Other Agencies,Child Care Payments,PJ104,26/01/2021,883689,468,REVENUE,REDACTED PERSONAL INFORMATION,REDACTED PERSONAL INFORMATION
North East Lincolnshire Council,http://statistics.data.gov.uk/id/local-authority/00FC),Children & Family Services,Ass Dir-Safeguard & Early Help,Head Of Child Resource & Reg,Other Agencies,Child Care Payments,PJ104,12/01/2021,872875,284,REVENUE,REDACTED PERSONAL INFORMATION,REDACTED PERSONAL INFORMATION
North East Lincolnshire Council,http://statistics.data.gov.uk/id/local-authority/00FC),Children & Family Services,Ass Dir-Safeguard & Early Help,Head Of Child Resource & Reg,Other Agencies,Child Care Payments,PJ104,12/01/2021,872888,340,REVENUE,REDACTED PERSONAL INFORMATION,REDACTED PERSONAL INFORMATION
North East Lincolnshire Council,http://statistics.data.gov.uk/id/local-authority/00FC),Children & Family Services,Ass Dir-Safeguard & Early Help,Head Of Child Resource & Reg,Other Agencies,Child Care Payments,PJ104,12/01/2021,872860,270,REVENUE,REDACTED PERSONAL INFORMATION,REDACTED PERSONAL INFORMATION
North East Lincolnshire Council,http://statistics.data.gov.uk/id/local-authority/00FC),Children & Family Services,Ass Dir-Safeguard & Early Help,Head Of Child Resource & Reg,Other Agencies,Child Care Payments,PJ104,12/01/2021,873007,298,REVENUE,REDACTED PERSONAL INFORMATION,REDACTED PERSONAL INFORMATION
North East Lincolnshire Council,http://statistics.data.gov.uk/id/local-authority/00FC),Children & Family Services,Ass Dir-Safeguard & Early Help,Head Of Child Resource & Reg,Other Agencies,Child Care Payments,PJ104,12/01/2021,873066,298,REVENUE,REDACTED PERSONAL INFORMATION,REDACTED PERSONAL INFORMATION
North East Lincolnshire Council,http://statistics.data.gov.uk/id/local-authority/00FC),Children & Family Services,Ass Dir-Safeguard & Early Help,Head Of Child Resource & Reg,Other Agencies,Child Care Payments,PJ104,12/01/2021,873080,284,REVENUE,REDACTED PERSONAL INFORMATION,REDACTED PERSONAL INFORMATION
North East Lincolnshire Council,http://statistics.data.gov.uk/id/local-authority/00FC),Children & Family Services,Ass Dir-Safeguard & Early Help,Head Of Child Resource & Reg,Other Agencies,Child Care Payments,PJ104,19/01/2021,880070,284,REVENUE,REDACTED PERSONAL INFORMATION,REDACTED PERSONAL INFORMATION
North East Lincolnshire Council,http://statistics.data.gov.uk/id/local-authority/00FC),Children & Family Services,Ass Dir-Safeguard & Early Help,Head Of Child Resource & Reg,Other Agencies,Child Care Payments,PJ104,19/01/2021,879855,270,REVENUE,REDACTED PERSONAL INFORMATION,REDACTED PERSONAL INFORMATION
North East Lincolnshire Council,http://statistics.data.gov.uk/id/local-authority/00FC),Children & Family Services,Ass Dir-Safeguard & Early Help,Head Of Child Resource & Reg,Other Agencies,Child Care Payments,PJ104,19/01/2021,879870,284,REVENUE,REDACTED PERSONAL INFORMATION,REDACTED PERSONAL INFORMATION
North East Lincolnshire Council,http://statistics.data.gov.uk/id/local-authority/00FC),Children & Family Services,Ass Dir-Safeguard & Early Help,Head Of Child Resource & Reg,Other Agencies,Child Care Payments,PJ104,19/01/2021,879883,340,REVENUE,REDACTED PERSONAL INFORMATION,REDACTED PERSONAL INFORMATION
North East Lincolnshire Council,http://statistics.data.gov.uk/id/local-authority/00FC),Children & Family Services,Ass Dir-Safeguard & Early Help,Head Of Child Resource & Reg,Other Agencies,Child Care Payments,PJ104,19/01/2021,879998,298,REVENUE,REDACTED PERSONAL INFORMATION,REDACTED PERSONAL INFORMATION
North East Lincolnshire Council,http://statistics.data.gov.uk/id/local-authority/00FC),Children & Family Services,Ass Dir-Safeguard & Early Help,Head Of Child Resource & Reg,Other Agencies,Child Care Payments,PJ104,19/01/2021,880057,298,REVENUE,REDACTED PERSONAL INFORMATION,REDACTED PERSONAL INFORMATION
North East Lincolnshire Council,http://statistics.data.gov.uk/id/local-authority/00FC),Children & Family Services,Ass Dir-Safeguard & Early Help,Head Of Child Resource & Reg,Other Agencies,Child Care Payments,PJ104,26/01/2021,883455,298,REVENUE,REDACTED PERSONAL INFORMATION,REDACTED PERSONAL INFORMATION
North East Lincolnshire Council,http://statistics.data.gov.uk/id/local-authority/00FC),Children & Family Services,Ass Dir-Safeguard & Early Help,Head Of Child Resource & Reg,Other Agencies,Child Care Payments,PJ104,26/01/2021,883310,270,REVENUE,REDACTED PERSONAL INFORMATION,REDACTED PERSONAL INFORMATION
North East Lincolnshire Council,http://statistics.data.gov.uk/id/local-authority/00FC),Children & Family Services,Ass Dir-Safeguard & Early Help,Head Of Child Resource & Reg,Other Agencies,Child Care Payments,PJ104,26/01/2021,883516,298,REVENUE,REDACTED PERSONAL INFORMATION,REDACTED PERSONAL INFORMATION
North East Lincolnshire Council,http://statistics.data.gov.uk/id/local-authority/00FC),Children & Family Services,Ass Dir-Safeguard & Early Help,Head Of Child Resource & Reg,Other Agencies,Child Care Payments,PJ104,26/01/2021,883326,284,REVENUE,REDACTED PERSONAL INFORMATION,REDACTED PERSONAL INFORMATION
North East Lincolnshire Council,http://statistics.data.gov.uk/id/local-authority/00FC),Children & Family Services,Ass Dir-Safeguard & Early Help,Head Of Child Resource & Reg,Other Agencies,Child Care Payments,PJ104,26/01/2021,883339,340,REVENUE,REDACTED PERSONAL INFORMATION,REDACTED PERSONAL INFORMATION
North East Lincolnshire Council,http://statistics.data.gov.uk/id/local-authority/00FC),Children & Family Services,Ass Dir-Safeguard & Early Help,Head Of Child Resource & Reg,Other Agencies,Child Care Payments,PJ104,26/01/2021,883531,284,REVENUE,REDACTED PERSONAL INFORMATION,REDACTED PERSONAL INFORMATION
North East Lincolnshire Council,http://statistics.data.gov.uk/id/local-authority/00FC),Children & Family Services,Ass Dir-Safeguard & Early Help,Head Of Child Resource & Reg,Other Agencies,Child Care Payments,PJ104,19/01/2021,880343,-843.13,REVENUE,REDACTED PERSONAL INFORMATION,REDACTED PERSONAL INFORMATION
North East Lincolnshire Council,http://statistics.data.gov.uk/id/local-authority/00FC),Children & Family Services,Ass Dir-Safeguard & Early Help,Head Of Child Resource & Reg,Other Agencies,Child Care Payments,PJ104,19/01/2021,880431,462.86,REVENUE,REDACTED PERSONAL INFORMATION,REDACTED PERSONAL INFORMATION
North East Lincolnshire Council,http://statistics.data.gov.uk/id/local-authority/00FC),Children & Family Services,Ass Dir-Safeguard & Early Help,Head Of Child Resource & Reg,Other Agencies,Child Care Payments,PJ104,12/01/2021,873111,364,REVENUE,REDACTED PERSONAL INFORMATION,REDACTED PERSONAL INFORMATION
North East Lincolnshire Council,http://statistics.data.gov.uk/id/local-authority/00FC),Children & Family Services,Ass Dir-Safeguard & Early Help,Head Of Child Resource & Reg,Other Agencies,Child Care Payments,PJ104,12/01/2021,873187,988,REVENUE,REDACTED PERSONAL INFORMATION,REDACTED PERSONAL INFORMATION
North East Lincolnshire Council,http://statistics.data.gov.uk/id/local-authority/00FC),Children & Family Services,Ass Dir-Safeguard & Early Help,Head Of Child Resource & Reg,Other Agencies,Child Care Payments,PJ104,19/01/2021,880101,364,REVENUE,REDACTED PERSONAL INFORMATION,REDACTED PERSONAL INFORMATION
North East Lincolnshire Council,http://statistics.data.gov.uk/id/local-authority/00FC),Children & Family Services,Ass Dir-Safeguard & Early Help,Head Of Child Resource & Reg,Other Agencies,Child Care Payments,PJ104,26/01/2021,883562,364,REVENUE,REDACTED PERSONAL INFORMATION,REDACTED PERSONAL INFORMATION
North East Lincolnshire Council,http://statistics.data.gov.uk/id/local-authority/00FC),Children & Family Services,Ass Dir-Safeguard & Early Help,Head Of Child Resource & Reg,Other Agencies,Child Care Payments,PJ104,12/01/2021,873111,319,REVENUE,REDACTED PERSONAL INFORMATION,REDACTED PERSONAL INFORMATION
North East Lincolnshire Council,http://statistics.data.gov.uk/id/local-authority/00FC),Children & Family Services,Ass Dir-Safeguard & Early Help,Head Of Child Resource & Reg,Other Agencies,Child Care Payments,PJ104,19/01/2021,880101,319,REVENUE,REDACTED PERSONAL INFORMATION,REDACTED PERSONAL INFORMATION
North East Lincolnshire Council,http://statistics.data.gov.uk/id/local-authority/00FC),Children & Family Services,Ass Dir-Safeguard & Early Help,Head Of Child Resource & Reg,Other Agencies,Child Care Payments,PJ104,26/01/2021,883562,319,REVENUE,REDACTED PERSONAL INFORMATION,REDACTED PERSONAL INFORMATION
North East Lincolnshire Council,http://statistics.data.gov.uk/id/local-authority/00FC),Children & Family Services,Ass Dir-Safeguard & Early Help,Head Of Child Resource & Reg,Other Agencies,Child Care Payments,PJ104,19/01/2021,879871,286,REVENUE,REDACTED PERSONAL INFORMATION,REDACTED PERSONAL INFORMATION
North East Lincolnshire Council,http://statistics.data.gov.uk/id/local-authority/00FC),Children & Family Services,Ass Dir-Safeguard & Early Help,Head Of Child Resource & Reg,Other Agencies,Child Care Payments,PJ104,19/01/2021,880431,510.86,REVENUE,REDACTED PERSONAL INFORMATION,REDACTED PERSONAL INFORMATION
North East Lincolnshire Council,http://statistics.data.gov.uk/id/local-authority/00FC),Children & Family Services,Ass Dir-Safeguard & Early Help,Head Of Child Resource & Reg,Other Agencies,Child Care Payments,PJ104,12/01/2021,873372,694.59,REVENUE,REDACTED PERSONAL INFORMATION,REDACTED PERSONAL INFORMATION
North East Lincolnshire Council,http://statistics.data.gov.uk/id/local-authority/00FC),Children & Family Services,Ass Dir-Safeguard & Early Help,Head Of Child Resource & Reg,Other Agencies,Child Care Payments,PJ104,19/01/2021,880342,445.86,REVENUE,REDACTED PERSONAL INFORMATION,REDACTED PERSONAL INFORMATION
North East Lincolnshire Council,http://statistics.data.gov.uk/id/local-authority/00FC),Children & Family Services,Ass Dir-Safeguard & Early Help,Head Of Child Resource & Reg,Other Agencies,Child Care Payments,PJ104,26/01/2021,883550,494,REVENUE,REDACTED PERSONAL INFORMATION,REDACTED PERSONAL INFORMATION
North East Lincolnshire Council,http://statistics.data.gov.uk/id/local-authority/00FC),Children & Family Services,Ass Dir-Safeguard & Early Help,Head Of Child Resource & Reg,Other Agencies,Child Care Payments,PJ104,26/01/2021,883550,366.43,REVENUE,REDACTED PERSONAL INFORMATION,REDACTED PERSONAL INFORMATION
North East Lincolnshire Council,http://statistics.data.gov.uk/id/local-authority/00FC),Children & Family Services,Ass Dir-Safeguard & Early Help,Head Of Child Resource & Reg,Other Agencies,Child Care Payments,PJ104,12/01/2021,873181,298,REVENUE,REDACTED PERSONAL INFORMATION,REDACTED PERSONAL INFORMATION
North East Lincolnshire Council,http://statistics.data.gov.uk/id/local-authority/00FC),Children & Family Services,Ass Dir-Safeguard & Early Help,Head Of Child Resource & Reg,Other Agencies,Child Care Payments,PJ104,19/01/2021,880171,298,REVENUE,REDACTED PERSONAL INFORMATION,REDACTED PERSONAL INFORMATION
North East Lincolnshire Council,http://statistics.data.gov.uk/id/local-authority/00FC),Children & Family Services,Ass Dir-Safeguard & Early Help,Head Of Child Resource & Reg,Other Agencies,Child Care Payments,PJ104,26/01/2021,883651,298,REVENUE,REDACTED PERSONAL INFORMATION,REDACTED PERSONAL INFORMATION
North East Lincolnshire Council,http://statistics.data.gov.uk/id/local-authority/00FC),Children & Family Services,Ass Dir-Safeguard & Early Help,Head Of Child Resource & Reg,Other Agencies,Child Care Payments,PJ104,19/01/2021,880432,347.14,REVENUE,REDACTED PERSONAL INFORMATION,REDACTED PERSONAL INFORMATION
North East Lincolnshire Council,http://statistics.data.gov.uk/id/local-authority/00FC),Children & Family Services,Ass Dir-Safeguard & Early Help,Head Of Child Resource & Reg,Other Agencies,Child Care Payments,PJ104,12/01/2021,873264,364,REVENUE,REDACTED PERSONAL INFORMATION,REDACTED PERSONAL INFORMATION
North East Lincolnshire Council,http://statistics.data.gov.uk/id/local-authority/00FC),Children & Family Services,Ass Dir-Safeguard & Early Help,Head Of Child Resource & Reg,Other Agencies,Child Care Payments,PJ104,19/01/2021,880250,364,REVENUE,REDACTED PERSONAL INFORMATION,REDACTED PERSONAL INFORMATION
North East Lincolnshire Council,http://statistics.data.gov.uk/id/local-authority/00FC),Children & Family Services,Ass Dir-Safeguard & Early Help,Head Of Child Resource & Reg,Other Agencies,Child Care Payments,PJ104,26/01/2021,883762,364,REVENUE,REDACTED PERSONAL INFORMATION,REDACTED PERSONAL INFORMATION
North East Lincolnshire Council,http://statistics.data.gov.uk/id/local-authority/00FC),Children & Family Services,Ass Dir-Safeguard & Early Help,Head Of Child Resource & Reg,Other Agencies,Child Care Payments,PJ104,12/01/2021,873264,284,REVENUE,REDACTED PERSONAL INFORMATION,REDACTED PERSONAL INFORMATION
North East Lincolnshire Council,http://statistics.data.gov.uk/id/local-authority/00FC),Children & Family Services,Ass Dir-Safeguard & Early Help,Head Of Child Resource & Reg,Other Agencies,Child Care Payments,PJ104,19/01/2021,880250,284,REVENUE,REDACTED PERSONAL INFORMATION,REDACTED PERSONAL INFORMATION
North East Lincolnshire Council,http://statistics.data.gov.uk/id/local-authority/00FC),Children & Family Services,Ass Dir-Safeguard & Early Help,Head Of Child Resource & Reg,Other Agencies,Child Care Payments,PJ104,26/01/2021,883762,284,REVENUE,REDACTED PERSONAL INFORMATION,REDACTED PERSONAL INFORMATION
North East Lincolnshire Council,http://statistics.data.gov.uk/id/local-authority/00FC),Children & Family Services,Ass Dir-Safeguard & Early Help,Head Of Child Resource & Reg,Other Agencies,Child Care Payments,PJ104,12/01/2021,873310,340,REVENUE,REDACTED PERSONAL INFORMATION,REDACTED PERSONAL INFORMATION
North East Lincolnshire Council,http://statistics.data.gov.uk/id/local-authority/00FC),Children & Family Services,Ass Dir-Safeguard & Early Help,Head Of Child Resource & Reg,Other Agencies,Child Care Payments,PJ104,19/01/2021,880295,340,REVENUE,REDACTED PERSONAL INFORMATION,REDACTED PERSONAL INFORMATION
North East Lincolnshire Council,http://statistics.data.gov.uk/id/local-authority/00FC),Children & Family Services,Ass Dir-Safeguard & Early Help,Head Of Child Resource & Reg,Other Agencies,Child Care Payments,PJ104,26/01/2021,883826,340,REVENUE,REDACTED PERSONAL INFORMATION,REDACTED PERSONAL INFORMATION
North East Lincolnshire Council,http://statistics.data.gov.uk/id/local-authority/00FC),Children & Family Services,Ass Dir-Safeguard & Early Help,Head Of Child Resource & Reg,Other Agencies,Child Care Payments,PJ104,12/01/2021,873310,340,REVENUE,REDACTED PERSONAL INFORMATION,REDACTED PERSONAL INFORMATION
North East Lincolnshire Council,http://statistics.data.gov.uk/id/local-authority/00FC),Children & Family Services,Ass Dir-Safeguard & Early Help,Head Of Child Resource & Reg,Other Agencies,Child Care Payments,PJ104,19/01/2021,880295,340,REVENUE,REDACTED PERSONAL INFORMATION,REDACTED PERSONAL INFORMATION
North East Lincolnshire Council,http://statistics.data.gov.uk/id/local-authority/00FC),Children & Family Services,Ass Dir-Safeguard & Early Help,Head Of Child Resource & Reg,Other Agencies,Child Care Payments,PJ104,26/01/2021,883826,340,REVENUE,REDACTED PERSONAL INFORMATION,REDACTED PERSONAL INFORMATION
North East Lincolnshire Council,http://statistics.data.gov.uk/id/local-authority/00FC),Children & Family Services,Ass Dir-Safeguard & Early Help,Head Of Child Resource & Reg,Other Agencies,Child Care Payments,PJ104,12/01/2021,872852,340.57,REVENUE,REDACTED PERSONAL INFORMATION,REDACTED PERSONAL INFORMATION
North East Lincolnshire Council,http://statistics.data.gov.uk/id/local-authority/00FC),Children & Family Services,Ass Dir-Safeguard & Early Help,Head Of Child Resource & Reg,Other Agencies,Child Care Payments,PJ104,12/01/2021,873239,284,REVENUE,REDACTED PERSONAL INFORMATION,REDACTED PERSONAL INFORMATION
North East Lincolnshire Council,http://statistics.data.gov.uk/id/local-authority/00FC),Children & Family Services,Ass Dir-Safeguard & Early Help,Head Of Child Resource & Reg,Other Agencies,Child Care Payments,PJ104,19/01/2021,880226,284,REVENUE,REDACTED PERSONAL INFORMATION,REDACTED PERSONAL INFORMATION
North East Lincolnshire Council,http://statistics.data.gov.uk/id/local-authority/00FC),Children & Family Services,Ass Dir-Safeguard & Early Help,Head Of Child Resource & Reg,Other Agencies,Child Care Payments,PJ104,26/01/2021,883724,284,REVENUE,REDACTED PERSONAL INFORMATION,REDACTED PERSONAL INFORMATION
North East Lincolnshire Council,http://statistics.data.gov.uk/id/local-authority/00FC),Children & Family Services,Ass Dir-Safeguard & Early Help,Head Of Child Resource & Reg,Other Agencies,Child Care Payments,PJ104,12/01/2021,872868,260,REVENUE,REDACTED PERSONAL INFORMATION,REDACTED PERSONAL INFORMATION
North East Lincolnshire Council,http://statistics.data.gov.uk/id/local-authority/00FC),Children & Family Services,Ass Dir-Safeguard & Early Help,Head Of Child Resource & Reg,Other Agencies,Child Care Payments,PJ104,12/01/2021,873423,319,REVENUE,REDACTED PERSONAL INFORMATION,REDACTED PERSONAL INFORMATION
North East Lincolnshire Council,http://statistics.data.gov.uk/id/local-authority/00FC),Children & Family Services,Ass Dir-Safeguard & Early Help,Head Of Child Resource & Reg,Other Agencies,Child Care Payments,PJ104,19/01/2021,880407,319,REVENUE,REDACTED PERSONAL INFORMATION,REDACTED PERSONAL INFORMATION
North East Lincolnshire Council,http://statistics.data.gov.uk/id/local-authority/00FC),Children & Family Services,Ass Dir-Safeguard & Early Help,Head Of Child Resource & Reg,Other Agencies,Child Care Payments,PJ104,26/01/2021,883984,319,REVENUE,REDACTED PERSONAL INFORMATION,REDACTED PERSONAL INFORMATION
North East Lincolnshire Council,http://statistics.data.gov.uk/id/local-authority/00FC),Children & Family Services,Ass Dir-Safeguard & Early Help,Head Of Child Resource & Reg,Other Agencies,Child Care Payments,PJ104,12/01/2021,873084,624,REVENUE,REDACTED PERSONAL INFORMATION,REDACTED PERSONAL INFORMATION
North East Lincolnshire Council,http://statistics.data.gov.uk/id/local-authority/00FC),Children & Family Services,Ass Dir-Safeguard & Early Help,Head Of Child Resource & Reg,Other Agencies,Contract Plus,PJ135,12/01/2021,873176,315,REVENUE,REDACTED PERSONAL INFORMATION,REDACTED PERSONAL INFORMATION
North East Lincolnshire Council,http://statistics.data.gov.uk/id/local-authority/00FC),Children & Family Services,Ass Dir-Safeguard & Early Help,Head Of Child Resource & Reg,Other Agencies,Contract Plus,PJ135,12/01/2021,872871,315,REVENUE,REDACTED PERSONAL INFORMATION,REDACTED PERSONAL INFORMATION
North East Lincolnshire Council,http://statistics.data.gov.uk/id/local-authority/00FC),Children & Family Services,Ass Dir-Safeguard & Early Help,Head Of Child Resource & Reg,Other Agencies,Contract Plus,PJ135,12/01/2021,872875,315,REVENUE,REDACTED PERSONAL INFORMATION,REDACTED PERSONAL INFORMATION
North East Lincolnshire Council,http://statistics.data.gov.uk/id/local-authority/00FC),Children & Family Services,Ass Dir-Safeguard & Early Help,Head Of Child Resource & Reg,Other Agencies,Contract Plus,PJ135,12/01/2021,872889,315,REVENUE,REDACTED PERSONAL INFORMATION,REDACTED PERSONAL INFORMATION
North East Lincolnshire Council,http://statistics.data.gov.uk/id/local-authority/00FC),Children & Family Services,Ass Dir-Safeguard & Early Help,Head Of Child Resource & Reg,Other Agencies,Contract Plus,PJ135,12/01/2021,872905,315,REVENUE,REDACTED PERSONAL INFORMATION,REDACTED PERSONAL INFORMATION
North East Lincolnshire Council,http://statistics.data.gov.uk/id/local-authority/00FC),Children & Family Services,Ass Dir-Safeguard & Early Help,Head Of Child Resource & Reg,Other Agencies,Contract Plus,PJ135,12/01/2021,872906,315,REVENUE,REDACTED PERSONAL INFORMATION,REDACTED PERSONAL INFORMATION
North East Lincolnshire Council,http://statistics.data.gov.uk/id/local-authority/00FC),Children & Family Services,Ass Dir-Safeguard & Early Help,Head Of Child Resource & Reg,Other Agencies,Contract Plus,PJ135,12/01/2021,872919,315,REVENUE,REDACTED PERSONAL INFORMATION,REDACTED PERSONAL INFORMATION
North East Lincolnshire Council,http://statistics.data.gov.uk/id/local-authority/00FC),Children & Family Services,Ass Dir-Safeguard & Early Help,Head Of Child Resource & Reg,Other Agencies,Contract Plus,PJ135,12/01/2021,872928,315,REVENUE,REDACTED PERSONAL INFORMATION,REDACTED PERSONAL INFORMATION
North East Lincolnshire Council,http://statistics.data.gov.uk/id/local-authority/00FC),Children & Family Services,Ass Dir-Safeguard & Early Help,Head Of Child Resource & Reg,Other Agencies,Contract Plus,PJ135,12/01/2021,872935,315,REVENUE,REDACTED PERSONAL INFORMATION,REDACTED PERSONAL INFORMATION
North East Lincolnshire Council,http://statistics.data.gov.uk/id/local-authority/00FC),Children & Family Services,Ass Dir-Safeguard & Early Help,Head Of Child Resource & Reg,Other Agencies,Contract Plus,PJ135,12/01/2021,872859,315,REVENUE,REDACTED PERSONAL INFORMATION,REDACTED PERSONAL INFORMATION
North East Lincolnshire Council,http://statistics.data.gov.uk/id/local-authority/00FC),Children & Family Services,Ass Dir-Safeguard & Early Help,Head Of Child Resource & Reg,Other Agencies,Contract Plus,PJ135,12/01/2021,872948,315,REVENUE,REDACTED PERSONAL INFORMATION,REDACTED PERSONAL INFORMATION
North East Lincolnshire Council,http://statistics.data.gov.uk/id/local-authority/00FC),Children & Family Services,Ass Dir-Safeguard & Early Help,Head Of Child Resource & Reg,Other Agencies,Contract Plus,PJ135,12/01/2021,872952,315,REVENUE,REDACTED PERSONAL INFORMATION,REDACTED PERSONAL INFORMATION
North East Lincolnshire Council,http://statistics.data.gov.uk/id/local-authority/00FC),Children & Family Services,Ass Dir-Safeguard & Early Help,Head Of Child Resource & Reg,Other Agencies,Contract Plus,PJ135,12/01/2021,873009,315,REVENUE,REDACTED PERSONAL INFORMATION,REDACTED PERSONAL INFORMATION
North East Lincolnshire Council,http://statistics.data.gov.uk/id/local-authority/00FC),Children & Family Services,Ass Dir-Safeguard & Early Help,Head Of Child Resource & Reg,Other Agencies,Contract Plus,PJ135,12/01/2021,873042,315,REVENUE,REDACTED PERSONAL INFORMATION,REDACTED PERSONAL INFORMATION
North East Lincolnshire Council,http://statistics.data.gov.uk/id/local-authority/00FC),Children & Family Services,Ass Dir-Safeguard & Early Help,Head Of Child Resource & Reg,Other Agencies,Contract Plus,PJ135,12/01/2021,873052,315,REVENUE,REDACTED PERSONAL INFORMATION,REDACTED PERSONAL INFORMATION
North East Lincolnshire Council,http://statistics.data.gov.uk/id/local-authority/00FC),Children & Family Services,Ass Dir-Safeguard & Early Help,Head Of Child Resource & Reg,Other Agencies,Contract Plus,PJ135,12/01/2021,873076,315,REVENUE,REDACTED PERSONAL INFORMATION,REDACTED PERSONAL INFORMATION
North East Lincolnshire Council,http://statistics.data.gov.uk/id/local-authority/00FC),Children & Family Services,Ass Dir-Safeguard & Early Help,Head Of Child Resource & Reg,Other Agencies,Contract Plus,PJ135,19/01/2021,880066,315,REVENUE,REDACTED PERSONAL INFORMATION,REDACTED PERSONAL INFORMATION
North East Lincolnshire Council,http://statistics.data.gov.uk/id/local-authority/00FC),Children & Family Services,Ass Dir-Safeguard & Early Help,Head Of Child Resource & Reg,Other Agencies,Contract Plus,PJ135,19/01/2021,880166,315,REVENUE,REDACTED PERSONAL INFORMATION,REDACTED PERSONAL INFORMATION
North East Lincolnshire Council,http://statistics.data.gov.uk/id/local-authority/00FC),Children & Family Services,Ass Dir-Safeguard & Early Help,Head Of Child Resource & Reg,Other Agencies,Contract Plus,PJ135,19/01/2021,879853,315,REVENUE,REDACTED PERSONAL INFORMATION,REDACTED PERSONAL INFORMATION
North East Lincolnshire Council,http://statistics.data.gov.uk/id/local-authority/00FC),Children & Family Services,Ass Dir-Safeguard & Early Help,Head Of Child Resource & Reg,Other Agencies,Contract Plus,PJ135,19/01/2021,879867,315,REVENUE,REDACTED PERSONAL INFORMATION,REDACTED PERSONAL INFORMATION
North East Lincolnshire Council,http://statistics.data.gov.uk/id/local-authority/00FC),Children & Family Services,Ass Dir-Safeguard & Early Help,Head Of Child Resource & Reg,Other Agencies,Contract Plus,PJ135,19/01/2021,879870,315,REVENUE,REDACTED PERSONAL INFORMATION,REDACTED PERSONAL INFORMATION
North East Lincolnshire Council,http://statistics.data.gov.uk/id/local-authority/00FC),Children & Family Services,Ass Dir-Safeguard & Early Help,Head Of Child Resource & Reg,Other Agencies,Contract Plus,PJ135,19/01/2021,879884,315,REVENUE,REDACTED PERSONAL INFORMATION,REDACTED PERSONAL INFORMATION
North East Lincolnshire Council,http://statistics.data.gov.uk/id/local-authority/00FC),Children & Family Services,Ass Dir-Safeguard & Early Help,Head Of Child Resource & Reg,Other Agencies,Contract Plus,PJ135,19/01/2021,879899,315,REVENUE,REDACTED PERSONAL INFORMATION,REDACTED PERSONAL INFORMATION
North East Lincolnshire Council,http://statistics.data.gov.uk/id/local-authority/00FC),Children & Family Services,Ass Dir-Safeguard & Early Help,Head Of Child Resource & Reg,Other Agencies,Contract Plus,PJ135,19/01/2021,879900,315,REVENUE,REDACTED PERSONAL INFORMATION,REDACTED PERSONAL INFORMATION
North East Lincolnshire Council,http://statistics.data.gov.uk/id/local-authority/00FC),Children & Family Services,Ass Dir-Safeguard & Early Help,Head Of Child Resource & Reg,Other Agencies,Contract Plus,PJ135,19/01/2021,879913,315,REVENUE,REDACTED PERSONAL INFORMATION,REDACTED PERSONAL INFORMATION
North East Lincolnshire Council,http://statistics.data.gov.uk/id/local-authority/00FC),Children & Family Services,Ass Dir-Safeguard & Early Help,Head Of Child Resource & Reg,Other Agencies,Contract Plus,PJ135,19/01/2021,879922,315,REVENUE,REDACTED PERSONAL INFORMATION,REDACTED PERSONAL INFORMATION
North East Lincolnshire Council,http://statistics.data.gov.uk/id/local-authority/00FC),Children & Family Services,Ass Dir-Safeguard & Early Help,Head Of Child Resource & Reg,Other Agencies,Contract Plus,PJ135,19/01/2021,879929,315,REVENUE,REDACTED PERSONAL INFORMATION,REDACTED PERSONAL INFORMATION
North East Lincolnshire Council,http://statistics.data.gov.uk/id/local-authority/00FC),Children & Family Services,Ass Dir-Safeguard & Early Help,Head Of Child Resource & Reg,Other Agencies,Contract Plus,PJ135,19/01/2021,879941,315,REVENUE,REDACTED PERSONAL INFORMATION,REDACTED PERSONAL INFORMATION
North East Lincolnshire Council,http://statistics.data.gov.uk/id/local-authority/00FC),Children & Family Services,Ass Dir-Safeguard & Early Help,Head Of Child Resource & Reg,Other Agencies,Contract Plus,PJ135,19/01/2021,879945,315,REVENUE,REDACTED PERSONAL INFORMATION,REDACTED PERSONAL INFORMATION
North East Lincolnshire Council,http://statistics.data.gov.uk/id/local-authority/00FC),Children & Family Services,Ass Dir-Safeguard & Early Help,Head Of Child Resource & Reg,Other Agencies,Contract Plus,PJ135,19/01/2021,880000,315,REVENUE,REDACTED PERSONAL INFORMATION,REDACTED PERSONAL INFORMATION
North East Lincolnshire Council,http://statistics.data.gov.uk/id/local-authority/00FC),Children & Family Services,Ass Dir-Safeguard & Early Help,Head Of Child Resource & Reg,Other Agencies,Contract Plus,PJ135,19/01/2021,880033,315,REVENUE,REDACTED PERSONAL INFORMATION,REDACTED PERSONAL INFORMATION
North East Lincolnshire Council,http://statistics.data.gov.uk/id/local-authority/00FC),Children & Family Services,Ass Dir-Safeguard & Early Help,Head Of Child Resource & Reg,Other Agencies,Contract Plus,PJ135,19/01/2021,880043,315,REVENUE,REDACTED PERSONAL INFORMATION,REDACTED PERSONAL INFORMATION
North East Lincolnshire Council,http://statistics.data.gov.uk/id/local-authority/00FC),Children & Family Services,Ass Dir-Safeguard & Early Help,Head Of Child Resource & Reg,Other Agencies,Contract Plus,PJ135,26/01/2021,883457,315,REVENUE,REDACTED PERSONAL INFORMATION,REDACTED PERSONAL INFORMATION
North East Lincolnshire Council,http://statistics.data.gov.uk/id/local-authority/00FC),Children & Family Services,Ass Dir-Safeguard & Early Help,Head Of Child Resource & Reg,Other Agencies,Contract Plus,PJ135,26/01/2021,883490,315,REVENUE,REDACTED PERSONAL INFORMATION,REDACTED PERSONAL INFORMATION
North East Lincolnshire Council,http://statistics.data.gov.uk/id/local-authority/00FC),Children & Family Services,Ass Dir-Safeguard & Early Help,Head Of Child Resource & Reg,Other Agencies,Contract Plus,PJ135,26/01/2021,883309,315,REVENUE,REDACTED PERSONAL INFORMATION,REDACTED PERSONAL INFORMATION
North East Lincolnshire Council,http://statistics.data.gov.uk/id/local-authority/00FC),Children & Family Services,Ass Dir-Safeguard & Early Help,Head Of Child Resource & Reg,Other Agencies,Contract Plus,PJ135,26/01/2021,883502,315,REVENUE,REDACTED PERSONAL INFORMATION,REDACTED PERSONAL INFORMATION
North East Lincolnshire Council,http://statistics.data.gov.uk/id/local-authority/00FC),Children & Family Services,Ass Dir-Safeguard & Early Help,Head Of Child Resource & Reg,Other Agencies,Contract Plus,PJ135,26/01/2021,883322,315,REVENUE,REDACTED PERSONAL INFORMATION,REDACTED PERSONAL INFORMATION
North East Lincolnshire Council,http://statistics.data.gov.uk/id/local-authority/00FC),Children & Family Services,Ass Dir-Safeguard & Early Help,Head Of Child Resource & Reg,Other Agencies,Contract Plus,PJ135,26/01/2021,883326,315,REVENUE,REDACTED PERSONAL INFORMATION,REDACTED PERSONAL INFORMATION
North East Lincolnshire Council,http://statistics.data.gov.uk/id/local-authority/00FC),Children & Family Services,Ass Dir-Safeguard & Early Help,Head Of Child Resource & Reg,Other Agencies,Contract Plus,PJ135,26/01/2021,883340,315,REVENUE,REDACTED PERSONAL INFORMATION,REDACTED PERSONAL INFORMATION
North East Lincolnshire Council,http://statistics.data.gov.uk/id/local-authority/00FC),Children & Family Services,Ass Dir-Safeguard & Early Help,Head Of Child Resource & Reg,Other Agencies,Contract Plus,PJ135,26/01/2021,883355,315,REVENUE,REDACTED PERSONAL INFORMATION,REDACTED PERSONAL INFORMATION
North East Lincolnshire Council,http://statistics.data.gov.uk/id/local-authority/00FC),Children & Family Services,Ass Dir-Safeguard & Early Help,Head Of Child Resource & Reg,Other Agencies,Contract Plus,PJ135,26/01/2021,883356,315,REVENUE,REDACTED PERSONAL INFORMATION,REDACTED PERSONAL INFORMATION
North East Lincolnshire Council,http://statistics.data.gov.uk/id/local-authority/00FC),Children & Family Services,Ass Dir-Safeguard & Early Help,Head Of Child Resource & Reg,Other Agencies,Contract Plus,PJ135,26/01/2021,883369,315,REVENUE,REDACTED PERSONAL INFORMATION,REDACTED PERSONAL INFORMATION
North East Lincolnshire Council,http://statistics.data.gov.uk/id/local-authority/00FC),Children & Family Services,Ass Dir-Safeguard & Early Help,Head Of Child Resource & Reg,Other Agencies,Contract Plus,PJ135,26/01/2021,883378,315,REVENUE,REDACTED PERSONAL INFORMATION,REDACTED PERSONAL INFORMATION
North East Lincolnshire Council,http://statistics.data.gov.uk/id/local-authority/00FC),Children & Family Services,Ass Dir-Safeguard & Early Help,Head Of Child Resource & Reg,Other Agencies,Contract Plus,PJ135,26/01/2021,883385,315,REVENUE,REDACTED PERSONAL INFORMATION,REDACTED PERSONAL INFORMATION
North East Lincolnshire Council,http://statistics.data.gov.uk/id/local-authority/00FC),Children & Family Services,Ass Dir-Safeguard & Early Help,Head Of Child Resource & Reg,Other Agencies,Contract Plus,PJ135,26/01/2021,883398,315,REVENUE,REDACTED PERSONAL INFORMATION,REDACTED PERSONAL INFORMATION
North East Lincolnshire Council,http://statistics.data.gov.uk/id/local-authority/00FC),Children & Family Services,Ass Dir-Safeguard & Early Help,Head Of Child Resource & Reg,Other Agencies,Contract Plus,PJ135,26/01/2021,883401,315,REVENUE,REDACTED PERSONAL INFORMATION,REDACTED PERSONAL INFORMATION
North East Lincolnshire Council,http://statistics.data.gov.uk/id/local-authority/00FC),Children & Family Services,Ass Dir-Safeguard & Early Help,Head Of Child Resource & Reg,Other Agencies,Contract Plus,PJ135,26/01/2021,883527,315,REVENUE,REDACTED PERSONAL INFORMATION,REDACTED PERSONAL INFORMATION
North East Lincolnshire Council,http://statistics.data.gov.uk/id/local-authority/00FC),Children & Family Services,Ass Dir-Safeguard & Early Help,Head Of Child Resource & Reg,Other Agencies,Contract Plus,PJ135,26/01/2021,883646,315,REVENUE,REDACTED PERSONAL INFORMATION,REDACTED PERSONAL INFORMATION
North East Lincolnshire Council,http://statistics.data.gov.uk/id/local-authority/00FC),Children & Family Services,Ass Dir-Safeguard & Early Help,Head Of Child Resource & Reg,Other Agencies,Custodianship/Residency,PJ117,26/01/2021,883973,1640.74,REVENUE,REDACTED PERSONAL INFORMATION,REDACTED PERSONAL INFORMATION
North East Lincolnshire Council,http://statistics.data.gov.uk/id/local-authority/00FC),Children & Family Services,Ass Dir-Safeguard & Early Help,Head Of Child Resource & Reg,Other Agencies,Exceptional Task,PJ113,12/01/2021,873403,520,REVENUE,REDACTED PERSONAL INFORMATION,REDACTED PERSONAL INFORMATION
North East Lincolnshire Council,http://statistics.data.gov.uk/id/local-authority/00FC),Children & Family Services,Ass Dir-Safeguard & Early Help,Head Of Child Resource & Reg,Other Agencies,Holiday,PJ108,12/01/2021,872959,396,REVENUE,REDACTED PERSONAL INFORMATION,REDACTED PERSONAL INFORMATION
North East Lincolnshire Council,http://statistics.data.gov.uk/id/local-authority/00FC),Children & Family Services,Ass Dir-Safeguard & Early Help,Head Of Child Resource & Reg,Other Agencies,Special Carer Payments,PJ128,12/01/2021,873228,711.58,REVENUE,REDACTED PERSONAL INFORMATION,REDACTED PERSONAL INFORMATION
North East Lincolnshire Council,http://statistics.data.gov.uk/id/local-authority/00FC),Children & Family Services,Ass Dir-Safeguard & Early Help,Head Of Child Resource & Reg,Other Agencies,Special Carer Payments,PJ128,12/01/2021,872991,711.58,REVENUE,REDACTED PERSONAL INFORMATION,REDACTED PERSONAL INFORMATION
North East Lincolnshire Council,http://statistics.data.gov.uk/id/local-authority/00FC),Children & Family Services,Ass Dir-Safeguard & Early Help,Head Of Child Resource & Reg,Other Agencies,Special Carer Payments,PJ128,12/01/2021,872862,711.58,REVENUE,REDACTED PERSONAL INFORMATION,REDACTED PERSONAL INFORMATION
North East Lincolnshire Council,http://statistics.data.gov.uk/id/local-authority/00FC),Children & Family Services,Ass Dir-Safeguard & Early Help,Head Of Child Resource & Reg,Other Agencies,Special Carer Payments,PJ128,19/01/2021,879858,711.58,REVENUE,REDACTED PERSONAL INFORMATION,REDACTED PERSONAL INFORMATION
North East Lincolnshire Council,http://statistics.data.gov.uk/id/local-authority/00FC),Children & Family Services,Ass Dir-Safeguard & Early Help,Head Of Child Resource & Reg,Other Agencies,Special Carer Payments,PJ128,19/01/2021,880215,711.58,REVENUE,REDACTED PERSONAL INFORMATION,REDACTED PERSONAL INFORMATION
North East Lincolnshire Council,http://statistics.data.gov.uk/id/local-authority/00FC),Children & Family Services,Ass Dir-Safeguard & Early Help,Head Of Child Resource & Reg,Other Agencies,Special Carer Payments,PJ128,19/01/2021,879982,711.58,REVENUE,REDACTED PERSONAL INFORMATION,REDACTED PERSONAL INFORMATION
North East Lincolnshire Council,http://statistics.data.gov.uk/id/local-authority/00FC),Children & Family Services,Ass Dir-Safeguard & Early Help,Head Of Child Resource & Reg,Other Agencies,Special Carer Payments,PJ128,26/01/2021,883439,711.58,REVENUE,REDACTED PERSONAL INFORMATION,REDACTED PERSONAL INFORMATION
North East Lincolnshire Council,http://statistics.data.gov.uk/id/local-authority/00FC),Children & Family Services,Ass Dir-Safeguard & Early Help,Head Of Child Resource & Reg,Other Agencies,Special Carer Payments,PJ128,26/01/2021,883312,711.58,REVENUE,REDACTED PERSONAL INFORMATION,REDACTED PERSONAL INFORMATION
North East Lincolnshire Council,http://statistics.data.gov.uk/id/local-authority/00FC),Children & Family Services,Ass Dir-Safeguard & Early Help,Head Of Child Resource & Reg,Other Agencies,Special Carer Payments,PJ128,26/01/2021,883713,711.58,REVENUE,REDACTED PERSONAL INFORMATION,REDACTED PERSONAL INFORMATION
North East Lincolnshire Council,http://statistics.data.gov.uk/id/local-authority/00FC),Children & Family Services,Ass Dir-Safeguard & Early Help,Head Of Child Resource & Reg,Other Agencies,Custodianship/Residency,PJ117,12/01/2021,873316,256.1,REVENUE,REDACTED PERSONAL INFORMATION,REDACTED PERSONAL INFORMATION
North East Lincolnshire Council,http://statistics.data.gov.uk/id/local-authority/00FC),Children & Family Services,Ass Dir-Safeguard & Early Help,Head Of Child Resource & Reg,Other Agencies,Custodianship/Residency,PJ117,19/01/2021,880300,256.1,REVENUE,REDACTED PERSONAL INFORMATION,REDACTED PERSONAL INFORMATION
North East Lincolnshire Council,http://statistics.data.gov.uk/id/local-authority/00FC),Children & Family Services,Ass Dir-Safeguard & Early Help,Head Of Child Resource & Reg,Other Agencies,Custodianship/Residency,PJ117,26/01/2021,883834,256.1,REVENUE,REDACTED PERSONAL INFORMATION,REDACTED PERSONAL INFORMATION
North East Lincolnshire Council,http://statistics.data.gov.uk/id/local-authority/00FC),Children & Family Services,Ass Dir-Safeguard & Early Help,Head Of Child Resource & Reg,Other Agencies,Custodianship/Residency,PJ117,12/01/2021,873109,322.39,REVENUE,REDACTED PERSONAL INFORMATION,REDACTED PERSONAL INFORMATION
North East Lincolnshire Council,http://statistics.data.gov.uk/id/local-authority/00FC),Children & Family Services,Ass Dir-Safeguard & Early Help,Head Of Child Resource & Reg,Other Agencies,Custodianship/Residency,PJ117,12/01/2021,872953,257.6,REVENUE,REDACTED PERSONAL INFORMATION,REDACTED PERSONAL INFORMATION
North East Lincolnshire Council,http://statistics.data.gov.uk/id/local-authority/00FC),Children & Family Services,Ass Dir-Safeguard & Early Help,Head Of Child Resource & Reg,Other Agencies,Custodianship/Residency,PJ117,19/01/2021,880099,322.39,REVENUE,REDACTED PERSONAL INFORMATION,REDACTED PERSONAL INFORMATION
North East Lincolnshire Council,http://statistics.data.gov.uk/id/local-authority/00FC),Children & Family Services,Ass Dir-Safeguard & Early Help,Head Of Child Resource & Reg,Other Agencies,Custodianship/Residency,PJ117,19/01/2021,879946,257.6,REVENUE,REDACTED PERSONAL INFORMATION,REDACTED PERSONAL INFORMATION
North East Lincolnshire Council,http://statistics.data.gov.uk/id/local-authority/00FC),Children & Family Services,Ass Dir-Safeguard & Early Help,Head Of Child Resource & Reg,Other Agencies,Custodianship/Residency,PJ117,26/01/2021,883403,257.6,REVENUE,REDACTED PERSONAL INFORMATION,REDACTED PERSONAL INFORMATION
North East Lincolnshire Council,http://statistics.data.gov.uk/id/local-authority/00FC),Children & Family Services,Ass Dir-Safeguard & Early Help,Head Of Child Resource & Reg,Other Agencies,Custodianship/Residency,PJ117,26/01/2021,883560,322.39,REVENUE,REDACTED PERSONAL INFORMATION,REDACTED PERSONAL INFORMATION
North East Lincolnshire Council,http://statistics.data.gov.uk/id/local-authority/00FC),Children & Family Services,Ass Dir-Safeguard & Early Help,Head Of Child Resource & Reg,Other Agencies,Custodianship/Residency,PJ117,12/01/2021,873062,270.6,REVENUE,REDACTED PERSONAL INFORMATION,REDACTED PERSONAL INFORMATION
North East Lincolnshire Council,http://statistics.data.gov.uk/id/local-authority/00FC),Children & Family Services,Ass Dir-Safeguard & Early Help,Head Of Child Resource & Reg,Other Agencies,Custodianship/Residency,PJ117,12/01/2021,873069,284,REVENUE,REDACTED PERSONAL INFORMATION,REDACTED PERSONAL INFORMATION
North East Lincolnshire Council,http://statistics.data.gov.uk/id/local-authority/00FC),Children & Family Services,Ass Dir-Safeguard & Early Help,Head Of Child Resource & Reg,Other Agencies,Custodianship/Residency,PJ117,12/01/2021,873088,277.48,REVENUE,REDACTED PERSONAL INFORMATION,REDACTED PERSONAL INFORMATION
North East Lincolnshire Council,http://statistics.data.gov.uk/id/local-authority/00FC),Children & Family Services,Ass Dir-Safeguard & Early Help,Head Of Child Resource & Reg,Other Agencies,Custodianship/Residency,PJ117,19/01/2021,880078,277.48,REVENUE,REDACTED PERSONAL INFORMATION,REDACTED PERSONAL INFORMATION
North East Lincolnshire Council,http://statistics.data.gov.uk/id/local-authority/00FC),Children & Family Services,Ass Dir-Safeguard & Early Help,Head Of Child Resource & Reg,Other Agencies,Custodianship/Residency,PJ117,19/01/2021,880053,270.6,REVENUE,REDACTED PERSONAL INFORMATION,REDACTED PERSONAL INFORMATION
North East Lincolnshire Council,http://statistics.data.gov.uk/id/local-authority/00FC),Children & Family Services,Ass Dir-Safeguard & Early Help,Head Of Child Resource & Reg,Other Agencies,Custodianship/Residency,PJ117,19/01/2021,880060,284,REVENUE,REDACTED PERSONAL INFORMATION,REDACTED PERSONAL INFORMATION
North East Lincolnshire Council,http://statistics.data.gov.uk/id/local-authority/00FC),Children & Family Services,Ass Dir-Safeguard & Early Help,Head Of Child Resource & Reg,Other Agencies,Custodianship/Residency,PJ117,26/01/2021,883512,270.6,REVENUE,REDACTED PERSONAL INFORMATION,REDACTED PERSONAL INFORMATION
North East Lincolnshire Council,http://statistics.data.gov.uk/id/local-authority/00FC),Children & Family Services,Ass Dir-Safeguard & Early Help,Head Of Child Resource & Reg,Other Agencies,Custodianship/Residency,PJ117,26/01/2021,883521,284,REVENUE,REDACTED PERSONAL INFORMATION,REDACTED PERSONAL INFORMATION
North East Lincolnshire Council,http://statistics.data.gov.uk/id/local-authority/00FC),Children & Family Services,Ass Dir-Safeguard & Early Help,Head Of Child Resource & Reg,Other Agencies,Custodianship/Residency,PJ117,26/01/2021,883539,277.48,REVENUE,REDACTED PERSONAL INFORMATION,REDACTED PERSONAL INFORMATION
North East Lincolnshire Council,http://statistics.data.gov.uk/id/local-authority/00FC),Children & Family Services,Ass Dir-Safeguard & Early Help,Head Of Child Resource & Reg,Other Agencies,Custodianship/Residency,PJ117,12/01/2021,872885,328,REVENUE,REDACTED PERSONAL INFORMATION,REDACTED PERSONAL INFORMATION
North East Lincolnshire Council,http://statistics.data.gov.uk/id/local-authority/00FC),Children & Family Services,Ass Dir-Safeguard & Early Help,Head Of Child Resource & Reg,Other Agencies,Custodianship/Residency,PJ117,19/01/2021,879880,328,REVENUE,REDACTED PERSONAL INFORMATION,REDACTED PERSONAL INFORMATION
North East Lincolnshire Council,http://statistics.data.gov.uk/id/local-authority/00FC),Children & Family Services,Ass Dir-Safeguard & Early Help,Head Of Child Resource & Reg,Other Agencies,Custodianship/Residency,PJ117,26/01/2021,883335,328,REVENUE,REDACTED PERSONAL INFORMATION,REDACTED PERSONAL INFORMATION
